Organisation Name,Organisation Code,Effective Date,Directorate,Service Category,Service Category URI,Supplier Name,Payment Date,Transaction Number,Net Amount,Irrecoverable VAT,Purpose_of_the_expenditure,Merchant Category,DELETE FIELD
Wyre Council,http://opendatacommunities.org/doc/district-council/wyre,29/11/2022,People and Places,Cultural and Related Services,132A,Duxburys Commercial,11/11/2022,PE144997,1250.00,0.00,Charges re: letting of Wyre Cafe Stannah Country Park,Advertising - General,46100
Wyre Council,http://opendatacommunities.org/doc/district-council/wyre,29/11/2022,Resources,Planning and Development Servs,132C,Daisy Communications LTD,24/11/2022,RS145542,42.91,0.00,Monthly Phone Charges,Advertising - General,46100
Wyre Council,http://opendatacommunities.org/doc/district-council/wyre,29/11/2022,People and Places,Cultural and Related Services,132A,Disabled Enabled Ltd T/A AccessAble,16/11/2022,PE145396,3150.00,0.00,Maintenance of AccessAble Detailed Access Guide part 2,Advertising - General,46100
Wyre Council,http://opendatacommunities.org/doc/district-council/wyre,29/11/2022,Resources,Support Services,135B, Hemming Group LTD,23/11/2022,RS145564,5200.00,0.00,Chief Executive Job Advert - MJ,Advertising - Recruitment,15200
Wyre Council,http://opendatacommunities.org/doc/district-council/wyre,29/11/2022,People and Places,Planning and Development Servs,132C,National World Publishing Ltd,21/11/2022,PE145474,133.20,0.00,Press notice for Fleetwood Weekly News 16/11/22,Advertising - Statutory Notices,46103
Wyre Council,http://opendatacommunities.org/doc/district-council/wyre,29/11/2022,People and Places,Planning and Development Servs,132C,National World Publishing Ltd,21/11/2022,PE145475,518.40,0.00,Press notice for Blackpool Gazette and Garstang Weekly News 16.11.22,Advertising - Statutory Notices,46103
Wyre Council,http://opendatacommunities.org/doc/district-council/wyre,29/11/2022,People and Places,Support Services,135B,M J Wilkinson,30/11/2022,PE145636,105.60,0.00,"Hire of Labour only 
Order no 10780
14/9/22",Agency Staff,13000
Wyre Council,http://opendatacommunities.org/doc/district-council/wyre,29/11/2022,People and Places,Support Services,135B,M J Wilkinson,30/11/2022,PE145639,277.20,0.00,"Hire of Labour only 
order no 10778
31/8/22 to 2/9/22",Agency Staff,13000
Wyre Council,http://opendatacommunities.org/doc/district-council/wyre,29/11/2022,People and Places,Support Services,135B,M J Wilkinson,30/11/2022,PE145637,316.80,0.00,"Hire of labour only 
Order no 10781
20/9/22 to 22/9/22",Agency Staff,13000
Wyre Council,http://opendatacommunities.org/doc/district-council/wyre,29/11/2022,People and Places,Cultural and Related Services,132A,Catering Elite Ltd,02/11/2022,PE145093,74.20,0.00,Agency staff we 2/10/22,Agency Staff,13000
Wyre Council,http://opendatacommunities.org/doc/district-council/wyre,29/11/2022,People and Places,Cultural and Related Services,132A,Catering Elite Ltd,02/11/2022,PE145092,280.96,0.00,Agency staff we16/10/22,Agency Staff,13000
Wyre Council,http://opendatacommunities.org/doc/district-council/wyre,29/11/2022,People and Places,Cultural and Related Services,132A,Catering Elite Ltd,02/11/2022,PE145091,311.64,0.00,Agency staff we 25/9/22,Agency Staff,13000
Wyre Council,http://opendatacommunities.org/doc/district-council/wyre,29/11/2022,People and Places,Cultural and Related Services,132A,Catering Elite Ltd,02/11/2022,PE145090,96.46,0.00,Agency staff we 11/9/22,Agency Staff,13000
Wyre Council,http://opendatacommunities.org/doc/district-council/wyre,29/11/2022,Resources,Support Services,135B,Butler Rose Recuitment Ltd,10/11/2022,RS145265,1909.05,0.00,Interim Accountant Support - 26th September 2022 - 30th January 2023,Agency Staff,13000
Wyre Council,http://opendatacommunities.org/doc/district-council/wyre,29/11/2022,Resources,Support Services,135B,Butler Rose Recuitment Ltd,03/11/2022,RS145106,1909.05,0.00,Interim Accountant Support - 26th September 2022 - 30th January 2023,Agency Staff,13000
Wyre Council,http://opendatacommunities.org/doc/district-council/wyre,29/11/2022,Resources,Support Services,135B,Butler Rose Recuitment Ltd,03/11/2022,RS145108,1909.05,0.00,Interim Accountant Support - 26th September 2022 - 30th January 2023,Agency Staff,13000
Wyre Council,http://opendatacommunities.org/doc/district-council/wyre,29/11/2022,Resources,Support Services,135B,Butler Rose Recuitment Ltd,03/11/2022,RS145107,1909.05,0.00,Interim Accountant Support - 26th September 2022 - 30th January 2023,Agency Staff,13000
Wyre Council,http://opendatacommunities.org/doc/district-council/wyre,29/11/2022,Resources,Support Services,135B,BUTLER ROSE,02/11/2022,RS144663,1909.05,0.00,Interim Accountant Support - 26th September 2022 - 30th January 2023,Agency Staff,13000
Wyre Council,http://opendatacommunities.org/doc/district-council/wyre,29/11/2022,Resources,Support Services,135B,BUTLER ROSE,02/11/2022,RS144520,1909.05,0.00,Interim Accountant Support - 26th September 2022 - 30th January 2023,Agency Staff,13000
Wyre Council,http://opendatacommunities.org/doc/district-council/wyre,29/11/2022,Resources,Housing General Fund,134A,G2V Recruitment Group Ltd T/A G2 Recruitment Solu,10/11/2022,RS144296,1059.10,0.00,Invoice 107888,Agency Staff,13000
Wyre Council,http://opendatacommunities.org/doc/district-council/wyre,29/11/2022,Resources,Housing General Fund,134A,G2V Recruitment Group Ltd T/A G2 Recruitment Solu,28/11/2022,RS144310,1898.05,0.00,04/09/22 - 11/09/22 - Pay x2,Agency Staff,13000
Wyre Council,http://opendatacommunities.org/doc/district-council/wyre,29/11/2022,Resources,Housing General Fund,134A,G2V Recruitment Group Ltd T/A G2 Recruitment Solu,28/11/2022,RS144310,525.00,0.00,"invoice, 108316",Agency Staff,13000
Wyre Council,http://opendatacommunities.org/doc/district-council/wyre,29/11/2022,Resources,Support Services,135B,Park Avenue Recruitment Ltd,16/11/2022,RS145337,1800.00,0.00,"Appointment of Interim Estates Surveyor  w/e 02/10, 09/10, 15/10, 23/10 and 31/10/22",Agency Staff,13000
Wyre Council,http://opendatacommunities.org/doc/district-council/wyre,29/11/2022,Resources,Support Services,135B,Park Avenue Recruitment Ltd,16/11/2022,RS145336,3025.00,0.00,"Appointment of Interim Estates Surveyor w/e 02/10, 09/10, 15/10, 23/10 and 31/10/22",Agency Staff,13000
Wyre Council,http://opendatacommunities.org/doc/district-council/wyre,29/11/2022,Resources,Support Services,135B,Park Avenue Recruitment Ltd,16/11/2022,RS145335,3816.00,0.00,"Appointment of Interim Estates Surveyor w/e 02/10, 09/10, 15/10, 23/10 and 31/10/22",Agency Staff,13000
Wyre Council,http://opendatacommunities.org/doc/district-council/wyre,29/11/2022,Resources,Support Services,135B,Park Avenue Recruitment Ltd,16/11/2022,RS145362,3816.00,0.00,"Appointment of Interim Estates Surveyor w/e 02/10, 09/10, 15/10, 23/10 and 31/10/22",Agency Staff,13000
Wyre Council,http://opendatacommunities.org/doc/district-council/wyre,29/11/2022,Resources,Support Services,135B,Park Avenue Recruitment Ltd,16/11/2022,RS145335,-3816.00,0.00,"Appointment of Interim Estates Surveyor w/e 02/10, 09/10, 15/10, 23/10 and 31/10/22",Agency Staff,13000
Wyre Council,http://opendatacommunities.org/doc/district-council/wyre,29/11/2022,People and Places,Planning and Development Servs,132C,Capita Property and Infrastructure Ltd,18/11/2022,PE145421,5123.76,0.00,Planning application support provide by Capita,Agency Staff,13000
Wyre Council,http://opendatacommunities.org/doc/district-council/wyre,29/11/2022,People and Places,Planning and Development Servs,132C,Capita Property and Infrastructure Ltd,18/11/2022,PE145439,4255.94,0.00,Planning application support provide by Capita,Agency Staff,13000
Wyre Council,http://opendatacommunities.org/doc/district-council/wyre,29/11/2022,Resources,Support Services,135B,Michael Page International Recruitment Limited,04/11/2022,RS144839,900.00,0.00,2 days per week for 6 months plus travel expenses. See ODR dated 29/07/22,Agency Staff,13000
Wyre Council,http://opendatacommunities.org/doc/district-council/wyre,29/11/2022,Resources,Support Services,135B,Michael Page International Recruitment Limited,04/11/2022,RS144838,209.85,0.00,2 days per week for 6 months plus travel expenses. See ODR dated 29/07/22,Agency Staff,13000
Wyre Council,http://opendatacommunities.org/doc/district-council/wyre,29/11/2022,Resources,Support Services,135B,Michael Page International Recruitment Limited,04/11/2022,RS144837,1800.00,0.00,2 days per week for 6 months plus travel expenses. See ODR dated 29/07/22,Agency Staff,13000
Wyre Council,http://opendatacommunities.org/doc/district-council/wyre,29/11/2022,Resources,Support Services,135B,Michael Page International Recruitment Limited,17/11/2022,RS145414,891.48,0.00,2 days per week for 6 months plus travel expenses. See ODR dated 29/07/22,Agency Staff,13000
Wyre Council,http://opendatacommunities.org/doc/district-council/wyre,29/11/2022,Resources,Support Services,135B,Michael Page International Recruitment Limited,17/11/2022,RS145413,272.20,0.00,2 days per week for 6 months plus travel expenses. See ODR dated 29/07/22,Agency Staff,13000
Wyre Council,http://opendatacommunities.org/doc/district-council/wyre,29/11/2022,Resources,Support Services,135B,Michael Page International Recruitment Limited,17/11/2022,RS145412,2237.22,0.00,2 days per week for 6 months plus travel expenses. See ODR dated 29/07/22,Agency Staff,13000
Wyre Council,http://opendatacommunities.org/doc/district-council/wyre,29/11/2022,Resources,Housing General Fund,134A,James Andrews Recruitment Solutions Ltd,21/11/2022,RS145462,1314.00,0.00,invoice,Agency Staff,13000
Wyre Council,http://opendatacommunities.org/doc/district-council/wyre,29/11/2022,Resources,Housing General Fund,134A,James Andrews Recruitment Solutions Ltd,29/11/2022,RS145589,1188.00,0.00,Invoice,Agency Staff,13000
Wyre Council,http://opendatacommunities.org/doc/district-council/wyre,29/11/2022,Resources,Housing General Fund,134A,James Andrews Recruitment Solutions Ltd,08/11/2022,RS145119,1332.00,0.00,31/10/2022,Agency Staff,13000
Wyre Council,http://opendatacommunities.org/doc/district-council/wyre,29/11/2022,Resources,Housing General Fund,134A,James Andrews Recruitment Solutions Ltd,16/11/2022,RS145338,1305.00,0.00,06.11.22,Agency Staff,13000
Wyre Council,http://opendatacommunities.org/doc/district-council/wyre,29/11/2022,Resources,Support Services,135B,Daisy Communications LTD,24/11/2022,RS145542,10.71,0.00,Monthly Phone Charges,Alarm Systems and Security - Annual,25201
Wyre Council,http://opendatacommunities.org/doc/district-council/wyre,29/11/2022,People and Places,Cultural and Related Services,132A,M D Security,09/11/2022,PE144762,144.00,0.00,"Fleetwood Memorial Park and Mount Park Cottages: investigate damage to both systems caused by vandals. M.Park - no damage found all ok. Cottages - rear external sounder pulled from wall, replaced external sounder",Alarm Systems and Security - Responsive,25203
Wyre Council,http://opendatacommunities.org/doc/district-council/wyre,29/11/2022,People and Places,Cultural and Related Services,132A,M D Security,03/11/2022,PE144996,315.00,0.00,Rossall Tower: replaced power supply unit. 7AH battery. RE-terminated reader,Alarm Systems and Security - Responsive,25203
Wyre Council,http://opendatacommunities.org/doc/district-council/wyre,29/11/2022,People and Places,Planning and Development Servs,132C,M D Security,22/11/2022,PE145454,69.00,0.00,Call out to fault on alarm at Fleetwood Market,Alarm Systems and Security - Responsive,25203
Wyre Council,http://opendatacommunities.org/doc/district-council/wyre,29/11/2022,People and Places,Support Services,135B,M D Security,22/11/2022,PE145437,95.00,0.00,Bulk head fitting at Civic Centre,Alarm Systems and Security - Responsive,25203
Wyre Council,http://opendatacommunities.org/doc/district-council/wyre,29/11/2022,Resources,Cultural and Related Services,132A,M D Security,03/11/2022,RS143537,134.00,0.00,"Mount Pavillion: Call out to alarm, found 4 x batteries to be low. Fitted x 17 batteries as did not want more callouts",Alarm Systems and Security - Responsive,25203
Wyre Council,http://opendatacommunities.org/doc/district-council/wyre,29/11/2022,Finance,Support Services,135B,,02/11/2022,WPST00081247,2441.00,0.00,21/10 - Sept 22,Apprenticeship Levy,17018
Wyre Council,http://opendatacommunities.org/doc/district-council/wyre,29/11/2022,People and Places,Cultural and Related Services,132A,Fools Paradise LTD,29/11/2022,PE145594,760.00,0.00,Hire of `Christmas Crackers` - Marine Hall 26/11/22,Artistes' Fees,42604
Wyre Council,http://opendatacommunities.org/doc/district-council/wyre,29/11/2022,Resources,Corporate and Democratic Core,131A,PR Chauffeuring Services,16/11/2022,RS145359,1078.00,0.00,Payment for October 2022 Chauffeuring Services.,Attendant Chauffeur Service,44402
Wyre Council,http://opendatacommunities.org/doc/district-council/wyre,29/11/2022,Finance,Corporate and Democratic Core,131A,NATWEST BANK,23/11/2022,WPST00085270,3323.32,0.00,Worldpay Invoice 230177779,Bank Charges,46008
Wyre Council,http://opendatacommunities.org/doc/district-council/wyre,29/11/2022,Finance,Corporate and Democratic Core,131A,NATWEST BANK,23/11/2022,WPST00085272,3315.26,0.00,Worldpay Invoice 230080404,Bank Charges,46008
Wyre Council,http://opendatacommunities.org/doc/district-council/wyre,29/11/2022,Finance,Corporate and Democratic Core,131A,NATWEST BANK,03/11/2022,WPST00081540,506.22,0.00,Worldpay Invoice 225884363,Bank Charges,46008
Wyre Council,http://opendatacommunities.org/doc/district-council/wyre,29/11/2022,Finance,Corporate and Democratic Core,131A,NATWEST BANK,03/11/2022,WPST00081536,2737.32,0.00,Worldpay Invoice 225586533,Bank Charges,46008
Wyre Council,http://opendatacommunities.org/doc/district-council/wyre,29/11/2022,Finance,Corporate and Democratic Core,131A,NATWEST BANK,03/11/2022,WPST00081538,2779.11,0.00,Worldpay Invoice 225619924,Bank Charges,46008
Wyre Council,http://opendatacommunities.org/doc/district-council/wyre,29/11/2022,Finance,Corporate and Democratic Core,131A,NATWEST BANK,03/11/2022,WPST00081453,899.49,0.00,natwest bank charges,Bank Charges,46008
Wyre Council,http://opendatacommunities.org/doc/district-council/wyre,29/11/2022,Finance,Corporate and Democratic Core,131A,NATWEST BANK,03/11/2022,WPST00081534,504.98,0.00,Worldpay Invoice 225683139,Bank Charges,46008
Wyre Council,http://opendatacommunities.org/doc/district-council/wyre,29/11/2022,Finance,Corporate and Democratic Core,131A,NATWEST BANK,04/11/2022,WPST00081633,553.00,0.00,1/4 natwest,Bank Charges,46008
Wyre Council,http://opendatacommunities.org/doc/district-council/wyre,29/11/2022,People and Places,Cultural and Related Services,132A,Twelve Event Management LTD,02/11/2022,PE145089,1440.00,0.00,Canapes - Lord lieutenants Awards 6/10/22,Catering,41100
Wyre Council,http://opendatacommunities.org/doc/district-council/wyre,29/11/2022,People and Places,Environmental Services,132B,N Power LTD,10/11/2022,PE145208,1.63,0.00,CCTV cameras electricity CCL,CCTV Running Costs,46831
Wyre Council,http://opendatacommunities.org/doc/district-council/wyre,29/11/2022,People and Places,Environmental Services,132B,N Power LTD,10/11/2022,PE145208,120.77,0.00,CCTV cameras electricity usage,CCTV Running Costs,46831
Wyre Council,http://opendatacommunities.org/doc/district-council/wyre,29/11/2022,People and Places,Environmental Services,132B,N Power LTD,10/11/2022,PE145208,79.97,0.00,CCTV cameras electricity usage,CCTV Running Costs,46831
Wyre Council,http://opendatacommunities.org/doc/district-council/wyre,29/11/2022,People and Places,Environmental Services,132B,N Power LTD,10/11/2022,PE145208,1.62,0.00,CCTV cameras electricity CCL,CCTV Running Costs,46831
Wyre Council,http://opendatacommunities.org/doc/district-council/wyre,29/11/2022,People and Places,Environmental Services,132B,N Power LTD,10/11/2022,PE145208,1.62,0.00,CCTV cameras electricity CCL,CCTV Running Costs,46831
Wyre Council,http://opendatacommunities.org/doc/district-council/wyre,29/11/2022,People and Places,Environmental Services,132B,N Power LTD,10/11/2022,PE145208,11.97,0.00,CCTV cameras electricity usage,CCTV Running Costs,46831
Wyre Council,http://opendatacommunities.org/doc/district-council/wyre,29/11/2022,People and Places,Planning and Development Servs,132C,Key Engineering & Hygiene Supplies LTD,10/11/2022,PE145292,34.12,0.00,"4 no QSOL/5LTR - Superior washing up liquid @ 8.53 per 5LTRDelivery to Wyre Council, Copse Road Depot, Copse Road, Fleetwood, FY7 6RP",Cleaning Materials,40501
Wyre Council,http://opendatacommunities.org/doc/district-council/wyre,29/11/2022,Resources,Support Services,135B,Key Engineering & Hygiene Supplies LTD,14/11/2022,RS145330,5.00,0.00,20 X 15 BLEACHED DISH CLOTHS EA,Cleaning Materials,40501
Wyre Council,http://opendatacommunities.org/doc/district-council/wyre,29/11/2022,Resources,Support Services,135B,Key Engineering & Hygiene Supplies LTD,14/11/2022,RS145330,8.58,0.00,FLORATILE GENERAL PURPOSE  CLEANER 5 LTR,Cleaning Materials,40501
Wyre Council,http://opendatacommunities.org/doc/district-council/wyre,29/11/2022,Resources,Support Services,135B,Key Engineering & Hygiene Supplies LTD,14/11/2022,RS145330,171.85,0.00,BLUE INTERFOLD HAND TOWELS 3600 SHEETS,Cleaning Materials,40501
Wyre Council,http://opendatacommunities.org/doc/district-council/wyre,29/11/2022,Resources,Support Services,135B,Key Engineering & Hygiene Supplies LTD,14/11/2022,RS145330,9.66,0.00,EAU-FRESH NON ACIDIC POT POURRI TOILET CLEANER/ 1 litre,Cleaning Materials,40501
Wyre Council,http://opendatacommunities.org/doc/district-council/wyre,29/11/2022,Resources,Support Services,135B,Key Engineering & Hygiene Supplies LTD,14/11/2022,RS145330,21.02,0.00,HERON MEDIUM BLACK REFUSE SACK 18X29X33 100G (200),Cleaning Materials,40501
Wyre Council,http://opendatacommunities.org/doc/district-council/wyre,29/11/2022,Resources,Support Services,135B,Key Engineering & Hygiene Supplies LTD,14/11/2022,RS145330,6.67,0.00,SAFE ZONE PLUS  5 LITRE,Cleaning Materials,40501
Wyre Council,http://opendatacommunities.org/doc/district-council/wyre,29/11/2022,People and Places,Cultural and Related Services,132A,Key Engineering & Hygiene Supplies LTD,08/11/2022,PE144052,40.34,0.00,AUTO DISHWASH,Cleaning Materials,40501
Wyre Council,http://opendatacommunities.org/doc/district-council/wyre,29/11/2022,People and Places,Cultural and Related Services,132A,Key Engineering & Hygiene Supplies LTD,01/11/2022,PE145021,169.36,0.00,EXTRA STRONG BLACK REFUSE SACK 18X29X39 180G 90LTR (PER 200),Cleaning Materials,40501
Wyre Council,http://opendatacommunities.org/doc/district-council/wyre,29/11/2022,People and Places,Cultural and Related Services,132A,Key Engineering & Hygiene Supplies LTD,10/11/2022,PE144019,11.88,0.00,AUTO GLASSWASH,Cleaning Materials,40501
Wyre Council,http://opendatacommunities.org/doc/district-council/wyre,29/11/2022,People and Places,Cultural and Related Services,132A,Key Engineering & Hygiene Supplies LTD,10/11/2022,PE144019,40.33,0.00,AUTO DISHWASH,Cleaning Materials,40501
Wyre Council,http://opendatacommunities.org/doc/district-council/wyre,29/11/2022,People and Places,Planning and Development Servs,132C,Key Engineering & Hygiene Supplies LTD,14/11/2022,PE145329,127.02,0.00,EXTRA STRONG BLACK REFUSE SACK 18X29X39 180G 90LTR (PER 200),Cleaning Materials,40501
Wyre Council,http://opendatacommunities.org/doc/district-council/wyre,29/11/2022,People and Places,Planning and Development Servs,132C,Key Engineering & Hygiene Supplies LTD,08/11/2022,PE145110,216.60,0.00,2PLY WHITE JUMBO TOILET ROLL,Cleaning Materials,40501
Wyre Council,http://opendatacommunities.org/doc/district-council/wyre,29/11/2022,People and Places,Planning and Development Servs,132C,Key Engineering & Hygiene Supplies LTD,08/11/2022,PE145110,21.66,0.00,KEYPINE GENERAL DISINFECTANT 5LTR,Cleaning Materials,40501
Wyre Council,http://opendatacommunities.org/doc/district-council/wyre,29/11/2022,People and Places,Planning and Development Servs,132C,Key Engineering & Hygiene Supplies LTD,08/11/2022,PE145110,51.78,0.00,BATH + TILE WASHROOM CLEANER,Cleaning Materials,40501
Wyre Council,http://opendatacommunities.org/doc/district-council/wyre,29/11/2022,People and Places,Planning and Development Servs,132C,Key Engineering & Hygiene Supplies LTD,08/11/2022,PE145110,30.72,0.00,FRESH AIR + FABRIC AEROSOL 400ML,Cleaning Materials,40501
Wyre Council,http://opendatacommunities.org/doc/district-council/wyre,29/11/2022,People and Places,Planning and Development Servs,132C,Key Engineering & Hygiene Supplies LTD,08/11/2022,PE145110,4.83,0.00,EAUFRESH NON ACIDIC APPLE TOILET CLEANER 1 LTR,Cleaning Materials,40501
Wyre Council,http://opendatacommunities.org/doc/district-council/wyre,29/11/2022,People and Places,Planning and Development Servs,132C,Key Engineering & Hygiene Supplies LTD,08/11/2022,PE145110,8.58,0.00,VERSATILE HARD SURFACE CLEANER 5 LITRE,Cleaning Materials,40501
Wyre Council,http://opendatacommunities.org/doc/district-council/wyre,29/11/2022,People and Places,Planning and Development Servs,132C,Key Engineering & Hygiene Supplies LTD,08/11/2022,PE145110,5.08,0.00,RED 200GM EXEL PY MOP HEAD ( PUSH FIT),Cleaning Materials,40501
Wyre Council,http://opendatacommunities.org/doc/district-council/wyre,29/11/2022,People and Places,Planning and Development Servs,132C,Key Engineering & Hygiene Supplies LTD,08/11/2022,PE145110,6.35,0.00,BLUE 200GM EXEL PY MOP HEAD ( PUSH FIT),Cleaning Materials,40501
Wyre Council,http://opendatacommunities.org/doc/district-council/wyre,29/11/2022,People and Places,Planning and Development Servs,132C,Key Engineering & Hygiene Supplies LTD,08/11/2022,PE145110,4.32,0.00,RED STRIPE DISHCLOTH,Cleaning Materials,40501
Wyre Council,http://opendatacommunities.org/doc/district-council/wyre,29/11/2022,People and Places,Planning and Development Servs,132C,Key Engineering & Hygiene Supplies LTD,08/11/2022,PE145110,4.32,0.00,BLUE STRIP DISH CLOTH EA,Cleaning Materials,40501
Wyre Council,http://opendatacommunities.org/doc/district-council/wyre,29/11/2022,People and Places,Planning and Development Servs,132C,Key Engineering & Hygiene Supplies LTD,24/11/2022,PE145569,51.12,0.00,LUX PEARL HAND/BODY SOAP 5 LTR,Cleaning Materials,40501
Wyre Council,http://opendatacommunities.org/doc/district-council/wyre,29/11/2022,People and Places,Planning and Development Servs,132C,Key Engineering & Hygiene Supplies LTD,24/11/2022,PE145569,9.66,0.00,EAUFRESH NON ACIDIC APPLE TOILET CLEANER 1 LTR,Cleaning Materials,40501
Wyre Council,http://opendatacommunities.org/doc/district-council/wyre,29/11/2022,People and Places,Planning and Development Servs,132C,Key Engineering & Hygiene Supplies LTD,24/11/2022,PE145570,21.45,0.00,Versatile floor Cleaner 5 Litre,Cleaning Materials,40501
Wyre Council,http://opendatacommunities.org/doc/district-council/wyre,29/11/2022,People and Places,Planning and Development Servs,132C,Key Engineering & Hygiene Supplies LTD,24/11/2022,PE145568,51.12,0.00,LUX PEARL HAND/BODY SOAP 5 LTR,Cleaning Materials,40501
Wyre Council,http://opendatacommunities.org/doc/district-council/wyre,29/11/2022,Resources,Support Services,135B,Key Engineering & Hygiene Supplies LTD,14/11/2022,RS145330,17.04,0.00,THICKENED BLEACH 750ML,Cleaning Materials,40501
Wyre Council,http://opendatacommunities.org/doc/district-council/wyre,29/11/2022,Resources,Support Services,135B,Key Engineering & Hygiene Supplies LTD,14/11/2022,RS145330,124.74,0.00,WHITE 2PLY LUXURY TOILET ROLL 320 40 PER PACK,Cleaning Materials,40501
Wyre Council,http://opendatacommunities.org/doc/district-council/wyre,29/11/2022,Resources,Support Services,135B,Key Engineering & Hygiene Supplies LTD,14/11/2022,RS145330,18.68,0.00,LATEX POWDER FREE GLOVES MED,Cleaning Materials,40501
Wyre Council,http://opendatacommunities.org/doc/district-council/wyre,29/11/2022,People and Places,Cultural and Related Services,132A,EAS Electrical Mechanical,09/11/2022,PE145232,78.00,0.00,"Public Clock (Victoria Rd West) Shelter 11: Unable to source any keys to conduct repair. Clock co attending in coming weeks to alter times, they will investigate as advised by WBC",Clock Maintenance - Responsive,21064
Wyre Council,http://opendatacommunities.org/doc/district-council/wyre,29/11/2022,People and Places,Environmental Services,132B,Key Engineering & Hygiene Supplies LTD,16/11/2022,PE143883,11.90,0.00,"Supply PPE as per quotation 14112 As per John   Delivery to Wyre Council, Copse Road Depot, Copse Road, Fleetwood, FY7 6RP.",Community Payback Scheme,56007
Wyre Council,http://opendatacommunities.org/doc/district-council/wyre,29/11/2022,People and Places,Environmental Services,132B,Key Engineering & Hygiene Supplies LTD,15/11/2022,PE143358,353.50,0.00,"Supply PPE as per quotation 14112 As per John   Delivery to Wyre Council, Copse Road Depot, Copse Road, Fleetwood, FY7 6RP.",Community Payback Scheme,56007
Wyre Council,http://opendatacommunities.org/doc/district-council/wyre,29/11/2022,Resources,Support Services,135B,Ebuyer (UK) Ltd,16/11/2022,RS145342,806.65,0.00,Samsung LH55QBBEBGCXEN - 55`` Large Format Display.,Comp Hardware Purchases,43500
Wyre Council,http://opendatacommunities.org/doc/district-council/wyre,29/11/2022,Resources,Support Services,135B,Ebuyer (UK) Ltd,16/11/2022,RS145342,4.99,0.00,Shipping,Comp Hardware Purchases,43500
Wyre Council,http://opendatacommunities.org/doc/district-council/wyre,29/11/2022,Resources,Support Services,135B,THE NETWORKING PEOPLE (TNP) LTD,16/11/2022,RS145360,2096.72,0.00,FAP-221E-E - FortiAP: FortiAP-221E Indoor Wireless AP - Dual radio ; internal antennas; 1 x 10/100/1000 RJ45 po,Comp Hardware Purchases,43500
Wyre Council,http://opendatacommunities.org/doc/district-council/wyre,29/11/2022,Resources,Support Services,135B,THE NETWORKING PEOPLE (TNP) LTD,16/11/2022,RS145360,800.56,0.00,2 FC-10-PE221-247-02-36 - FortiAP Services: FortiAP-221E 3 Year FortiCare Premium Support,Comp Hardware Purchases,43500
Wyre Council,http://opendatacommunities.org/doc/district-council/wyre,29/11/2022,Resources,Support Services,135B,THE NETWORKING PEOPLE (TNP) LTD,16/11/2022,RS145360,25.00,0.00,Delivery,Comp Hardware Purchases,43500
Wyre Council,http://opendatacommunities.org/doc/district-council/wyre,29/11/2022,Resources,Support Services,135B,CCS MEDIA LTD,21/11/2022,RS145466,242.80,0.00,SKU: TAR300Targus-TAR300 Targus notebook case 39.6 cm (15.6``) Briefcase BlackNotebook Case,Comp Hardware Purchases,43500
Wyre Council,http://opendatacommunities.org/doc/district-council/wyre,29/11/2022,Resources,Support Services,135B,CCS MEDIA LTD,23/11/2022,RS145531,15016.60,0.00,"SKU: 5Y4A4EA#ABUHP-5Y4A4EA#ABU HP 450 G9 i5-1235U Notebook 39.6 cm (15.6``) Full HD Intel Core i5 8 GB DDR4-SDRAM 256 GB SSD Wi-Fi 6E (802.11ax) Windows 10 Pro SilverProBook 450 15.6 inch G9 Notebook PC,15.6``,Windows 10 Pro (available through downg",Comp Hardware Purchases,43500
Wyre Council,http://opendatacommunities.org/doc/district-council/wyre,29/11/2022,Resources,Support Services,135B,CCS MEDIA LTD,23/11/2022,RS145562,1302.20,0.00,SKU: UK703EHewlett Packard Enterprise-UK703E HP 3 year Next Business Day Response Onsite Notebook Hardware Support3 year Next Business Day Response Onsite Notebook Hardware Support,Comp Hardware Purchases,43500
Wyre Council,http://opendatacommunities.org/doc/district-council/wyre,29/11/2022,Resources,Support Services,135B,Apple Retail UK Ltd,21/11/2022,RS145444,915.83,0.00,iPhone 14 Pro 128GB Space Black.,Comp Hardware Purchases,43500
Wyre Council,http://opendatacommunities.org/doc/district-council/wyre,29/11/2022,Resources,Support Services,135B,Amazon Business,30/11/2022,RS145334,5.82,0.00,x1 Mini USB 2.0 Microphone PC plug-and-play driver-free Mac desktop and laptop microphones are convenient and practical. Manufacturer: AIYIBEN ASIN: B08M48NW99 Manufacturer reference: ZTD1,Comp Hardware Purchases,43500
Wyre Council,http://opendatacommunities.org/doc/district-council/wyre,29/11/2022,Resources,Support Services,135B,Amazon Business,30/11/2022,RS145334,2.49,0.00,Delivery fee @ 2.49 Additional amount that needs writing off @1.69,Comp Hardware Purchases,43500
Wyre Council,http://opendatacommunities.org/doc/district-council/wyre,29/11/2022,Resources,Support Services,135B,Amazon Business,30/11/2022,RS145612,58.08,0.00,"Timecity iPad 10.2 Inch Case, iPad 9th 8th 7th Generation Case, Heavy Duty Shockproof Cover with Screen Protector, 360 Rotating Stand/Hand Strap, Pencil Holder for iPad 9/8/7 Case 2021/2020, Black.",Comp Hardware Purchases,43500
Wyre Council,http://opendatacommunities.org/doc/district-council/wyre,29/11/2022,Resources,Support Services,135B,Amazon Business,30/11/2022,RS145611,232.32,0.00,"Timecity iPad 10.2 Inch Case, iPad 9th 8th 7th Generation Case, Heavy Duty Shockproof Cover with Screen Protector, 360 Rotating Stand/Hand Strap, Pencil Holder for iPad 9/8/7 Case 2021/2020, Black.",Comp Hardware Purchases,43500
Wyre Council,http://opendatacommunities.org/doc/district-council/wyre,29/11/2022,Resources,Support Services,135B,Amazon Business,30/11/2022,RS145610,232.32,0.00,"Timecity iPad 10.2 Inch Case, iPad 9th 8th 7th Generation Case, Heavy Duty Shockproof Cover with Screen Protector, 360 Rotating Stand/Hand Strap, Pencil Holder for iPad 9/8/7 Case 2021/2020, Black.",Comp Hardware Purchases,43500
Wyre Council,http://opendatacommunities.org/doc/district-council/wyre,29/11/2022,Resources,Support Services,135B,Amazon Business,30/11/2022,RS145609,17.49,0.00,"Niunisi Magnetic Case for iPhone 14 Pro Case 6.1-Inch (2022), Slim Kickstand with Screen Protector Compatible with Magsafe Shockproof Translucent Matte Cases Phone Case Cover, White.",Comp Hardware Purchases,43500
Wyre Council,http://opendatacommunities.org/doc/district-council/wyre,29/11/2022,Resources,Support Services,135B,Amazon Business,18/11/2022,RS145419,40.82,0.00,"AJPARTS UK New Compatible with LP156WFC SPM1, NV156FHM-N4H, NV156FHM-N4L, LP156WFC(SP)(M1) Laptop Screen 15.6? Narrow Bezel Slim LED LCD 1920 x 1080 FHD IPS Display 30 Pin Matte Panel Non Touch.",Comp Hardware Purchases,43500
Wyre Council,http://opendatacommunities.org/doc/district-council/wyre,29/11/2022,Resources,Support Services,135B,Amazon Business,18/11/2022,RS145438,228.30,0.00,"Logitech H390 Wired Headset, Stereo Headphones with Noise-Cancelling Microphone, USB, In-Line Controls, PC/Mac/Laptop - Black.",Comp Hardware Purchases,43500
Wyre Council,http://opendatacommunities.org/doc/district-council/wyre,29/11/2022,Resources,Support Services,135B,Amazon Business,18/11/2022,RS145441,49.98,0.00,"Logitech R400 Wireless Presentation Remote, 2.4 GHz, USB-Receiver, Red Laser Pointer, 15-Meter Operating Range, 6 Buttons, Intuitive Slideshow Control, Battery Indicator, PC - Black",Comp Hardware Purchases,43500
Wyre Council,http://opendatacommunities.org/doc/district-council/wyre,29/11/2022,Resources,Support Services,135B,Amazon Business,18/11/2022,RS145441,266.40,0.00,"Logitech C270 HD Webcam, HD 720p/30fps, Widescreen HD Video Calling, HD Light Correction, Noise-Reducing Mic, For Skype, FaceTime, Hangouts, WebEx, PC/Mac/Laptop/Macbook/Tablet - Black.",Comp Hardware Purchases,43500
Wyre Council,http://opendatacommunities.org/doc/district-council/wyre,29/11/2022,Resources,Support Services,135B,Phoenix Software LTD,16/11/2022,RS145361,192.66,0.00,Meraki EOS MS220-8P Enterprise Licence and Support - 3 Years - Licence 1 192.66 192.66,Computer Equipment Maintenance,43600
Wyre Council,http://opendatacommunities.org/doc/district-council/wyre,29/11/2022,Resources,Support Services,135B,Phoenix Software LTD,16/11/2022,RS145361,1859.20,0.00,"Meraki MR Enterprise - 3 Years - Licence 7 265.60 1,859.20",Computer Equipment Maintenance,43600
Wyre Council,http://opendatacommunities.org/doc/district-council/wyre,29/11/2022,Resources,Support Services,135B,Amazon Business,18/11/2022,RS145440,16.64,0.00,Presentation Clicker Pointers Case for Logitech R400 R500s R700 Kensington Laser Pointer XANAD Case for Wireless Powerpoint Presentation and Remote.,Computer Stationery and Consumables,43501
Wyre Council,http://opendatacommunities.org/doc/district-council/wyre,29/11/2022,People and Places,Environmental Services,132B,Osborne Richardson,24/11/2022,PE145521,756.00,0.00,To provide Contaminated land & Air Quality Consultancy April 2022-March 2023  (Annual purchase order to draw invoices from throughout the year),Consultants Fees,42612
Wyre Council,http://opendatacommunities.org/doc/district-council/wyre,29/11/2022,People and Places,Environmental Services,132B,Osborne Richardson,17/11/2022,PE145417,781.20,0.00,To provide Contaminated land & Air Quality Consultancy April 2022-March 2023  (Annual purchase order to draw invoices from throughout the year),Consultants Fees,42612
Wyre Council,http://opendatacommunities.org/doc/district-council/wyre,29/11/2022,People and Places,Environmental Services,132B,Osborne Richardson,30/11/2022,PE145608,907.20,0.00,To provide Contaminated land & Air Quality Consultancy April 2022-March 2023  (Annual purchase order to draw invoices from throughout the year),Consultants Fees,42612
Wyre Council,http://opendatacommunities.org/doc/district-council/wyre,29/11/2022,People and Places,Planning and Development Servs,132C,Keppie Massie,09/11/2022,PE145203,4250.00,0.00,Viability assessment relating to planning application 21/01152/OULMAJ - Land off Fleetwood Road,Consultants Fees,42612
Wyre Council,http://opendatacommunities.org/doc/district-council/wyre,29/11/2022,Resources,Central Services to the Public,131C,Inform CPI,11/11/2022,RS145167,1197.50,0.00,"Re: Northfold County Jnr school, Ringway, Thornton-Cleveleys and Preesall Park Storage, The Old Coal Yard, Hall Gate Lane, Preesall",Consultants Fees,42612
Wyre Council,http://opendatacommunities.org/doc/district-council/wyre,29/11/2022,Resources,Support Services,135B,THE NETWORKING PEOPLE (TNP) LTD,07/11/2022,RS145159,5280.00,0.00,Renewal of Network Service Support including 48 RMACs. Period of Cover 10/12/2022 - 10/12/2023,Consultants Fees,42612
Wyre Council,http://opendatacommunities.org/doc/district-council/wyre,29/11/2022,Resources,Support Services,135B,THE NETWORKING PEOPLE (TNP) LTD,07/11/2022,RS145160,650.00,0.00,Addtional PS day to support #154609: Wyre Council: Wyre Civic Wireless AP & Cabling Survey,Consultants Fees,42612
Wyre Council,http://opendatacommunities.org/doc/district-council/wyre,29/11/2022,People and Places,Support Services,135B,RD Engineering Associates Ltd,08/11/2022,RS145134,750.00,0.00,"For the call out, attendance and report on a fire damaged property at 238 Poulton Road, Fleetwood",Consultants Fees,42612
Wyre Council,http://opendatacommunities.org/doc/district-council/wyre,29/11/2022,Resources,"Cultural, Environ and Planning",137B,National World Publishing Ltd,07/11/2022,RS145146,1111.80,0.00,Planning Notices17 x 3 2 inserts  Colour - Black 26/10/22 - 02/11/2022 Blackpool GazetteFleetwood Weekly NewsGarstang Courier2 x online,Consultants Fees (New CCR),04022
Wyre Council,http://opendatacommunities.org/doc/district-council/wyre,29/11/2022,People and Places,"Cultural, Environ and Planning",137B,The Lancashire Wildlife Trust Ltd,18/11/2022,PE144624,9200.00,0.00,Part 1 of 3 payments 2022/23 40% of year 1 of the ECO-CoBS Project,Consultants Fees (New CCR),04022
Wyre Council,http://opendatacommunities.org/doc/district-council/wyre,29/11/2022,People and Places,"Cultural, Environ and Planning",137B,Marine Management Organisation,10/11/2022,PE144817,122.00,0.00,"MMO Licence application fee, case reference Wyre Beach Management Scheme",Consultants Fees (New CCR),04022
Wyre Council,http://opendatacommunities.org/doc/district-council/wyre,29/11/2022,People and Places,"Cultural, Environ and Planning",137B,Marine Management Organisation,11/11/2022,PE143351,376.00,0.00,"MMO Licence application fee, case reference Wyre Beach Management Scheme",Consultants Fees (New CCR),04022
Wyre Council,http://opendatacommunities.org/doc/district-council/wyre,29/11/2022,People and Places,"Cultural, Environ and Planning",137B,FAIRHURST,16/11/2022,PE145410,13510.00,0.00,"To Michael Jones, Fairhurst 1 Arngrove Court, Barrack Road, Newcastle. NE4 6DB   Provide planning consultancy services in relation to the Wyre Beach Management Scheme.  Ref DW/145706/001 30 September 2022",Consultants Fees (New CCR),04022
Wyre Council,http://opendatacommunities.org/doc/district-council/wyre,29/11/2022,People and Places,"Cultural, Environ and Planning",137B,Purcell Architecture Limited,30/11/2022,PE145629,5646.88,0.00,Fleetwood Market Consultancy for carbon reduction works,Consultants Fees (New CCR),04022
Wyre Council,http://opendatacommunities.org/doc/district-council/wyre,29/11/2022,People and Places,"Cultural, Environ and Planning",137B,Purcell Architecture Limited,29/11/2022,PE145039,4580.23,0.00,Fleetwood HSHAZ - Market Hall External Repairs Additional Structural Engineer fees Services as per email dated 13/05/2022,Consultants Fees (New CCR),04022
Wyre Council,http://opendatacommunities.org/doc/district-council/wyre,29/11/2022,People and Places,"Cultural, Environ and Planning",137B,Susannah Bleakley Consulting,14/11/2022,PE145308,7436.26,0.00,ECO-CoBS Project,Consultants Fees (New CCR),04022
Wyre Council,http://opendatacommunities.org/doc/district-council/wyre,29/11/2022,People and Places,"Cultural, Environ and Planning",137B,Morecambe Bay Partnership,16/11/2022,PE145363,9522.25,0.00,Part 1 of 3 payments 2022/2340% of Year 1 of the ECO-COBS Project started 01/04/22,Consultants Fees (New CCR),04022
Wyre Council,http://opendatacommunities.org/doc/district-council/wyre,29/11/2022,Resources,Central Services to the Public,131C,Blackpool Council,10/11/2022,RS145268,1096.00,0.00,Covid vaccination van October 22 - 30176072,Contain Outbreak Management Fund,46615
Wyre Council,http://opendatacommunities.org/doc/district-council/wyre,29/11/2022,People and Places,Support Services,135B,Blackpool Skip Hire LTD,21/11/2022,PE145448,180.00,0.00,Empty of skips for Cemeteries in the Wyre borough,Containers Skips and Hire,40105
Wyre Council,http://opendatacommunities.org/doc/district-council/wyre,29/11/2022,People and Places,Support Services,135B,Blackpool Skip Hire LTD,24/11/2022,PE145571,30.00,0.00,Empty of skips for Cemeteries in the Wyre borough,Containers Skips and Hire,40105
Wyre Council,http://opendatacommunities.org/doc/district-council/wyre,29/11/2022,People and Places,Support Services,135B,Blackpool Skip Hire LTD,24/11/2022,PE145571,90.00,0.00,Empty of skips Cemeteries,Containers Skips and Hire,40105
Wyre Council,http://opendatacommunities.org/doc/district-council/wyre,29/11/2022,People and Places,Support Services,135B,Blackpool Skip Hire LTD,24/11/2022,PE145565,180.00,0.00,Empty of skips Cemeteries,Containers Skips and Hire,40105
Wyre Council,http://opendatacommunities.org/doc/district-council/wyre,29/11/2022,People and Places,Support Services,135B,Blackpool Skip Hire LTD,23/11/2022,PE144502,270.00,0.00,Empty of skips for Cemeteries in the Wyre borough,Containers Skips and Hire,40105
Wyre Council,http://opendatacommunities.org/doc/district-council/wyre,29/11/2022,People and Places,"Cultural, Environ and Planning",137B,Leica Geosystems LTD,22/11/2022,PE145525,1298.00,0.00,Annual Smartnet Yearly Subscription Renewal.Please see quote for full technical details.1 year Smartnet NRTK Limited ? 480 hours.Subscription ID: 00150-35305-00430-27604-FAA79Your Order Ref: 43027604 (article 5305732)Smartnet Username: 15035305,Contract (New CCR),04020
Wyre Council,http://opendatacommunities.org/doc/district-council/wyre,29/11/2022,People and Places,"Cultural, Environ and Planning",137B,Marine Management Organisation,11/11/2022,PE144818,2958.50,0.00,Band 3 licence application,Contract (New CCR),04020
Wyre Council,http://opendatacommunities.org/doc/district-council/wyre,29/11/2022,People and Places,"Cultural, Environ and Planning",137B,Marine Management Organisation,11/11/2022,PE144960,4849.50,0.00,Band 3 licence application,Contract (New CCR),04020
Wyre Council,http://opendatacommunities.org/doc/district-council/wyre,29/11/2022,Resources,"Cultural, Environ and Planning",137B,VODAFONE LIMITED,16/11/2022,RS143933,24.00,0.00,Monthly Mobile phone charges invoice dated September 2022,Contract (New CCR),04020
Wyre Council,http://opendatacommunities.org/doc/district-council/wyre,29/11/2022,Resources,"Cultural, Environ and Planning",137B,VODAFONE LIMITED,28/11/2022,RS145528,24.00,0.00,Monthly Mobile phone charges invoice dated 15 October 2022,Contract (New CCR),04020
Wyre Council,http://opendatacommunities.org/doc/district-council/wyre,29/11/2022,People and Places,"Cultural, Environ and Planning",137B,Balfour Beatty Civil Engineering Ltd,30/11/2022,PE145624,4304.24,0.00,"FAO Chloe Sumner
Balfour Beatty Civil Engineering Ltd
Chaddock Lane 
Worsley
Manchester
M28 1XY

Tel, 0161 638 0800 Chloe.Sumner@balfourbeatty.com 

Wyre Beach Management Scheme Phase 2 - Preconstruction Works.

Cost 1,313,701.70",Contract (New CCR),04020
Wyre Council,http://opendatacommunities.org/doc/district-council/wyre,29/11/2022,People and Places,"Cultural, Environ and Planning",137B,Balfour Beatty Civil Engineering Ltd,14/11/2022,PE145309,359205.93,0.00,Wyre Beach Management Scheme Phase 1 - Preconstruction Works.  FAO Chloe Sumner Balfour Beatty Civil Engineering Ltd Chaddock Lane  Worsley Manchester M28 1XY,Contract (New CCR),04020
Wyre Council,http://opendatacommunities.org/doc/district-council/wyre,29/11/2022,Resources,Support Services,135B,SOCITM LTD,07/11/2022,RS145131,1995.00,0.00,Essential Membership 2023Membership period: 1st January 2023 - 31st December 2023,Corporate and Professional Subscriptions,45300
Wyre Council,http://opendatacommunities.org/doc/district-council/wyre,29/11/2022,People and Places,Support Services,135B,Sefton Council,01/11/2022,PE143024,500.00,0.00,North West Legal Consortium Annual Subscription 2022/23,Corporate and Professional Subscriptions,45300
Wyre Council,http://opendatacommunities.org/doc/district-council/wyre,29/11/2022,Resources,Cultural and Related Services,132A,VODAFONE LIMITED,28/11/2022,RS145528,24.00,0.00,Monthly Mobile phone charges invoice dated 15 October 2022,Corporate and Professional Subscriptions,45300
Wyre Council,http://opendatacommunities.org/doc/district-council/wyre,29/11/2022,Resources,Cultural and Related Services,132A,VODAFONE LIMITED,16/11/2022,RS143933,24.00,0.00,Monthly Mobile phone charges invoice dated September 2022,Corporate and Professional Subscriptions,45300
Wyre Council,http://opendatacommunities.org/doc/district-council/wyre,29/11/2022,Resources,Support Services,135B,Airborne Environmental Consultants LTD,16/11/2022,RS145405,785.00,0.00,"1/2 day Asbestos Sampling Refresher Course25th January 2023 9.00 - 13.00To be delivered at our premises, Civic Centre, Poulton Le Fylde in Committee Room 2",Corporate Training - Health and Safety,17002
Wyre Council,http://opendatacommunities.org/doc/district-council/wyre,29/11/2022,Resources,Support Services,135B,BRADLEY ENVIRONMENTAL CONSULTANTS LTD,24/11/2022,RS145555,1020.11,0.00,"To deliver NL Working with Asbestos, full course at our premises 18th November 2022as per booking form.All delegates will require a face fit test.  Please notify of appointment times in advanceValue includes travel and FFT costs.",Corporate Training - Health and Safety,17002
Wyre Council,http://opendatacommunities.org/doc/district-council/wyre,29/11/2022,Resources,Support Services,135B,BRADLEY ENVIRONMENTAL CONSULTANTS LTD,30/11/2022,RS145601,710.11,0.00,Order to replace RES0012283 raised on the incorrect supplier number  To deliver 1/2 day NL Refresher training,Corporate Training - Health and Safety,17002
Wyre Council,http://opendatacommunities.org/doc/district-council/wyre,29/11/2022,Finance,Current Assets,130B,,08/11/2022,WPST00082156,18583.46,0.00,CTAX-NNDR REFUNDS,Council Tax Refunds,01100
Wyre Council,http://opendatacommunities.org/doc/district-council/wyre,29/11/2022,Finance,Current Assets,130B,,23/11/2022,WPST00085225,11806.59,0.00,ctax refunds 18/11,Council Tax Refunds,01100
Wyre Council,http://opendatacommunities.org/doc/district-council/wyre,29/11/2022,Finance,Current Assets,130B,,29/11/2022,WPST00085930,38378.82,0.00,Ctax refund,Council Tax Refunds,01100
Wyre Council,http://opendatacommunities.org/doc/district-council/wyre,29/11/2022,Finance,Current Assets,130B,,15/11/2022,WPST00084176,32450.57,0.00,C/Tax refunds,Council Tax Refunds,01100
Wyre Council,http://opendatacommunities.org/doc/district-council/wyre,29/11/2022,Finance,Current Assets,130B,,04/11/2022,WPST00081651,20741.76,0.00,ctax refunds 19/8,Council Tax Refunds,01100
Wyre Council,http://opendatacommunities.org/doc/district-council/wyre,29/11/2022,Finance,Current Assets,130B,,02/11/2022,WPST00081226,17318.12,0.00,ctax refunds 28/10,Council Tax Refunds,01100
Wyre Council,http://opendatacommunities.org/doc/district-council/wyre,29/11/2022,Finance,Current Assets,130B,,04/11/2022,WPST00081622,9306.58,0.00,bounced ctax dds 2/11,Council Tax Refunds,01100
Wyre Council,http://opendatacommunities.org/doc/district-council/wyre,29/11/2022,Finance,Current Assets,130B,,04/11/2022,WPST00081743,17429.31,0.00,correcting incorrect posting 8/4,Council Tax Refunds,01100
Wyre Council,http://opendatacommunities.org/doc/district-council/wyre,29/11/2022,Finance,Current Assets,130B,,04/11/2022,WPST00081744,17429.31,0.00,8/4 ctax refund,Council Tax Refunds,01100
Wyre Council,http://opendatacommunities.org/doc/district-council/wyre,29/11/2022,Finance,Current Assets,130B,,04/11/2022,WPST00081745,21035.07,0.00,correcting incorrect posting 8/4,Council Tax Refunds,01100
Wyre Council,http://opendatacommunities.org/doc/district-council/wyre,29/11/2022,Finance,Current Assets,130B,,04/11/2022,WPST00081746,21035.07,0.00,ctax refund 14/4,Council Tax Refunds,01100
Wyre Council,http://opendatacommunities.org/doc/district-council/wyre,29/11/2022,People and Places,Support Services,135B,EK Motors Factors LTD,22/11/2022,PE145508,80.60,0.00,Parts,Daywork Materials (Excl.Tyres),30507
Wyre Council,http://opendatacommunities.org/doc/district-council/wyre,29/11/2022,People and Places,Environmental Services,132B,EK Motors Factors LTD,22/11/2022,PE145496,71.62,0.00,Parts,Daywork Materials (Excl.Tyres),30507
Wyre Council,http://opendatacommunities.org/doc/district-council/wyre,29/11/2022,People and Places,Support Services,135B,EK Motors Factors LTD,22/11/2022,PE145505,41.96,0.00,Parts,Daywork Materials (Excl.Tyres),30507
Wyre Council,http://opendatacommunities.org/doc/district-council/wyre,29/11/2022,People and Places,Support Services,135B,EK Motors Factors LTD,22/11/2022,PE145506,16.72,0.00,Parts,Daywork Materials (Excl.Tyres),30507
Wyre Council,http://opendatacommunities.org/doc/district-council/wyre,29/11/2022,People and Places,Environmental Services,132B,EK Motors Factors LTD,22/11/2022,PE145501,23.34,0.00,Parts,Daywork Materials (Excl.Tyres),30507
Wyre Council,http://opendatacommunities.org/doc/district-council/wyre,29/11/2022,People and Places,Environmental Services,132B,EK Motors Factors LTD,22/11/2022,PE145500,6.72,0.00,Parts,Daywork Materials (Excl.Tyres),30507
Wyre Council,http://opendatacommunities.org/doc/district-council/wyre,29/11/2022,People and Places,Environmental Services,132B,EK Motors Factors LTD,22/11/2022,PE145499,31.54,0.00,Parts,Daywork Materials (Excl.Tyres),30507
Wyre Council,http://opendatacommunities.org/doc/district-council/wyre,29/11/2022,People and Places,Environmental Services,132B,EK Motors Factors LTD,22/11/2022,PE145498,19.91,0.00,Parts,Daywork Materials (Excl.Tyres),30507
Wyre Council,http://opendatacommunities.org/doc/district-council/wyre,29/11/2022,People and Places,Environmental Services,132B,EK Motors Factors LTD,22/11/2022,PE145497,64.92,0.00,Parts,Daywork Materials (Excl.Tyres),30507
Wyre Council,http://opendatacommunities.org/doc/district-council/wyre,29/11/2022,People and Places,Environmental Services,132B,EK Motors Factors LTD,22/11/2022,PE145502,48.67,0.00,Parts,Daywork Materials (Excl.Tyres),30507
Wyre Council,http://opendatacommunities.org/doc/district-council/wyre,29/11/2022,People and Places,Support Services,135B,EK Motors Factors LTD,22/11/2022,PE145504,136.63,0.00,Parts,Daywork Materials (Excl.Tyres),30507
Wyre Council,http://opendatacommunities.org/doc/district-council/wyre,29/11/2022,People and Places,Support Services,135B,EK Motors Factors LTD,22/11/2022,PE145503,24.35,0.00,Parts,Daywork Materials (Excl.Tyres),30507
Wyre Council,http://opendatacommunities.org/doc/district-council/wyre,29/11/2022,People and Places,Cultural and Related Services,132A,EK Motors Factors LTD,22/11/2022,PE145495,7.66,0.00,Parts,Daywork Materials (Excl.Tyres),30507
Wyre Council,http://opendatacommunities.org/doc/district-council/wyre,29/11/2022,People and Places,Support Services,135B,EK Motors Factors LTD,22/11/2022,PE145507,8.73,0.00,Parts,Daywork Materials (Excl.Tyres),30507
Wyre Council,http://opendatacommunities.org/doc/district-council/wyre,29/11/2022,People and Places,Environmental Services,132B,Bucher Municipal Limited,29/11/2022,PE145520,182.81,0.00,Duct 270mm - Additional Jets W/Assy,Daywork Materials (Excl.Tyres),30507
Wyre Council,http://opendatacommunities.org/doc/district-council/wyre,29/11/2022,People and Places,Environmental Services,132B,Bucher Municipal Limited,08/11/2022,PE144811,233.66,0.00,Brush position cylinder s/assy,Daywork Materials (Excl.Tyres),30507
Wyre Council,http://opendatacommunities.org/doc/district-council/wyre,29/11/2022,People and Places,Environmental Services,132B,Bucher Municipal Limited,28/11/2022,PE145458,203.86,0.00,Parts,Daywork Materials (Excl.Tyres),30507
Wyre Council,http://opendatacommunities.org/doc/district-council/wyre,29/11/2022,People and Places,Environmental Services,132B,Bucher Municipal Limited,28/11/2022,PE145458,203.87,0.00,Parts,Daywork Materials (Excl.Tyres),30507
Wyre Council,http://opendatacommunities.org/doc/district-council/wyre,29/11/2022,People and Places,Environmental Services,132B,Bucher Municipal Limited,28/11/2022,PE145458,203.86,0.00,Parts,Daywork Materials (Excl.Tyres),30507
Wyre Council,http://opendatacommunities.org/doc/district-council/wyre,29/11/2022,People and Places,Environmental Services,132B,Bucher Municipal Limited,08/11/2022,PE144812,53.21,0.00,Brake light switch - Hydraulic M10x1,Daywork Materials (Excl.Tyres),30507
Wyre Council,http://opendatacommunities.org/doc/district-council/wyre,29/11/2022,People and Places,Environmental Services,132B,Bucher Municipal Limited,24/11/2022,PE144572,616.72,0.00,Tyre,Daywork Materials (Excl.Tyres),30507
Wyre Council,http://opendatacommunities.org/doc/district-council/wyre,29/11/2022,People and Places,Environmental Services,132B,Bucher Municipal Limited,23/11/2022,PE142546,171.24,0.00,Parts,Daywork Materials (Excl.Tyres),30507
Wyre Council,http://opendatacommunities.org/doc/district-council/wyre,29/11/2022,People and Places,Environmental Services,132B,Bucher Municipal Limited,04/11/2022,PE144985,1111.30,0.00,Retrofit package fan drive,Daywork Materials (Excl.Tyres),30507
Wyre Council,http://opendatacommunities.org/doc/district-council/wyre,29/11/2022,People and Places,Environmental Services,132B,Bucher Municipal Limited,28/11/2022,PE145458,203.87,0.00,Parts,Daywork Materials (Excl.Tyres),30507
Wyre Council,http://opendatacommunities.org/doc/district-council/wyre,29/11/2022,People and Places,Environmental Services,132B,Bucher Municipal Limited,24/11/2022,PE145443,82.00,0.00,Engine Electrical System labour,Daywork Materials (Excl.Tyres),30507
Wyre Council,http://opendatacommunities.org/doc/district-council/wyre,29/11/2022,People and Places,Environmental Services,132B,Bucher Municipal Limited,24/11/2022,PE145443,4.00,0.00,Consumables,Daywork Materials (Excl.Tyres),30507
Wyre Council,http://opendatacommunities.org/doc/district-council/wyre,29/11/2022,People and Places,Environmental Services,132B,Bucher Municipal Limited,24/11/2022,PE145443,69.09,0.00,Exhaust Pressure Sensor,Daywork Materials (Excl.Tyres),30507
Wyre Council,http://opendatacommunities.org/doc/district-council/wyre,29/11/2022,People and Places,Support Services,135B,Lancashire DAF,24/11/2022,PE145006,55.87,0.00,Part,Daywork Materials (Excl.Tyres),30507
Wyre Council,http://opendatacommunities.org/doc/district-council/wyre,29/11/2022,People and Places,Support Services,135B,Lancashire DAF,24/11/2022,PE144758,86.00,0.00,Part,Daywork Materials (Excl.Tyres),30507
Wyre Council,http://opendatacommunities.org/doc/district-council/wyre,29/11/2022,People and Places,Support Services,135B,Lancashire DAF,24/11/2022,PE144392,728.06,0.00,Parts,Daywork Materials (Excl.Tyres),30507
Wyre Council,http://opendatacommunities.org/doc/district-council/wyre,29/11/2022,People and Places,Environmental Services,132B,Lancashire DAF,24/11/2022,PE144757,207.67,0.00,Parts,Daywork Materials (Excl.Tyres),30507
Wyre Council,http://opendatacommunities.org/doc/district-council/wyre,29/11/2022,People and Places,Support Services,135B,Wood Auto Supplies LTD,29/11/2022,PE143948,579.53,0.00,Parts,Daywork Materials (Excl.Tyres),30507
Wyre Council,http://opendatacommunities.org/doc/district-council/wyre,29/11/2022,People and Places,Environmental Services,132B,RENTOKIL INITIAL UK LTD,22/11/2022,PE145529,1104.60,0.00,Clinical waste collection and disposal services to Wyre domestic customers.  To include provision of containers for financial year 2022/23,Disposal Costs Hazardous Waste,27012
Wyre Council,http://opendatacommunities.org/doc/district-council/wyre,29/11/2022,People and Places,Environmental Services,132B,N Power LTD,10/11/2022,PE145206,0.47,0.00,Unmetered Supply Civic Centre 01/10/22 to 31/10/22 Est,Electricity,22000
Wyre Council,http://opendatacommunities.org/doc/district-council/wyre,29/11/2022,People and Places,Environmental Services,132B,N Power LTD,10/11/2022,PE145205,307.32,0.00,Unmetered Supply lighting Civic Centre 01/10/22 to 31/10/22 Est,Electricity,22000
Wyre Council,http://opendatacommunities.org/doc/district-council/wyre,29/11/2022,People and Places,Environmental Services,132B,N Power LTD,10/11/2022,PE145206,0.04,0.00,Unmetered Supply Civic Centre 01/10/22 to 31/10/22 CCL,Electricity,22000
Wyre Council,http://opendatacommunities.org/doc/district-council/wyre,29/11/2022,People and Places,Parking Services,133F,N Power LTD,10/11/2022,PE145205,1723.54,0.00,Unmetered Supply lighting Civic Centre 01/10/22 to 31/10/22 Est,Electricity,22000
Wyre Council,http://opendatacommunities.org/doc/district-council/wyre,29/11/2022,People and Places,Parking Services,133F,N Power LTD,10/11/2022,PE145206,2.84,0.00,Unmetered Supply Civic Centre 01/10/22 to 31/10/22 Est,Electricity,22000
Wyre Council,http://opendatacommunities.org/doc/district-council/wyre,29/11/2022,People and Places,Parking Services,133F,N Power LTD,10/11/2022,PE145206,0.04,0.00,Unmetered Supply Civic Centre 01/10/22 to 31/10/22  CCL,Electricity,22000
Wyre Council,http://opendatacommunities.org/doc/district-council/wyre,29/11/2022,People and Places,Parking Services,133F,N Power LTD,10/11/2022,PE145207,456.97,0.00,Unmetered supply Lighting Civic Centre 01/10/22 to 31/10/22,Electricity,22000
Wyre Council,http://opendatacommunities.org/doc/district-council/wyre,29/11/2022,People and Places,Planning and Development Servs,132C,Drax Energy Solutions Limited,04/11/2022,PE144884,130.84,0.00,LL Supply Dock Avenue 01/09/22 to 30/09/22 Actual,Electricity,22000
Wyre Council,http://opendatacommunities.org/doc/district-council/wyre,29/11/2022,People and Places,Planning and Development Servs,132C,Drax Energy Solutions Limited,04/11/2022,PE144871,92.10,0.00,LL Supply Dock Avenue 10/08/22 to 31/08/22,Electricity,22000
Wyre Council,http://opendatacommunities.org/doc/district-council/wyre,29/11/2022,People and Places,Planning and Development Servs,132C,Drax Energy Solutions Limited,17/11/2022,PE145304,130.55,0.00,LL Supply 01/10/22 to 31/10/22 A,Electricity,22000
Wyre Council,http://opendatacommunities.org/doc/district-council/wyre,29/11/2022,People and Places,Planning and Development Servs,132C,Drax Energy Solutions Limited,17/11/2022,PE145303,142.83,0.00,Unit 10 01/10/22 to 31/10/22 A,Electricity,22000
Wyre Council,http://opendatacommunities.org/doc/district-council/wyre,29/11/2022,People and Places,Planning and Development Servs,132C,Drax Energy Solutions Limited,17/11/2022,PE145302,146.11,0.00,Unit 9 01/10/22 to 31/10/22 A,Electricity,22000
Wyre Council,http://opendatacommunities.org/doc/district-council/wyre,29/11/2022,People and Places,Planning and Development Servs,132C,Drax Energy Solutions Limited,17/11/2022,PE145301,155.93,0.00,Unit 8 01/10/22 to 31/10/22 A,Electricity,22000
Wyre Council,http://opendatacommunities.org/doc/district-council/wyre,29/11/2022,People and Places,Planning and Development Servs,132C,Drax Energy Solutions Limited,17/11/2022,PE145300,140.38,0.00,Unit 7B 01/10/22 to 31/10/22 A,Electricity,22000
Wyre Council,http://opendatacommunities.org/doc/district-council/wyre,29/11/2022,People and Places,Planning and Development Servs,132C,Drax Energy Solutions Limited,17/11/2022,PE145299,146.93,0.00,Unit 7A 01/10/22 to 31/10/22 A,Electricity,22000
Wyre Council,http://opendatacommunities.org/doc/district-council/wyre,29/11/2022,People and Places,Planning and Development Servs,132C,Drax Energy Solutions Limited,17/11/2022,PE145298,158.39,0.00,Unit 6 01/10/22 to 31/10/22 A,Electricity,22000
Wyre Council,http://opendatacommunities.org/doc/district-council/wyre,29/11/2022,People and Places,Planning and Development Servs,132C,Drax Energy Solutions Limited,17/11/2022,PE145297,145.29,0.00,Unit 5 01/10/22 to 31/10/22 A,Electricity,22000
Wyre Council,http://opendatacommunities.org/doc/district-council/wyre,29/11/2022,People and Places,Planning and Development Servs,132C,Drax Energy Solutions Limited,17/11/2022,PE144863,110.14,0.00,Unit 5 10/08/22 to 31/08/22 E/A,Electricity,22000
Wyre Council,http://opendatacommunities.org/doc/district-council/wyre,29/11/2022,People and Places,Planning and Development Servs,132C,Drax Energy Solutions Limited,17/11/2022,PE144870,110.14,0.00,Unit 10 10/08/22 to 31/08/22 E/A,Electricity,22000
Wyre Council,http://opendatacommunities.org/doc/district-council/wyre,29/11/2022,People and Places,Planning and Development Servs,132C,Drax Energy Solutions Limited,17/11/2022,PE144868,122.44,0.00,Unit 8 10/08/22 to 31/08/22 E/A,Electricity,22000
Wyre Council,http://opendatacommunities.org/doc/district-council/wyre,29/11/2022,People and Places,Planning and Development Servs,132C,Drax Energy Solutions Limited,17/11/2022,PE144865,110.96,0.00,Unit 4 10/08/22 to 31/08/22 E/A,Electricity,22000
Wyre Council,http://opendatacommunities.org/doc/district-council/wyre,29/11/2022,People and Places,Planning and Development Servs,132C,Drax Energy Solutions Limited,17/11/2022,PE144864,104.40,0.00,Unit 9 10/08/22 to 31/08/22 E/A,Electricity,22000
Wyre Council,http://opendatacommunities.org/doc/district-council/wyre,29/11/2022,People and Places,Planning and Development Servs,132C,Drax Energy Solutions Limited,17/11/2022,PE144881,178.26,0.00,Unit 8 01/09/22 to 30/09/22 A,Electricity,22000
Wyre Council,http://opendatacommunities.org/doc/district-council/wyre,29/11/2022,People and Places,Planning and Development Servs,132C,Drax Energy Solutions Limited,17/11/2022,PE144880,145.74,0.00,Unit 7B 01/09/22 to 30/09/22 A,Electricity,22000
Wyre Council,http://opendatacommunities.org/doc/district-council/wyre,29/11/2022,People and Places,Planning and Development Servs,132C,Drax Energy Solutions Limited,17/11/2022,PE144879,160.65,0.00,Unit 7A 01/09/22 to 30/09/22 A,Electricity,22000
Wyre Council,http://opendatacommunities.org/doc/district-council/wyre,29/11/2022,People and Places,Planning and Development Servs,132C,Drax Energy Solutions Limited,17/11/2022,PE144878,183.68,0.00,Unit 6 01/09/22 to 30/09/22 A,Electricity,22000
Wyre Council,http://opendatacommunities.org/doc/district-council/wyre,29/11/2022,People and Places,Planning and Development Servs,132C,Drax Energy Solutions Limited,17/11/2022,PE144877,159.29,0.00,Unit 5 01/09/22 to 30/09/22 A,Electricity,22000
Wyre Council,http://opendatacommunities.org/doc/district-council/wyre,29/11/2022,People and Places,Planning and Development Servs,132C,Drax Energy Solutions Limited,17/11/2022,PE144876,162.00,0.00,Unit 4 01/09/22 to 30/09/22 A,Electricity,22000
Wyre Council,http://opendatacommunities.org/doc/district-council/wyre,29/11/2022,People and Places,Planning and Development Servs,132C,Drax Energy Solutions Limited,17/11/2022,PE144873,110.96,0.00,Unit 7A 10/08/22 to 31/08/22 E/A,Electricity,22000
Wyre Council,http://opendatacommunities.org/doc/district-council/wyre,29/11/2022,People and Places,Planning and Development Servs,132C,Drax Energy Solutions Limited,17/11/2022,PE144872,100.30,0.00,Unit 7B 10/08/22 to 31/08/22 E/A,Electricity,22000
Wyre Council,http://opendatacommunities.org/doc/district-council/wyre,29/11/2022,People and Places,Planning and Development Servs,132C,Drax Energy Solutions Limited,17/11/2022,PE145296,148.57,0.00,Unit 4 01/10/22 to 31/10/22 A,Electricity,22000
Wyre Council,http://opendatacommunities.org/doc/district-council/wyre,29/11/2022,People and Places,Planning and Development Servs,132C,Drax Energy Solutions Limited,17/11/2022,PE144883,152.52,0.00,Unit 10 01/09/22 to 30/09/22 A,Electricity,22000
Wyre Council,http://opendatacommunities.org/doc/district-council/wyre,29/11/2022,People and Places,Planning and Development Servs,132C,Drax Energy Solutions Limited,17/11/2022,PE144882,153.87,0.00,Unit 9 01/09/22 to 30/09/22 A,Electricity,22000
Wyre Council,http://opendatacommunities.org/doc/district-council/wyre,29/11/2022,Finance,Central Services to the Public,131C,,04/11/2022,WPST00081652,27150.00,0.00,19/8,Energy Rebate Payment,45124
Wyre Council,http://opendatacommunities.org/doc/district-council/wyre,29/11/2022,People and Places,Cultural and Related Services,132A,Veolia ES (UK) LTD,03/11/2022,PE144991,1350.00,0.00,300 Trade Bags (15 packs of 20),Equipment for Resale,46811
Wyre Council,http://opendatacommunities.org/doc/district-council/wyre,29/11/2022,People and Places,Planning and Development Servs,132C,Function Central Ltd,02/11/2022,PE145078,1125.00,0.00,Balance for Bertie and Spiffs for Wyre Business Awards,Event Hospitality,46842
Wyre Council,http://opendatacommunities.org/doc/district-council/wyre,29/11/2022,People and Places,Planning and Development Servs,132C,Oddle Entertainment Agency Ltd,02/11/2022,PE145079,900.00,0.00,Balance for WBA - entertainment (magicians),Event Hospitality,46842
Wyre Council,http://opendatacommunities.org/doc/district-council/wyre,29/11/2022,People and Places,Cultural and Related Services,132A,Lancashire County Council,01/11/2022,PE144935,17.50,0.00,Room Hire 18/08/22 - Invoice reprocessed due to incorrect VAT code being used on the original invoice,External Contractor,46700
Wyre Council,http://opendatacommunities.org/doc/district-council/wyre,29/11/2022,Resources,Support Services,135B,Bates Office Services Ltd,29/11/2022,RS145595,177.75,0.00,Generally as per your quotation SQ532707 with reduced quanitity:15 x Wallace Fabric Plasters WAC10041 150 per pack  11.10 each1 x Pack 20 Burn Gel WAC13293  11.25,First Aid Supplies,40901
Wyre Council,http://opendatacommunities.org/doc/district-council/wyre,29/11/2022,People and Places,Environmental Services,132B,NWIFCA      N W Inshore Fisheries and Conservation,25/11/2022,PE145572,1362.00,0.00,For shellfish testing - April 2022 - March 2023,Food and Drug Etc Samples,46809
Wyre Council,http://opendatacommunities.org/doc/district-council/wyre,29/11/2022,People and Places,Environmental Services,132B,UK Health Security Agency,14/11/2022,PE142649,509.36,0.00,For shellfish testing -  April 2022 - March 2023,Food and Drug Etc Samples,46809
Wyre Council,http://opendatacommunities.org/doc/district-council/wyre,29/11/2022,People and Places,Support Services,135B,Allstar Business Solutions LTD,18/11/2022,PE144735,217.03,0.00,Fuel Charges for 29/09/22 to 14/10/22,Fuel,30500
Wyre Council,http://opendatacommunities.org/doc/district-council/wyre,29/11/2022,People and Places,Support Services,135B,Allstar Business Solutions LTD,18/11/2022,PE145074,227.73,0.00,AF20CXW fuel 21/09/22 to 28/10/23,Fuel,30500
Wyre Council,http://opendatacommunities.org/doc/district-council/wyre,29/11/2022,People and Places,Support Services,135B,Allstar Business Solutions LTD,23/11/2022,PE145445,259.95,0.00,Fuel Charges,Fuel,30500
Wyre Council,http://opendatacommunities.org/doc/district-council/wyre,29/11/2022,People and Places,Support Services,135B,Allstar Business Solutions LTD,18/11/2022,PE145074,368.15,0.00,AF20CXXX fuel 21/09/22 to 28/10/24,Fuel,30500
Wyre Council,http://opendatacommunities.org/doc/district-council/wyre,29/11/2022,People and Places,Support Services,135B,Allstar Business Solutions LTD,18/11/2022,PE144735,308.28,0.00,Fuel Charges for 29/09/22 to 14/10/22,Fuel,30500
Wyre Council,http://opendatacommunities.org/doc/district-council/wyre,29/11/2022,People and Places,Support Services,135B,Allstar Business Solutions LTD,23/11/2022,PE145445,253.66,0.00,Fuel Charges,Fuel,30500
Wyre Council,http://opendatacommunities.org/doc/district-council/wyre,29/11/2022,People and Places,Planning and Development Servs,132C,AvantiGas ON Ltd,08/11/2022,PE145165,4481.09,0.00,"Adelaide St, Fleetwood, FY7 6AB 01/10/22 to 31/10/22 Smart",Gas,22001
Wyre Council,http://opendatacommunities.org/doc/district-council/wyre,29/11/2022,People and Places,Cultural and Related Services,132A,AvantiGas ON Ltd,08/11/2022,PE145164,562.35,0.00,"Thornton Little Theatre, Victoria Road East, Thornton-Cleveleys, FY5 3SZ, 01/10/22 to 31/10/22 Estimate",Gas,22001
Wyre Council,http://opendatacommunities.org/doc/district-council/wyre,29/11/2022,People and Places,Support Services,135B,AvantiGas ON Ltd,08/11/2022,PE145166,3216.33,0.00,"Civic Centre, Breck Road, Poulton Le Fylde, FY6 7PU 01/10/22 to 31/10/22 Smart",Gas,22001
Wyre Council,http://opendatacommunities.org/doc/district-council/wyre,29/11/2022,People and Places,Planning and Development Servs,132C,AvantiGas ON Ltd,08/11/2022,PE145163,93.96,0.00,"copse Road Depot, Fleetwood, FY7 6RP 01/10/22 to 31/10/22 Smart",Gas,22001
Wyre Council,http://opendatacommunities.org/doc/district-council/wyre,29/11/2022,Resources,"Cultural, Environ and Planning",137B,JOHN KELLEY & JAMES PARR,29/11/2022,RS145604,19501.96,0.00,"Housing Grant: The Prince Arthur, Lord St, Fleetwood HSHAZ Grant",Grants and Advances,04060
Wyre Council,http://opendatacommunities.org/doc/district-council/wyre,29/11/2022,People and Places,Cultural and Related Services,132A,VISIT ENGLAND ASSESSMENT SERVICES AT THE AA,10/11/2022,PE145190,596.88,0.00,Visit England site visit / member renewal,Green Flag and Other Awards,46512
Wyre Council,http://opendatacommunities.org/doc/district-council/wyre,29/11/2022,Resources,Support Services,135B,Konica Minolta Business Solutions UK LTD,23/11/2022,RS145558,1100.74,0.00,Copy and print charges Equipment number: 26/02/2022-25/02/2023182585650318258564871825843155182585649318258564551825856489182585649018258431571825856492182586326718258564911825856452,Hire of Tools or Equipment,40101
Wyre Council,http://opendatacommunities.org/doc/district-council/wyre,29/11/2022,Resources,Support Services,135B,Konica Minolta Business Solutions UK LTD,02/11/2022,RS145099,6.17,0.00,18222507483 - Bizhub C3110 - Fleetwod Market CAB,Hire of Tools or Equipment,40101
Wyre Council,http://opendatacommunities.org/doc/district-council/wyre,29/11/2022,Resources,Support Services,135B,Konica Minolta Business Solutions UK LTD,09/11/2022,RS144700,408.90,0.00,Epson Surecolor SC-T5200 Dual Roll/URPE000449 - Equipment number 1821320823 - 01/04/2022 - 31/03/2023,Hire of Tools or Equipment,40101
Wyre Council,http://opendatacommunities.org/doc/district-council/wyre,29/11/2022,Resources,Support Services,135B,Konica Minolta Business Solutions UK LTD,09/11/2022,RS144699,43.53,0.00,18222507483 - Bizhub C3110 - Fleetwod Market CAB,Hire of Tools or Equipment,40101
Wyre Council,http://opendatacommunities.org/doc/district-council/wyre,29/11/2022,People and Places,Support Services,135B,M J Wilkinson,30/11/2022,PE145641,42.24,0.00,"Hire of Hitach ZX16 @ Fleetwood 
14/9/22",Hire of Tools or Equipment,40101
Wyre Council,http://opendatacommunities.org/doc/district-council/wyre,29/11/2022,People and Places,Support Services,135B,M J Wilkinson,30/11/2022,PE145641,42.22,0.00,Each way transport,Hire of Tools or Equipment,40101
Wyre Council,http://opendatacommunities.org/doc/district-council/wyre,29/11/2022,People and Places,Support Services,135B,M J Wilkinson,30/11/2022,PE145640,42.24,0.00,"Hire of Hitachi ZX16 @ Preesall
20/9/22",Hire of Tools or Equipment,40101
Wyre Council,http://opendatacommunities.org/doc/district-council/wyre,29/11/2022,People and Places,Support Services,135B,M J Wilkinson,30/11/2022,PE145640,42.22,0.00,Each way transport,Hire of Tools or Equipment,40101
Wyre Council,http://opendatacommunities.org/doc/district-council/wyre,29/11/2022,People and Places,Support Services,135B,M J Wilkinson,30/11/2022,PE145643,42.24,0.00,"Hite of Hitachi ZX16 @ Preesall
6/9/22",Hire of Tools or Equipment,40101
Wyre Council,http://opendatacommunities.org/doc/district-council/wyre,29/11/2022,People and Places,Support Services,135B,M J Wilkinson,30/11/2022,PE145643,42.22,0.00,"Each way transport 
6/9/22",Hire of Tools or Equipment,40101
Wyre Council,http://opendatacommunities.org/doc/district-council/wyre,29/11/2022,People and Places,Support Services,135B,M J Wilkinson,30/11/2022,PE145642,42.24,0.00,"Hire of Hitachi ZX16 @ Preesall 
9/9/22",Hire of Tools or Equipment,40101
Wyre Council,http://opendatacommunities.org/doc/district-council/wyre,29/11/2022,People and Places,Support Services,135B,M J Wilkinson,30/11/2022,PE145642,42.22,0.00,Each way transport,Hire of Tools or Equipment,40101
Wyre Council,http://opendatacommunities.org/doc/district-council/wyre,29/11/2022,People and Places,Environmental Services,132B,Poulton Pets LTD,07/11/2022,PE145175,1567.50,0.00,Provision of stray dog kennelling service 2022/23,Impounded Dogs Costs,46807
Wyre Council,http://opendatacommunities.org/doc/district-council/wyre,29/11/2022,Resources,Support Services,135B,Daisy Communications LTD,24/11/2022,RS145542,16.95,0.00,Monthly Phone Charges,Internet and Telephone Charges,43503
Wyre Council,http://opendatacommunities.org/doc/district-council/wyre,29/11/2022,Resources,Cultural and Related Services,132A,Daisy Communications LTD,24/11/2022,RS145542,10.71,0.00,Monthly Phone Charges,Internet and Telephone Charges,43503
Wyre Council,http://opendatacommunities.org/doc/district-council/wyre,29/11/2022,Resources,Support Services,135B,Daisy Communications LTD,24/11/2022,RS145542,21.42,0.00,Monthly Phone Charges,Internet and Telephone Charges,43503
Wyre Council,http://opendatacommunities.org/doc/district-council/wyre,29/11/2022,Resources,Support Services,135B,Daisy Communications LTD,24/11/2022,RS145542,44.26,0.00,Monthly Phone Charges,Internet and Telephone Charges,43503
Wyre Council,http://opendatacommunities.org/doc/district-council/wyre,29/11/2022,Resources,Cultural and Related Services,132A,Daisy Communications LTD,24/11/2022,RS145542,27.65,0.00,Monthly Phone Charges,Internet and Telephone Charges,43503
Wyre Council,http://opendatacommunities.org/doc/district-council/wyre,29/11/2022,Resources,Corporate and Democratic Core,131A,Daisy Communications LTD,24/11/2022,RS145542,10.73,0.00,Monthly Phone Charges,Internet and Telephone Charges,43503
Wyre Council,http://opendatacommunities.org/doc/district-council/wyre,29/11/2022,Resources,Support Services,135B,THE NETWORKING PEOPLE (TNP) LTD,07/11/2022,PE145139,3762.00,0.00,"0.1/0.1Gb Internet service at Fleetwood Market ? Market House Studio?s, FY7 1 3,762.00 20.0 3,762.00 6AB (Satellite site) - Annual Rental 17/12/2022 - 16/12/2023",Internet and Telephone Charges,43503
Wyre Council,http://opendatacommunities.org/doc/district-council/wyre,29/11/2022,Resources,Support Services,135B,THE NETWORKING PEOPLE (TNP) LTD,07/11/2022,PE145137,7585.00,0.00,1/1Gb Internet service at Wyre Council Civic Centre - Annual Rental 09/12/2022  - 08/12/2023,Internet and Telephone Charges,43503
Wyre Council,http://opendatacommunities.org/doc/district-council/wyre,29/11/2022,Resources,Support Services,135B,THE NETWORKING PEOPLE (TNP) LTD,07/11/2022,PE145138,300.00,0.00,Cloud Connect Standard Deployment - Annual rental 09/12/2022 - 08/12/2023,Internet and Telephone Charges,43503
Wyre Council,http://opendatacommunities.org/doc/district-council/wyre,29/11/2022,Resources,Support Services,135B,THE NETWORKING PEOPLE (TNP) LTD,07/11/2022,PE145138,2750.00,0.00,Cloud Connect 1000 concurrent users - Annual rental 09/12/2022 - 08/12/2023,Internet and Telephone Charges,43503
Wyre Council,http://opendatacommunities.org/doc/district-council/wyre,29/11/2022,People and Places,Cultural and Related Services,132A,Northern Citrus Products LTD,28/11/2022,PE145583,1080.97,0.00,Kiosk stock,Kiosk stock,41000
Wyre Council,http://opendatacommunities.org/doc/district-council/wyre,29/11/2022,Resources,Central Services to the Public,131C,Lancashire County Council,08/11/2022,RS145180,640.00,0.00,Wyre Council Con29 Searches for September 2022 - 40 @ 16.00 each,L.C.C. Search Fees,42700
Wyre Council,http://opendatacommunities.org/doc/district-council/wyre,29/11/2022,People and Places,Cultural and Related Services,132A,WINDMILL LAUNDRY,28/11/2022,PE145584,57.00,0.00,Marine Hall laundry,Laundry,41700
Wyre Council,http://opendatacommunities.org/doc/district-council/wyre,29/11/2022,People and Places,Cultural and Related Services,132A,WINDMILL LAUNDRY,09/11/2022,PE145241,37.60,0.00,Marine Hall Laundry,Laundry,41700
Wyre Council,http://opendatacommunities.org/doc/district-council/wyre,29/11/2022,People and Places,Cultural and Related Services,132A,WINDMILL LAUNDRY,09/11/2022,PE145240,107.80,0.00,Marine Hall laundry,Laundry,41700
Wyre Council,http://opendatacommunities.org/doc/district-council/wyre,29/11/2022,People and Places,Cultural and Related Services,132A,WINDMILL LAUNDRY,09/11/2022,PE145246,154.00,0.00,Laundry 26/5/22,Laundry,41700
Wyre Council,http://opendatacommunities.org/doc/district-council/wyre,29/11/2022,People and Places,Cultural and Related Services,132A,WINDMILL LAUNDRY,09/11/2022,PE145243,32.20,0.00,Laundry 3/11/22,Laundry,41700
Wyre Council,http://opendatacommunities.org/doc/district-council/wyre,29/11/2022,People and Places,Cultural and Related Services,132A,WINDMILL LAUNDRY,09/11/2022,PE145242,79.35,0.00,Laundry 29/6/22,Laundry,41700
Wyre Council,http://opendatacommunities.org/doc/district-council/wyre,29/11/2022,People and Places,Cultural and Related Services,132A,WINDMILL LAUNDRY,21/11/2022,PE145395,42.00,0.00,Marine Hall Laundry,Laundry,41700
Wyre Council,http://opendatacommunities.org/doc/district-council/wyre,29/11/2022,Resources,Support Services,135B,Forbes Solicitors,29/11/2022,RS145607,1152.00,0.00,Employment advice 28/09/2022 - 26/10/2022,Legal Fees,46300
Wyre Council,http://opendatacommunities.org/doc/district-council/wyre,29/11/2022,Resources,Support Services,135B,Forbes Solicitors,14/11/2022,RS145318,684.00,0.00,Legal Advice - 30.08.22 - 27.09.22,Legal Fees,46300
Wyre Council,http://opendatacommunities.org/doc/district-council/wyre,29/11/2022,Resources,Support Services,135B,Forbes Solicitors,14/11/2022,RS145332,1366.50,0.00,Legal advice - 27.07.22 - 29.08-22,Legal Fees,46300
Wyre Council,http://opendatacommunities.org/doc/district-council/wyre,29/11/2022,Resources,Support Services,135B,Forbes Solicitors,14/11/2022,RS145320,2419.00,0.00,Legal advice - 28.09.22 - 26.10.22,Legal Fees,46300
Wyre Council,http://opendatacommunities.org/doc/district-council/wyre,29/11/2022,People and Places,Support Services,135B,Lancashire DAF,24/11/2022,PE144767,91.00,0.00,MOT Test fee,Licences/MOT Certificates,30502
Wyre Council,http://opendatacommunities.org/doc/district-council/wyre,29/11/2022,People and Places,Support Services,135B,Lancashire DAF,24/11/2022,PE144767,40.00,0.00,MOT lane fee,Licences/MOT Certificates,30502
Wyre Council,http://opendatacommunities.org/doc/district-council/wyre,29/11/2022,People and Places,Planning and Development Servs,132C,DVLA,21/11/2022,PE145457,675.00,0.00,Brake tester 200headlight aligner 100Jacking beam 85post lift 200,Licences/MOT Certificates,30502
Wyre Council,http://opendatacommunities.org/doc/district-council/wyre,29/11/2022,Resources,Parking Services,133F,VODAFONE LIMITED,16/11/2022,RS143933,12.00,0.00,Monthly Mobile phone charges invoice dated September 2022,Maintenance of Tools or Equipment,40102
Wyre Council,http://opendatacommunities.org/doc/district-council/wyre,29/11/2022,Resources,Parking Services,133F,VODAFONE LIMITED,28/11/2022,RS145528,12.00,0.00,Monthly Mobile phone charges invoice dated 15 October 2022,Maintenance of Tools or Equipment,40102
Wyre Council,http://opendatacommunities.org/doc/district-council/wyre,29/11/2022,People and Places,Highways,133B,Dr Tree Surgeons,30/11/2022,PE145646,320.00,0.00,"Quote Number: 667 Ref: Preesall Cemetery 

1 The removal of three extending Popular limbs over the road. 320.00 

Also - Specification to additionally include one additional limb on the cemetery side of the tree with the largest roadside overhanging l",Maintenance of Trees and Shrubs,28006
Wyre Council,http://opendatacommunities.org/doc/district-council/wyre,29/11/2022,People and Places,Cultural and Related Services,132A,C & C Supplies Collinson LTD,03/11/2022,PE144359,41.25,0.00,1 x ton 40mm to dust,Materials and Consumables,42002
Wyre Council,http://opendatacommunities.org/doc/district-council/wyre,29/11/2022,People and Places,Cultural and Related Services,132A,C & C Supplies Collinson LTD,17/11/2022,PE143606,270.30,0.00,6 ton of 20m to dust,Materials and Consumables,42002
Wyre Council,http://opendatacommunities.org/doc/district-council/wyre,29/11/2022,People and Places,Cultural and Related Services,132A,C & C Supplies Collinson LTD,17/11/2022,PE143606,45.80,0.00,Postcrete bags for prow gate repairs in garstang,Materials and Consumables,42002
Wyre Council,http://opendatacommunities.org/doc/district-council/wyre,29/11/2022,People and Places,Support Services,135B,St Gobain Building Distribution LTD,16/11/2022,PE145327,490.00,0.00,Arch Posts Bob Greaves  R16175,Materials and Consumables,42002
Wyre Council,http://opendatacommunities.org/doc/district-council/wyre,29/11/2022,Resources,Housing General Fund,134A,St Gobain Building Distribution LTD,03/11/2022,RS145087,91.80,0.00,Invoice 0963/00114823,Materials and Consumables,42002
Wyre Council,http://opendatacommunities.org/doc/district-council/wyre,29/11/2022,People and Places,Support Services,135B,DLF Seeds LTD,24/11/2022,PE144503,295.60,0.00,Supply and deliver as per email quotation 21/9/22  3 x PM10 Greens             @7.39kg - 20kg bags,Materials and Consumables,42002
Wyre Council,http://opendatacommunities.org/doc/district-council/wyre,29/11/2022,People and Places,Support Services,135B,DLF Seeds LTD,24/11/2022,PE144503,95.80,0.00,"1 x PM90 coastal             @4.79kg - 20 kg bags   Delivery to Wyre Council, Copse Road Depot, Copse Road, Fleetwood, FY7 6RP.",Materials and Consumables,42002
Wyre Council,http://opendatacommunities.org/doc/district-council/wyre,29/11/2022,People and Places,Support Services,135B,DLF Seeds LTD,24/11/2022,PE144503,19.57,0.00,credit charge,Materials and Consumables,42002
Wyre Council,http://opendatacommunities.org/doc/district-council/wyre,29/11/2022,People and Places,Support Services,135B,DLF Seeds LTD,24/11/2022,PE144558,155.19,0.00,Supply and deliver as per email quotation 21/9/22  3 x PM10 Greens             @7.39kg - 20kg bags,Materials and Consumables,42002
Wyre Council,http://opendatacommunities.org/doc/district-council/wyre,29/11/2022,People and Places,Support Services,135B,DLF Seeds LTD,08/11/2022,PE144813,468.72,0.00,"Supply 3 bags of PM10 greens seed at 7.39 per kg for 20kg bags   Delivery to Wyre Council, Copse Road Depot, Copse Road, Fleetwood, FY7 6RP",Materials and Consumables,42002
Wyre Council,http://opendatacommunities.org/doc/district-council/wyre,29/11/2022,People and Places,Support Services,135B,DLF Seeds LTD,08/11/2022,PE144742,443.40,0.00,Supply 3 bags fof PM10 greens seed offset via PE144840,Materials and Consumables,42002
Wyre Council,http://opendatacommunities.org/doc/district-council/wyre,29/11/2022,People and Places,Support Services,135B,EK Motors Factors LTD,22/11/2022,PE145510,20.58,0.00,Parts,Materials and Consumables,42002
Wyre Council,http://opendatacommunities.org/doc/district-council/wyre,29/11/2022,People and Places,Support Services,135B,EK Motors Factors LTD,22/11/2022,PE145509,33.27,0.00,Parts,Materials and Consumables,42002
Wyre Council,http://opendatacommunities.org/doc/district-council/wyre,29/11/2022,People and Places,Support Services,135B,EK Motors Factors LTD,22/11/2022,PE145512,16.81,0.00,Parts,Materials and Consumables,42002
Wyre Council,http://opendatacommunities.org/doc/district-council/wyre,29/11/2022,People and Places,Support Services,135B,EK Motors Factors LTD,22/11/2022,PE145514,21.09,0.00,Parts,Materials and Consumables,42002
Wyre Council,http://opendatacommunities.org/doc/district-council/wyre,29/11/2022,People and Places,Support Services,135B,EK Motors Factors LTD,22/11/2022,PE145513,27.82,0.00,Parts,Materials and Consumables,42002
Wyre Council,http://opendatacommunities.org/doc/district-council/wyre,29/11/2022,People and Places,Support Services,135B,EK Motors Factors LTD,22/11/2022,PE145511,9.81,0.00,Parts,Materials and Consumables,42002
Wyre Council,http://opendatacommunities.org/doc/district-council/wyre,29/11/2022,People and Places,Support Services,135B,Glasdon UK LTD,14/11/2022,PE145002,486.70,0.00,"Supply 1 no Phoenix bench  Plaque to read;                 Tim Smith          Stadium Manager            Loved by many          United till he died  Draft wording subject to approval   Delivery to  Wyre Council, Copse Road Depot, Copse Road, Fleetwood, FY",Materials and Consumables,42002
Wyre Council,http://opendatacommunities.org/doc/district-council/wyre,29/11/2022,People and Places,Support Services,135B,Key Engineering & Hygiene Supplies LTD,15/11/2022,PE143358,149.00,0.00,SUPPLY AS PER QUOTATION 20/ 5/22 14102 1 of 1 DELTA6BE 6 BLUE 2 PLY CENTREFEED ROLLS 150M X 175MM EMBOSSED 15.32 EACH 91.92 SPC100ML/SPLIT 10 STOKODERM SUN PROTECT 50 PURE 100ML TUBE 7.87 EACH -22.75 60.80 BB15BLKONE 10 B/FIELD ULTIMATE COTTON CAP BLACK O,Materials and Consumables,42002
Wyre Council,http://opendatacommunities.org/doc/district-council/wyre,29/11/2022,People and Places,Support Services,135B,Key Engineering & Hygiene Supplies LTD,15/11/2022,PE143358,308.00,0.00,SUPPLY AND DELIVER AS PER QUOTATION 14619 X027 20 EXTRA STRONG BLACK REFUSE SACK 18X29X38 180G 15KG (PER 200) 15.40 EACH 308.00 GN090C1 20 GREEN REFUSE SACK 18X29X39 12KG/90LTR 200 PER BOX 18.25 EACH 365.00  673.0,Materials and Consumables,42002
Wyre Council,http://opendatacommunities.org/doc/district-council/wyre,29/11/2022,People and Places,Support Services,135B,Key Engineering & Hygiene Supplies LTD,24/11/2022,PE144047,180.30,0.00,"SUPPLY AS YOUR QUOTATION 15631INKPEARL/5LTR 4 PINK PEARL PEARLISED HAND, WASH & HAIR SHAMPOO 5 LTR 8.52 EACH 34.08EASY150B 15 852438 BLUE 2 PLY CENTREFEED ROLLS 150M X 175MM 417 SHEETS 13.53 EACH 202.95FINALTOUCH/750M 6 FINAL TOUCH READY TO USE BACT",Materials and Consumables,42002
Wyre Council,http://opendatacommunities.org/doc/district-council/wyre,29/11/2022,People and Places,Support Services,135B,Key Engineering & Hygiene Supplies LTD,24/11/2022,PE144047,103.15,0.00,"SUPPLY AS YOUR QUOTATION 15631INKPEARL/5LTR 4 PINK PEARL PEARLISED HAND, WASH & HAIR SHAMPOO 5 LTR 8.52 EACH 34.08EASY150B 15 852438 BLUE 2 PLY CENTREFEED ROLLS 150M X 175MM 417 SHEETS 13.53 EACH 202.95FINALTOUCH/750M 6 FINAL TOUCH READY TO USE BACT",Materials and Consumables,42002
Wyre Council,http://opendatacommunities.org/doc/district-council/wyre,29/11/2022,People and Places,Support Services,135B,Lubbe & Sons (Bulbs) LTD,14/11/2022,PE145324,600.00,0.00,Narcissi Obvallaris,Materials and Consumables,42002
Wyre Council,http://opendatacommunities.org/doc/district-council/wyre,29/11/2022,People and Places,Support Services,135B,Lubbe & Sons (Bulbs) LTD,14/11/2022,PE145324,320.00,0.00,Large Flowering Crocus (mixed),Materials and Consumables,42002
Wyre Council,http://opendatacommunities.org/doc/district-council/wyre,29/11/2022,People and Places,Support Services,135B,Lubbe & Sons (Bulbs) LTD,14/11/2022,PE145324,100.00,0.00,Plant health inspection & Handling,Materials and Consumables,42002
Wyre Council,http://opendatacommunities.org/doc/district-council/wyre,29/11/2022,People and Places,Support Services,135B,Lubbe & Sons (Bulbs) LTD,14/11/2022,PE145333,540.00,0.00,Hyacinthoides non-scripta,Materials and Consumables,42002
Wyre Council,http://opendatacommunities.org/doc/district-council/wyre,29/11/2022,People and Places,Planning and Development Servs,132C,Malcolm McCulloch & Sons LTD,22/11/2022,PE145518,139.50,0.00,Toilet rolls,Materials and Consumables,42002
Wyre Council,http://opendatacommunities.org/doc/district-council/wyre,29/11/2022,People and Places,Support Services,135B,Malcolm McCulloch & Sons LTD,22/11/2022,PE145518,179.85,0.00,Chainsaw oil,Materials and Consumables,42002
Wyre Council,http://opendatacommunities.org/doc/district-council/wyre,29/11/2022,People and Places,Support Services,135B,Malcolm McCulloch & Sons LTD,22/11/2022,PE145518,2044.64,0.00,Q8,Materials and Consumables,42002
Wyre Council,http://opendatacommunities.org/doc/district-council/wyre,29/11/2022,Resources,Environmental Services,132B, Travis Perkins Trading CO LTD,30/11/2022,RS145605,570.00,0.00,120 bags poatcrete @  4.75,Materials and Consumables,42002
Wyre Council,http://opendatacommunities.org/doc/district-council/wyre,29/11/2022,People and Places,Support Services,135B,Broxap,16/11/2022,PE145407,640.00,0.00,"Supply and deliver X 1 BX/DC 8960    -    Heavyweight steel socketed Goal             =502 (Pair) goal only We require nets and supports, then please add 138 to the total price Total =551 ex vat (689 if you require nets and supports)",Materials and Consumables,42002
Wyre Council,http://opendatacommunities.org/doc/district-council/wyre,29/11/2022,People and Places,Support Services,135B,Broxap,16/11/2022,PE145407,49.00,0.00,"Carriage 49Delivery to Wyre Council, Copse Road Depot, Copse Road, Fleetwood, FY7 6RP.",Materials and Consumables,42002
Wyre Council,http://opendatacommunities.org/doc/district-council/wyre,29/11/2022,People and Places,Support Services,135B,Agrovista UK LTD,22/11/2022,PE144546,601.65,0.00,9 x 500m2 packs of Sportnem T (Nematodes) @ 66.85 / pack,Materials and Consumables,42002
Wyre Council,http://opendatacommunities.org/doc/district-council/wyre,29/11/2022,People and Places,Support Services,135B,Agrovista UK LTD,21/11/2022,PE145473,50.00,0.00,Delivery,Materials and Consumables,42002
Wyre Council,http://opendatacommunities.org/doc/district-council/wyre,29/11/2022,People and Places,Support Services,135B,Agrovista UK LTD,21/11/2022,PE145473,429.60,0.00,Lawn sand,Materials and Consumables,42002
Wyre Council,http://opendatacommunities.org/doc/district-council/wyre,29/11/2022,People and Places,Support Services,135B,Agrovista UK LTD,07/11/2022,PE145173,206.00,0.00,Supply and deliver as your email quotation 14/9/22 40 x 25kg Boughton County Loam @ 5.15 / bag,Materials and Consumables,42002
Wyre Council,http://opendatacommunities.org/doc/district-council/wyre,29/11/2022,People and Places,Support Services,135B,Agrovista UK LTD,07/11/2022,PE145174,138.00,0.00, to supply and deliver 4 x bags of Naturelle Micro Autumn 5-0-21 @ 29.50 / bag plus 20 carriage,Materials and Consumables,42002
Wyre Council,http://opendatacommunities.org/doc/district-council/wyre,29/11/2022,People and Places,Support Services,135B,Walkers Nurseries & Plant Centre,14/11/2022,PE145316,3726.50,0.00,"Supply Winter Bedding as quotation 5/8/2022 - 6 PK Size (Delivery end October early November subject to confirmation).Delivered to Wyre Council, Copse Road Depot, Copse Road, Fleetwood, FY7 6RP",Materials and Consumables,42002
Wyre Council,http://opendatacommunities.org/doc/district-council/wyre,29/11/2022,People and Places,Support Services,135B,Walkers Nurseries & Plant Centre,14/11/2022,PE145341,729.00,0.00,"Supply and deliver 180 x 13cm pre hardened white chrysanthemums @ 4.05 each for delivery to Copse Road on the Thursday 11th November 2021 prior to remembrance Sunday   Delivery to Wyre Council, Copse Road Depot, Fleetwood, Lancashire, FY7 6RP.",Materials and Consumables,42002
Wyre Council,http://opendatacommunities.org/doc/district-council/wyre,29/11/2022,People and Places,Cultural and Related Services,132A,HUWS GRAY LTD,24/11/2022,PE145144,79.86,0.00,post crete and sand,Materials and Consumables,42002
Wyre Council,http://opendatacommunities.org/doc/district-council/wyre,29/11/2022,People and Places,Support Services,135B,HUWS GRAY LTD,16/11/2022,PE144477,62.62,0.00,Materials Keith urwin,Materials and Consumables,42002
Wyre Council,http://opendatacommunities.org/doc/district-council/wyre,29/11/2022,People and Places,Support Services,135B,HUWS GRAY LTD,16/11/2022,PE144477,94.16,0.00,4 x Milwaukee organizer 23.54x4,Materials and Consumables,42002
Wyre Council,http://opendatacommunities.org/doc/district-council/wyre,29/11/2022,People and Places,Support Services,135B,HUWS GRAY LTD,24/11/2022,PE145144,18.22,0.00,Materials,Materials and Consumables,42002
Wyre Council,http://opendatacommunities.org/doc/district-council/wyre,29/11/2022,People and Places,Support Services,135B,HUWS GRAY LTD,24/11/2022,PE145144,55.61,0.00,Goods Keith Urwin parks,Materials and Consumables,42002
Wyre Council,http://opendatacommunities.org/doc/district-council/wyre,29/11/2022,People and Places,Support Services,135B,HUWS GRAY LTD,24/11/2022,PE145144,34.99,0.00,Goods Keith Urwin parks - safety boots,Materials and Consumables,42002
Wyre Council,http://opendatacommunities.org/doc/district-council/wyre,29/11/2022,People and Places,Cultural and Related Services,132A,HUWS GRAY LTD,16/11/2022,PE144477,167.94,0.00,1 ton 20mm to dust 10 x 3 by 4,Materials and Consumables,42002
Wyre Council,http://opendatacommunities.org/doc/district-council/wyre,29/11/2022,Resources,Environmental Services,132B,George Hewitt Fabrications,21/11/2022,RS145469,15204.00,0.00,"To fabricate handrails at Ellerbeck and Coronation Road, Cleveleys @ 7602 each",Materials and Consumables,42002
Wyre Council,http://opendatacommunities.org/doc/district-council/wyre,29/11/2022,People and Places,Support Services,135B,The Pitchmark Group Ltd,30/11/2022,PE145614,1380.00,0.00,"Supply and deliver as per quotation QTE-7807 - Wyre Council  15 Nov
60 (8-1CON/010) Elements 8:1 Concentrate Paint - White - 10L 23.00 1,380.00 20.00% 1,656.00",Materials and Consumables,42002
Wyre Council,http://opendatacommunities.org/doc/district-council/wyre,29/11/2022,People and Places,Support Services,135B,The Pitchmark Group Ltd,30/11/2022,PE145614,60.00,0.00,"1 Delivery (Full Pallet) 60.00 60.00 20.00% 72.00
Total Net 1,440.00

Delivery to Wyre Council, Copse Road Depot, Copse Road, Fleetwood, FY7 6RP.",Materials and Consumables,42002
Wyre Council,http://opendatacommunities.org/doc/district-council/wyre,29/11/2022,People and Places,Support Services,135B,TARMAC TRADING LTD,11/11/2022,PE145128,636.08,0.00,"Concrete 25.10.2022Memorial Park, FleetwoodTicket no: 2000640144",Materials and Consumables,42002
Wyre Council,http://opendatacommunities.org/doc/district-council/wyre,29/11/2022,People and Places,Environmental Services,132B,TARMAC TRADING LTD,24/11/2022,PE145551,304.00,0.00,Concrete 5 bar gate  Ticket 2000643633 3/11/22,Materials and Consumables,42002
Wyre Council,http://opendatacommunities.org/doc/district-council/wyre,29/11/2022,People and Places,Environmental Services,132B,TARMAC TRADING LTD,04/11/2022,PE144862,302.00,0.00,Concrete 14.10.2022 5 Barr Gate North promenade  ticket no 2000636541,Materials and Consumables,42002
Wyre Council,http://opendatacommunities.org/doc/district-council/wyre,29/11/2022,People and Places,Support Services,135B,Logistics UK,17/11/2022,RS144319,1250.00,0.00,Public Services Membership,Membership Fees,46828
Wyre Council,http://opendatacommunities.org/doc/district-council/wyre,29/11/2022,Resources,Housing General Fund,134A,Huck Properties LTD,14/11/2022,RS145310,820.00,0.00,REDACT,Minor Adaptations,45261
Wyre Council,http://opendatacommunities.org/doc/district-council/wyre,29/11/2022,Resources,Housing General Fund,134A,Mobility Care Services,11/11/2022,RS145269,132.00,0.00,REDACT,Minor Adaptations,45261
Wyre Council,http://opendatacommunities.org/doc/district-council/wyre,29/11/2022,Resources,Housing General Fund,134A,Mobility Care Services,11/11/2022,RS145271,198.00,0.00,REDACT,Minor Adaptations,45261
Wyre Council,http://opendatacommunities.org/doc/district-council/wyre,29/11/2022,Resources,Housing General Fund,134A,Mobility Care Services,11/11/2022,RS145270,66.00,0.00,REDACT,Minor Adaptations,45261
Wyre Council,http://opendatacommunities.org/doc/district-council/wyre,29/11/2022,Resources,Housing General Fund,134A,Mobility Care Services,11/11/2022,RS145275,550.00,0.00,REDACT,Minor Adaptations,45261
Wyre Council,http://opendatacommunities.org/doc/district-council/wyre,29/11/2022,Resources,Housing General Fund,134A,Mobility Care Services,11/11/2022,RS145274,420.00,0.00,REDACT,Minor Adaptations,45261
Wyre Council,http://opendatacommunities.org/doc/district-council/wyre,29/11/2022,Resources,Housing General Fund,134A,Mobility Care Services,22/11/2022,RS145493,132.00,0.00,REDACT,Minor Adaptations,45261
Wyre Council,http://opendatacommunities.org/doc/district-council/wyre,29/11/2022,Resources,Housing General Fund,134A,Mobility Care Services,22/11/2022,RS145492,66.00,0.00,REDACT,Minor Adaptations,45261
Wyre Council,http://opendatacommunities.org/doc/district-council/wyre,29/11/2022,Resources,Housing General Fund,134A,Mobility Care Services,22/11/2022,RS145491,132.00,0.00,REDACT,Minor Adaptations,45261
Wyre Council,http://opendatacommunities.org/doc/district-council/wyre,29/11/2022,Resources,Housing General Fund,134A,Mobility Care Services,22/11/2022,RS145490,132.00,0.00,REDACT,Minor Adaptations,45261
Wyre Council,http://opendatacommunities.org/doc/district-council/wyre,29/11/2022,Resources,Housing General Fund,134A,Mobility Care Services,22/11/2022,RS145489,132.00,0.00,REDACT,Minor Adaptations,45261
Wyre Council,http://opendatacommunities.org/doc/district-council/wyre,29/11/2022,Resources,Housing General Fund,134A,Mobility Care Services,22/11/2022,RS145488,66.00,0.00,REDACT,Minor Adaptations,45261
Wyre Council,http://opendatacommunities.org/doc/district-council/wyre,29/11/2022,Resources,Housing General Fund,134A,Mobility Care Services,22/11/2022,RS145487,132.00,0.00,REDACT,Minor Adaptations,45261
Wyre Council,http://opendatacommunities.org/doc/district-council/wyre,29/11/2022,Resources,Housing General Fund,134A,Mobility Care Services,22/11/2022,RS145486,132.00,0.00,REDACT,Minor Adaptations,45261
Wyre Council,http://opendatacommunities.org/doc/district-council/wyre,29/11/2022,Resources,Housing General Fund,134A,Mobility Care Services,22/11/2022,RS145485,66.00,0.00,REDACT,Minor Adaptations,45261
Wyre Council,http://opendatacommunities.org/doc/district-council/wyre,29/11/2022,Resources,Housing General Fund,134A,Mobility Care Services,21/11/2022,RS145484,66.00,0.00,REDACT,Minor Adaptations,45261
Wyre Council,http://opendatacommunities.org/doc/district-council/wyre,29/11/2022,Resources,Housing General Fund,134A,Mobility Care Services,21/11/2022,RS145483,133.00,0.00,REDACT,Minor Adaptations,45261
Wyre Council,http://opendatacommunities.org/doc/district-council/wyre,29/11/2022,Resources,Housing General Fund,134A,Mobility Care Services,21/11/2022,RS145482,720.00,0.00,REDACT,Minor Adaptations,45261
Wyre Council,http://opendatacommunities.org/doc/district-council/wyre,29/11/2022,Resources,Housing General Fund,134A,Mobility Care Services,11/11/2022,RS145273,650.00,0.00,REDACT,Minor Adaptations,45261
Wyre Council,http://opendatacommunities.org/doc/district-council/wyre,29/11/2022,Resources,Housing General Fund,134A,Mobility Care Services,11/11/2022,RS145272,198.00,0.00,REDACT,Minor Adaptations,45261
Wyre Council,http://opendatacommunities.org/doc/district-council/wyre,29/11/2022,Resources,Housing General Fund,134A,J A DICKENS LIMITED,11/11/2022,RS145283,300.00,0.00,REDACT,Minor Adaptations,45261
Wyre Council,http://opendatacommunities.org/doc/district-council/wyre,29/11/2022,Resources,Housing General Fund,134A,J A DICKENS LIMITED,11/11/2022,RS145283,370.00,0.00,REDACT,Minor Adaptations,45261
Wyre Council,http://opendatacommunities.org/doc/district-council/wyre,29/11/2022,Resources,Housing General Fund,134A,J A DICKENS LIMITED,11/11/2022,RS145284,60.00,0.00,REDACT,Minor Adaptations,45261
Wyre Council,http://opendatacommunities.org/doc/district-council/wyre,29/11/2022,Resources,Housing General Fund,134A,J A DICKENS LIMITED,11/11/2022,RS145284,30.00,0.00,REDACT,Minor Adaptations,45261
Wyre Council,http://opendatacommunities.org/doc/district-council/wyre,29/11/2022,Resources,Housing General Fund,134A,J A DICKENS LIMITED,11/11/2022,RS145285,240.00,0.00,REDACT,Minor Adaptations,45261
Wyre Council,http://opendatacommunities.org/doc/district-council/wyre,29/11/2022,Resources,Housing General Fund,134A,J A DICKENS LIMITED,11/11/2022,RS145285,240.00,0.00,REDACT,Minor Adaptations,45261
Wyre Council,http://opendatacommunities.org/doc/district-council/wyre,29/11/2022,Resources,Housing General Fund,134A,J A DICKENS LIMITED,11/11/2022,RS145286,300.00,0.00,REDACT,Minor Adaptations,45261
Wyre Council,http://opendatacommunities.org/doc/district-council/wyre,29/11/2022,Resources,Housing General Fund,134A,J A DICKENS LIMITED,11/11/2022,RS145286,270.00,0.00,REDACT,Minor Adaptations,45261
Wyre Council,http://opendatacommunities.org/doc/district-council/wyre,29/11/2022,Resources,Housing General Fund,134A,J A DICKENS LIMITED,11/11/2022,RS145279,100.00,0.00,REDACT,Minor Adaptations,45261
Wyre Council,http://opendatacommunities.org/doc/district-council/wyre,29/11/2022,Resources,Housing General Fund,134A,J A DICKENS LIMITED,11/11/2022,RS145279,208.00,0.00,REDACT,Minor Adaptations,45261
Wyre Council,http://opendatacommunities.org/doc/district-council/wyre,29/11/2022,Resources,Housing General Fund,134A,J A DICKENS LIMITED,11/11/2022,RS145287,100.00,0.00,REDACT,Minor Adaptations,45261
Wyre Council,http://opendatacommunities.org/doc/district-council/wyre,29/11/2022,Resources,Housing General Fund,134A,J A DICKENS LIMITED,11/11/2022,RS145280,100.00,0.00,REDACT,Minor Adaptations,45261
Wyre Council,http://opendatacommunities.org/doc/district-council/wyre,29/11/2022,Resources,Housing General Fund,134A,J A DICKENS LIMITED,11/11/2022,RS145280,208.00,0.00,REDACT,Minor Adaptations,45261
Wyre Council,http://opendatacommunities.org/doc/district-council/wyre,29/11/2022,Resources,Housing General Fund,134A,J A DICKENS LIMITED,11/11/2022,RS145281,100.00,0.00,REDACT,Minor Adaptations,45261
Wyre Council,http://opendatacommunities.org/doc/district-council/wyre,29/11/2022,Resources,Housing General Fund,134A,J A DICKENS LIMITED,11/11/2022,RS145281,208.00,0.00,REDACT,Minor Adaptations,45261
Wyre Council,http://opendatacommunities.org/doc/district-council/wyre,29/11/2022,Resources,Housing General Fund,134A,J A DICKENS LIMITED,11/11/2022,RS145282,100.00,0.00,REDACT,Minor Adaptations,45261
Wyre Council,http://opendatacommunities.org/doc/district-council/wyre,29/11/2022,Resources,Housing General Fund,134A,J A DICKENS LIMITED,11/11/2022,RS145282,208.00,0.00,REDACT,Minor Adaptations,45261
Wyre Council,http://opendatacommunities.org/doc/district-council/wyre,29/11/2022,Resources,Housing General Fund,134A,J A DICKENS LIMITED,15/11/2022,RS145346,40.00,0.00,REDACT,Minor Adaptations,45261
Wyre Council,http://opendatacommunities.org/doc/district-council/wyre,29/11/2022,Resources,Housing General Fund,134A,J A DICKENS LIMITED,15/11/2022,RS145344,70.00,0.00,REDACT,Minor Adaptations,45261
Wyre Council,http://opendatacommunities.org/doc/district-council/wyre,29/11/2022,Resources,Housing General Fund,134A,J A DICKENS LIMITED,15/11/2022,RS145344,84.00,0.00,REDACT,Minor Adaptations,45261
Wyre Council,http://opendatacommunities.org/doc/district-council/wyre,29/11/2022,Resources,Housing General Fund,134A,J A DICKENS LIMITED,15/11/2022,RS145345,70.00,0.00,REDACT,Minor Adaptations,45261
Wyre Council,http://opendatacommunities.org/doc/district-council/wyre,29/11/2022,Resources,Housing General Fund,134A,J A DICKENS LIMITED,15/11/2022,RS145345,84.00,0.00,REDACT,Minor Adaptations,45261
Wyre Council,http://opendatacommunities.org/doc/district-council/wyre,29/11/2022,Resources,Housing General Fund,134A,J A DICKENS LIMITED,15/11/2022,RS145346,84.00,0.00,REDACT,Minor Adaptations,45261
Wyre Council,http://opendatacommunities.org/doc/district-council/wyre,29/11/2022,Resources,Housing General Fund,134A,J A DICKENS LIMITED,15/11/2022,RS145346,30.00,0.00,REDACT,Minor Adaptations,45261
Wyre Council,http://opendatacommunities.org/doc/district-council/wyre,29/11/2022,Resources,Housing General Fund,134A,J A DICKENS LIMITED,15/11/2022,RS145347,60.00,0.00,REDACT,Minor Adaptations,45261
Wyre Council,http://opendatacommunities.org/doc/district-council/wyre,29/11/2022,Resources,Housing General Fund,134A,J A DICKENS LIMITED,15/11/2022,RS145347,84.00,0.00,REDACT,Minor Adaptations,45261
Wyre Council,http://opendatacommunities.org/doc/district-council/wyre,29/11/2022,Resources,Housing General Fund,134A,J A DICKENS LIMITED,15/11/2022,RS145347,10.00,0.00,REDACT,Minor Adaptations,45261
Wyre Council,http://opendatacommunities.org/doc/district-council/wyre,29/11/2022,Resources,Housing General Fund,134A,J A DICKENS LIMITED,21/11/2022,RS145481,166.00,0.00,REDACT,Minor Adaptations,45261
Wyre Council,http://opendatacommunities.org/doc/district-council/wyre,29/11/2022,Resources,Housing General Fund,134A,J A DICKENS LIMITED,21/11/2022,RS145481,100.00,0.00,REDACT,Minor Adaptations,45261
Wyre Council,http://opendatacommunities.org/doc/district-council/wyre,29/11/2022,Resources,Housing General Fund,134A,J A DICKENS LIMITED,21/11/2022,RS145478,60.00,0.00,REDACT,Minor Adaptations,45261
Wyre Council,http://opendatacommunities.org/doc/district-council/wyre,29/11/2022,Resources,Housing General Fund,134A,J A DICKENS LIMITED,21/11/2022,RS145478,73.00,0.00,REDACT,Minor Adaptations,45261
Wyre Council,http://opendatacommunities.org/doc/district-council/wyre,29/11/2022,Resources,Housing General Fund,134A,J A DICKENS LIMITED,21/11/2022,RS145479,200.00,0.00,REDACT,Minor Adaptations,45261
Wyre Council,http://opendatacommunities.org/doc/district-council/wyre,29/11/2022,Resources,Housing General Fund,134A,J A DICKENS LIMITED,21/11/2022,RS145479,241.00,0.00,REDACT,Minor Adaptations,45261
Wyre Council,http://opendatacommunities.org/doc/district-council/wyre,29/11/2022,Resources,Housing General Fund,134A,J A DICKENS LIMITED,11/11/2022,RS145287,187.00,0.00,REDACT,Minor Adaptations,45261
Wyre Council,http://opendatacommunities.org/doc/district-council/wyre,29/11/2022,Resources,Housing General Fund,134A,J A DICKENS LIMITED,11/11/2022,RS145289,340.00,0.00,REDACT,Minor Adaptations,45261
Wyre Council,http://opendatacommunities.org/doc/district-council/wyre,29/11/2022,Resources,Housing General Fund,134A,J A DICKENS LIMITED,11/11/2022,RS145289,230.00,0.00,REDACT,Minor Adaptations,45261
Wyre Council,http://opendatacommunities.org/doc/district-council/wyre,29/11/2022,Resources,Housing General Fund,134A,J A DICKENS LIMITED,21/11/2022,PE145480,166.00,0.00,REDACT,Minor Adaptations,45261
Wyre Council,http://opendatacommunities.org/doc/district-council/wyre,29/11/2022,Resources,Housing General Fund,134A,J A DICKENS LIMITED,21/11/2022,PE145480,100.00,0.00,REDACT,Minor Adaptations,45261
Wyre Council,http://opendatacommunities.org/doc/district-council/wyre,29/11/2022,Resources,Housing General Fund,134A,J A DICKENS LIMITED,21/11/2022,RS145476,70.00,0.00,REDACT,Minor Adaptations,45261
Wyre Council,http://opendatacommunities.org/doc/district-council/wyre,29/11/2022,Resources,Housing General Fund,134A,J A DICKENS LIMITED,21/11/2022,RS145476,84.00,0.00,REDACT,Minor Adaptations,45261
Wyre Council,http://opendatacommunities.org/doc/district-council/wyre,29/11/2022,Resources,Housing General Fund,134A,J A DICKENS LIMITED,21/11/2022,RS145477,150.00,0.00,REDACT,Minor Adaptations,45261
Wyre Council,http://opendatacommunities.org/doc/district-council/wyre,29/11/2022,Resources,Housing General Fund,134A,J A DICKENS LIMITED,21/11/2022,RS145477,158.00,0.00,REDACT,Minor Adaptations,45261
Wyre Council,http://opendatacommunities.org/doc/district-council/wyre,29/11/2022,Resources,Current Assets,130B,Cyclescheme LTD,24/11/2022,RS145566,1000.00,0.00,Invoice number: W661290,Miscellaneous Debits,01600
Wyre Council,http://opendatacommunities.org/doc/district-council/wyre,29/11/2022,Resources,Current Assets,130B,SME HCI Ltd,10/11/2022,RS144689,1185.90,0.00,INVOICE NUMBER: 140592,Miscellaneous Debits,01600
Wyre Council,http://opendatacommunities.org/doc/district-council/wyre,29/11/2022,Resources,Current Assets,130B,SME HCI Ltd,10/11/2022,RS144690,3229.80,0.00,INVOICE NUMBER: 141024,Miscellaneous Debits,01600
Wyre Council,http://opendatacommunities.org/doc/district-council/wyre,29/11/2022,Resources,Current Assets,130B,SME HCI Ltd,10/11/2022,RS144691,3130.00,0.00,INVOICE NUMBER: 141491,Miscellaneous Debits,01600
Wyre Council,http://opendatacommunities.org/doc/district-council/wyre,29/11/2022,Resources,Support Services,135B,VODAFONE LIMITED,28/11/2022,RS145528,12.00,0.00,Monthly Mobile phone charges invoice dated 15 October 2022,Mobile Devices,43103
Wyre Council,http://opendatacommunities.org/doc/district-council/wyre,29/11/2022,Resources,Support Services,135B,VODAFONE LIMITED,16/11/2022,RS143933,12.00,0.00,Monthly Mobile phone charges invoice dated September 2022,Mobile Devices,43103
Wyre Council,http://opendatacommunities.org/doc/district-council/wyre,29/11/2022,Resources,Support Services,135B,VODAFONE LIMITED,28/11/2022,RS145528,197.20,0.00,Monthly Mobile phone charges invoice dated 15 October 2022,Mobile Devices,43103
Wyre Council,http://opendatacommunities.org/doc/district-council/wyre,29/11/2022,Resources,Support Services,135B,VODAFONE LIMITED,28/11/2022,RS145528,12.00,0.00,Monthly Mobile phone charges invoice dated 15 October 2022,Mobile Devices,43103
Wyre Council,http://opendatacommunities.org/doc/district-council/wyre,29/11/2022,Resources,Support Services,135B,VODAFONE LIMITED,16/11/2022,RS143933,184.00,0.00,Monthly Mobile phone charges invoice dated September 2022,Mobile Devices,43103
Wyre Council,http://opendatacommunities.org/doc/district-council/wyre,29/11/2022,Resources,Support Services,135B,VODAFONE LIMITED,16/11/2022,RS143933,12.00,0.00,Monthly Mobile phone charges invoice dated September 2022,Mobile Devices,43103
Wyre Council,http://opendatacommunities.org/doc/district-council/wyre,29/11/2022,Resources,Support Services,135B,VODAFONE LIMITED,16/11/2022,RS143933,64.00,0.00,Monthly Mobile phone charges invoice dated September 2022,Mobile Devices,43103
Wyre Council,http://opendatacommunities.org/doc/district-council/wyre,29/11/2022,Resources,Support Services,135B,VODAFONE LIMITED,28/11/2022,RS145528,64.00,0.00,Monthly Mobile phone charges invoice dated 15 October 2022,Mobile Devices,43103
Wyre Council,http://opendatacommunities.org/doc/district-council/wyre,29/11/2022,Resources,Cultural and Related Services,132A,VODAFONE LIMITED,28/11/2022,RS145528,12.00,0.00,Monthly Mobile phone charges invoice dated 15 October 2022,Mobile Devices,43103
Wyre Council,http://opendatacommunities.org/doc/district-council/wyre,29/11/2022,Resources,Cultural and Related Services,132A,VODAFONE LIMITED,16/11/2022,RS143933,12.00,0.00,Monthly Mobile phone charges invoice dated September 2022,Mobile Devices,43103
Wyre Council,http://opendatacommunities.org/doc/district-council/wyre,29/11/2022,Resources,Corporate and Democratic Core,131A,VODAFONE LIMITED,28/11/2022,RS145528,12.00,0.00,Monthly Mobile phone charges invoice dated 15 October 2022,Mobile Devices,43103
Wyre Council,http://opendatacommunities.org/doc/district-council/wyre,29/11/2022,Resources,Corporate and Democratic Core,131A,VODAFONE LIMITED,16/11/2022,RS143933,12.00,0.00,Monthly Mobile phone charges invoice dated September 2022,Mobile Devices,43103
Wyre Council,http://opendatacommunities.org/doc/district-council/wyre,29/11/2022,Resources,Environmental Services,132B,VODAFONE LIMITED,16/11/2022,RS143933,80.00,0.00,Monthly Mobile phone charges invoice dated September 2022,Mobile Devices,43103
Wyre Council,http://opendatacommunities.org/doc/district-council/wyre,29/11/2022,Resources,Environmental Services,132B,VODAFONE LIMITED,28/11/2022,RS145528,80.00,0.00,Monthly Mobile phone charges invoice dated 15 October 2022,Mobile Devices,43103
Wyre Council,http://opendatacommunities.org/doc/district-council/wyre,29/11/2022,Resources,Cultural and Related Services,132A,VODAFONE LIMITED,16/11/2022,RS143933,33.00,0.00,Monthly Mobile phone charges invoice dated September 2022,Mobile Devices,43103
Wyre Council,http://opendatacommunities.org/doc/district-council/wyre,29/11/2022,Resources,Cultural and Related Services,132A,VODAFONE LIMITED,28/11/2022,RS145528,5.00,0.00,Monthly Mobile phone charges invoice dated 15 October 2022,Mobile Devices,43103
Wyre Council,http://opendatacommunities.org/doc/district-council/wyre,29/11/2022,Resources,Support Services,135B,VODAFONE LIMITED,28/11/2022,RS145528,15.61,0.00,Monthly Mobile phone charges invoice dated 15 October 2022,Mobile Devices,43103
Wyre Council,http://opendatacommunities.org/doc/district-council/wyre,29/11/2022,Resources,Support Services,135B,VODAFONE LIMITED,16/11/2022,RS143933,12.00,0.00,Monthly Mobile phone charges invoice dated September 2022,Mobile Devices,43103
Wyre Council,http://opendatacommunities.org/doc/district-council/wyre,29/11/2022,Resources,Environmental Services,132B,VODAFONE LIMITED,28/11/2022,RS145528,26.33,0.00,Monthly Mobile phone charges invoice dated 15 October 2022,Mobile Devices,43103
Wyre Council,http://opendatacommunities.org/doc/district-council/wyre,29/11/2022,Resources,Environmental Services,132B,VODAFONE LIMITED,16/11/2022,RS143933,37.00,0.00,Monthly Mobile phone charges invoice dated September 2022,Mobile Devices,43103
Wyre Council,http://opendatacommunities.org/doc/district-council/wyre,29/11/2022,Resources,Planning and Development Servs,132C,VODAFONE LIMITED,16/11/2022,RS143933,12.00,0.00,Monthly Mobile phone charges invoice dated September 2022,Mobile Devices,43103
Wyre Council,http://opendatacommunities.org/doc/district-council/wyre,29/11/2022,Resources,Planning and Development Servs,132C,VODAFONE LIMITED,28/11/2022,RS145528,12.00,0.00,Monthly Mobile phone charges invoice dated 15 October 2022,Mobile Devices,43103
Wyre Council,http://opendatacommunities.org/doc/district-council/wyre,29/11/2022,Resources,Housing General Fund,134A,VODAFONE LIMITED,28/11/2022,RS145528,67.92,0.00,Monthly Mobile phone charges invoice dated 15 October 2022,Mobile Devices,43103
Wyre Council,http://opendatacommunities.org/doc/district-council/wyre,29/11/2022,Resources,Housing General Fund,134A,VODAFONE LIMITED,16/11/2022,RS143933,64.00,0.00,Monthly Mobile phone charges invoice dated September 2022,Mobile Devices,43103
Wyre Council,http://opendatacommunities.org/doc/district-council/wyre,29/11/2022,Resources,Housing General Fund,134A,VODAFONE LIMITED,16/11/2022,RS143933,4.00,0.00,Monthly Mobile phone charges invoice dated September 2022,Mobile Devices,43103
Wyre Council,http://opendatacommunities.org/doc/district-council/wyre,29/11/2022,Resources,Housing General Fund,134A,VODAFONE LIMITED,28/11/2022,RS145528,4.00,0.00,Monthly Mobile phone charges invoice dated 15 October 2022,Mobile Devices,43103
Wyre Council,http://opendatacommunities.org/doc/district-council/wyre,29/11/2022,Resources,Support Services,135B,VODAFONE LIMITED,28/11/2022,RS145528,16.00,0.00,Monthly Mobile phone charges invoice dated 15 October 2022,Mobile Devices,43103
Wyre Council,http://opendatacommunities.org/doc/district-council/wyre,29/11/2022,Resources,Support Services,135B,VODAFONE LIMITED,16/11/2022,RS143933,16.00,0.00,Monthly Mobile phone charges invoice dated September 2022,Mobile Devices,43103
Wyre Council,http://opendatacommunities.org/doc/district-council/wyre,29/11/2022,Resources,Support Services,135B,VODAFONE LIMITED,28/11/2022,RS145528,180.00,0.00,Monthly Mobile phone charges invoice dated 15 October 2022,Mobile Devices,43103
Wyre Council,http://opendatacommunities.org/doc/district-council/wyre,29/11/2022,Resources,Support Services,135B,VODAFONE LIMITED,28/11/2022,RS145528,12.00,0.00,Monthly Mobile phone charges invoice dated 15 October 2022,Mobile Devices,43103
Wyre Council,http://opendatacommunities.org/doc/district-council/wyre,29/11/2022,Resources,Support Services,135B,VODAFONE LIMITED,16/11/2022,RS143933,190.03,0.00,Monthly Mobile phone charges invoice dated September 2022,Mobile Devices,43103
Wyre Council,http://opendatacommunities.org/doc/district-council/wyre,29/11/2022,Resources,Support Services,135B,VODAFONE LIMITED,16/11/2022,RS143933,12.00,0.00,Monthly Mobile phone charges invoice dated September 2022,Mobile Devices,43103
Wyre Council,http://opendatacommunities.org/doc/district-council/wyre,29/11/2022,Resources,Support Services,135B,VODAFONE LIMITED,16/11/2022,RS143933,56.00,0.00,Monthly Mobile phone charges invoice dated September 2022,Mobile Devices,43103
Wyre Council,http://opendatacommunities.org/doc/district-council/wyre,29/11/2022,Resources,Support Services,135B,VODAFONE LIMITED,28/11/2022,RS145528,57.73,0.00,Monthly Mobile phone charges invoice dated 15 October 2022,Mobile Devices,43103
Wyre Council,http://opendatacommunities.org/doc/district-council/wyre,29/11/2022,Resources,Central Services to the Public,131C,VODAFONE LIMITED,16/11/2022,RS143933,12.00,0.00,Monthly Mobile phone charges invoice dated September 2022,Mobile Devices,43103
Wyre Council,http://opendatacommunities.org/doc/district-council/wyre,29/11/2022,Resources,Central Services to the Public,131C,VODAFONE LIMITED,28/11/2022,RS145528,12.00,0.00,Monthly Mobile phone charges invoice dated 15 October 2022,Mobile Devices,43103
Wyre Council,http://opendatacommunities.org/doc/district-council/wyre,29/11/2022,Resources,Central Services to the Public,131C,VODAFONE LIMITED,28/11/2022,RS145528,12.00,0.00,Monthly Mobile phone charges invoice dated 15 October 2022,Mobile Devices,43103
Wyre Council,http://opendatacommunities.org/doc/district-council/wyre,29/11/2022,Resources,Central Services to the Public,131C,VODAFONE LIMITED,16/11/2022,RS143933,12.00,0.00,Monthly Mobile phone charges invoice dated September 2022,Mobile Devices,43103
Wyre Council,http://opendatacommunities.org/doc/district-council/wyre,29/11/2022,Resources,Support Services,135B,VODAFONE LIMITED,16/11/2022,RS143933,12.00,0.00,Monthly Mobile phone charges invoice dated September 2022,Mobile Devices,43103
Wyre Council,http://opendatacommunities.org/doc/district-council/wyre,29/11/2022,Resources,Support Services,135B,VODAFONE LIMITED,28/11/2022,RS145528,12.00,0.00,Monthly Mobile phone charges invoice dated 15 October 2022,Mobile Devices,43103
Wyre Council,http://opendatacommunities.org/doc/district-council/wyre,29/11/2022,Resources,Support Services,135B,VODAFONE LIMITED,28/11/2022,RS145528,12.00,0.00,Monthly Mobile phone charges invoice dated 15 October 2022,Mobile Devices,43103
Wyre Council,http://opendatacommunities.org/doc/district-council/wyre,29/11/2022,Resources,Support Services,135B,VODAFONE LIMITED,16/11/2022,RS143933,12.00,0.00,Monthly Mobile phone charges invoice dated September 2022,Mobile Devices,43103
Wyre Council,http://opendatacommunities.org/doc/district-council/wyre,29/11/2022,Resources,Support Services,135B,VODAFONE LIMITED,28/11/2022,RS145528,36.00,0.00,Monthly Mobile phone charges invoice dated 15 October 2022,Mobile Devices,43103
Wyre Council,http://opendatacommunities.org/doc/district-council/wyre,29/11/2022,Resources,Support Services,135B,VODAFONE LIMITED,16/11/2022,RS143933,36.00,0.00,Monthly Mobile phone charges invoice dated September 2022,Mobile Devices,43103
Wyre Council,http://opendatacommunities.org/doc/district-council/wyre,29/11/2022,Resources,Support Services,135B,VODAFONE LIMITED,16/11/2022,RS143933,235.00,0.00,Monthly Mobile phone charges invoice dated September 2022,Mobile Devices,43103
Wyre Council,http://opendatacommunities.org/doc/district-council/wyre,29/11/2022,Resources,Support Services,135B,VODAFONE LIMITED,28/11/2022,RS145528,487.61,0.00,Monthly Mobile phone charges invoice dated 15 October 2022,Mobile Devices,43103
Wyre Council,http://opendatacommunities.org/doc/district-council/wyre,29/11/2022,Resources,Support Services,135B,VODAFONE LIMITED,28/11/2022,RS145528,36.00,0.00,Monthly Mobile phone charges invoice dated 15 October 2022,Mobile Devices,43103
Wyre Council,http://opendatacommunities.org/doc/district-council/wyre,29/11/2022,Resources,Support Services,135B,VODAFONE LIMITED,16/11/2022,RS143933,36.00,0.00,Monthly Mobile phone charges invoice dated September 2022,Mobile Devices,43103
Wyre Council,http://opendatacommunities.org/doc/district-council/wyre,29/11/2022,Resources,Support Services,135B,VODAFONE LIMITED,16/11/2022,RS143933,53.00,0.00,Monthly Mobile phone charges invoice dated September 2022,Mobile Devices,43103
Wyre Council,http://opendatacommunities.org/doc/district-council/wyre,29/11/2022,Resources,Support Services,135B,VODAFONE LIMITED,28/11/2022,RS145528,42.33,0.00,Monthly Mobile phone charges invoice dated 15 October 2022,Mobile Devices,43103
Wyre Council,http://opendatacommunities.org/doc/district-council/wyre,29/11/2022,Resources,Support Services,135B,VODAFONE LIMITED,28/11/2022,RS145528,12.00,0.00,Monthly Mobile phone charges invoice dated 15 October 2022,Mobile Devices,43103
Wyre Council,http://opendatacommunities.org/doc/district-council/wyre,29/11/2022,Resources,Support Services,135B,VODAFONE LIMITED,16/11/2022,RS143933,12.00,0.00,Monthly Mobile phone charges invoice dated September 2022,Mobile Devices,43103
Wyre Council,http://opendatacommunities.org/doc/district-council/wyre,29/11/2022,Resources,Support Services,135B,VODAFONE LIMITED,16/11/2022,RS143933,328.05,0.00,Monthly Mobile phone charges invoice dated September 2022,Mobile Devices,43103
Wyre Council,http://opendatacommunities.org/doc/district-council/wyre,29/11/2022,Resources,Support Services,135B,VODAFONE LIMITED,28/11/2022,RS145528,47.33,0.00,Monthly Mobile phone charges invoice dated 15 October 2022,Mobile Devices,43103
Wyre Council,http://opendatacommunities.org/doc/district-council/wyre,29/11/2022,Resources,Cultural and Related Services,132A,VODAFONE LIMITED,16/11/2022,RS143933,4.00,0.00,Monthly Mobile phone charges invoice dated September 2022,Mobile Devices,43103
Wyre Council,http://opendatacommunities.org/doc/district-council/wyre,29/11/2022,Resources,Cultural and Related Services,132A,VODAFONE LIMITED,28/11/2022,RS145528,1.03,0.00,Monthly Mobile phone charges invoice dated 15 October 2022,Mobile Devices,43103
Wyre Council,http://opendatacommunities.org/doc/district-council/wyre,29/11/2022,Resources,Support Services,135B,VODAFONE LIMITED,28/11/2022,RS145528,133.22,0.00,Monthly Mobile phone charges invoice dated 15 October 2022,Mobile Devices,43103
Wyre Council,http://opendatacommunities.org/doc/district-council/wyre,29/11/2022,Resources,Support Services,135B,VODAFONE LIMITED,16/11/2022,RS143933,86.32,0.00,Monthly Mobile phone charges invoice dated September 2022,Mobile Devices,43103
Wyre Council,http://opendatacommunities.org/doc/district-council/wyre,29/11/2022,Resources,Support Services,135B,VODAFONE LIMITED,16/11/2022,RS143933,1006.73,0.00,Monthly Mobile phone charges invoice dated September 2022,Mobile Devices,43103
Wyre Council,http://opendatacommunities.org/doc/district-council/wyre,29/11/2022,Resources,Support Services,135B,VODAFONE LIMITED,28/11/2022,RS145528,38.00,0.00,Monthly Mobile phone charges invoice dated 15 October 2022,Mobile Devices,43103
Wyre Council,http://opendatacommunities.org/doc/district-council/wyre,29/11/2022,Resources,Support Services,135B,VODAFONE LIMITED,28/11/2022,RS145528,20.00,0.00,Monthly Mobile phone charges invoice dated 15 October 2022,Mobile Devices,43103
Wyre Council,http://opendatacommunities.org/doc/district-council/wyre,29/11/2022,Resources,Support Services,135B,VODAFONE LIMITED,16/11/2022,RS143933,20.00,0.00,Monthly Mobile phone charges invoice dated September 2022,Mobile Devices,43103
Wyre Council,http://opendatacommunities.org/doc/district-council/wyre,29/11/2022,Resources,Support Services,135B,VODAFONE LIMITED,16/11/2022,RS143933,202.45,0.00,Monthly Mobile phone charges invoice dated September 2022,Mobile Devices,43103
Wyre Council,http://opendatacommunities.org/doc/district-council/wyre,29/11/2022,Resources,Support Services,135B,VODAFONE LIMITED,28/11/2022,RS145528,148.00,0.00,Monthly Mobile phone charges invoice dated 15 October 2022,Mobile Devices,43103
Wyre Council,http://opendatacommunities.org/doc/district-council/wyre,29/11/2022,People and Places,Planning and Development Servs,132C,Huq Industries Ltd,09/11/2022,PE145235,1000.00,0.00,4x 12 Month Town Centre Footfall Monitoring,Monitoring/Evaluation,46922
Wyre Council,http://opendatacommunities.org/doc/district-council/wyre,29/11/2022,Finance,Current Assets,130B,,08/11/2022,WPST00082155,122304.63,0.00,CTAX-NNDR REFUNDS,NNDR Refunds,01200
Wyre Council,http://opendatacommunities.org/doc/district-council/wyre,29/11/2022,Finance,Current Assets,130B,,04/11/2022,WPST00081742,3613.16,0.00,nndr refund 14/4,NNDR Refunds,01200
Wyre Council,http://opendatacommunities.org/doc/district-council/wyre,29/11/2022,Finance,Current Assets,130B,,04/11/2022,WPST00081650,54382.66,0.00,nndr refunds 19/8,NNDR Refunds,01200
Wyre Council,http://opendatacommunities.org/doc/district-council/wyre,29/11/2022,Finance,Current Assets,130B,,23/11/2022,WPST00085226,44227.21,0.00,nndr refunds 18/11,NNDR Refunds,01200
Wyre Council,http://opendatacommunities.org/doc/district-council/wyre,29/11/2022,Finance,Current Assets,130B,,04/11/2022,WPST00081739,2937.23,0.00,reversing incorrect nndr refund posting,NNDR Refunds,01200
Wyre Council,http://opendatacommunities.org/doc/district-council/wyre,29/11/2022,Finance,Current Assets,130B,,04/11/2022,WPST00081740,2937.23,0.00,nndr refunds 8/4,NNDR Refunds,01200
Wyre Council,http://opendatacommunities.org/doc/district-council/wyre,29/11/2022,Finance,Current Assets,130B,,04/11/2022,WPST00081741,3613.16,0.00,correcting incorrect posting 14/4,NNDR Refunds,01200
Wyre Council,http://opendatacommunities.org/doc/district-council/wyre,29/11/2022,Finance,Current Assets,130B,,02/11/2022,WPST00081227,11839.88,0.00,nndr refunds 28/10,NNDR Refunds,01200
Wyre Council,http://opendatacommunities.org/doc/district-council/wyre,29/11/2022,Finance,Current Assets,130B,,15/11/2022,WPST00084177,28356.21,0.00,NNDR refunds,NNDR Refunds,01200
Wyre Council,http://opendatacommunities.org/doc/district-council/wyre,29/11/2022,Finance,Current Assets,130B,,29/11/2022,WPST00085928,43246.99,0.00,NNDR refund,NNDR Refunds,01200
Wyre Council,http://opendatacommunities.org/doc/district-council/wyre,29/11/2022,Finance,General Fund below the line,136A,DEPARTMENT FOR COMMUNITIES AND LOCAL GOVERNMENT,03/11/2022,WPST00081542,547001.00,0.00,rvbc 19/10,NNDR Tariff to Government,54000
Wyre Council,http://opendatacommunities.org/doc/district-council/wyre,29/11/2022,Finance,General Fund below the line,136A,DEPARTMENT FOR COMMUNITIES AND LOCAL GOVERNMENT,23/11/2022,WPST00085281,547001.00,0.00,rvbc 21/11,NNDR Tariff to Government,54000
Wyre Council,http://opendatacommunities.org/doc/district-council/wyre,29/11/2022,Finance,Collection Fund Revenue Accts,138A,DEPARTMENT FOR COMMUNITIES AND LOCAL GOVERNMENT,03/11/2022,WPST00081545,866408.00,0.00,DLUHC - Business Rates CentralShare19/10,NNDR Tariff to Government,54000
Wyre Council,http://opendatacommunities.org/doc/district-council/wyre,29/11/2022,Finance,Collection Fund Revenue Accts,138A,DEPARTMENT FOR COMMUNITIES AND LOCAL GOVERNMENT,23/11/2022,WPST00085282,866408.00,0.00,DLUHC - Business Rates CentralShare21/11,NNDR Tariff to Government,54000
Wyre Council,http://opendatacommunities.org/doc/district-council/wyre,29/11/2022,Resources,Support Services,135B,People Asset Management LTD,10/11/2022,RS145237,-990.08,0.00,RE: PE143013. Monthly Occupational Health Services Aug 22 - account moved from FF to PAYG,Occupational Health Fees,18007
Wyre Council,http://opendatacommunities.org/doc/district-council/wyre,29/11/2022,Resources,Support Services,135B,Karen Openshaw Consultancy,28/11/2022,RS145582,520.00,0.00,To provision of Listening Ear and Mindfulness sessions 1 Apr 2022 - 31 March 2023,Occupational Health Fees,18007
Wyre Council,http://opendatacommunities.org/doc/district-council/wyre,29/11/2022,People and Places,Environmental Services,132B,DANFO (UK) LTD,08/11/2022,PE145194,21763.10,0.00,Public Conveniences - Maintenance and Cleaning 2022/23,Other Establishments,56000
Wyre Council,http://opendatacommunities.org/doc/district-council/wyre,29/11/2022,People and Places,Environmental Services,132B,DANFO (UK) LTD,16/11/2022,PE145411,21763.10,0.00,Public Conveniences - Maintenance and Cleaning 2022/23,Other Establishments,56000
Wyre Council,http://opendatacommunities.org/doc/district-council/wyre,29/11/2022,Finance,Collection Fund Revenue Accts,138A,LANCASHIRE COUNTY COUNCIL,30/11/2022,WPST00085980,5754977.00,0.00,Lancashire County Council22/23 Council,Other Local Authorities,52000
Wyre Council,http://opendatacommunities.org/doc/district-council/wyre,29/11/2022,Finance,Collection Fund Revenue Accts,138A,,30/11/2022,WPST00085981,136649.00,0.00,lcc 21/22 Council Tax Deficit,Other Local Authorities,52000
Wyre Council,http://opendatacommunities.org/doc/district-council/wyre,29/11/2022,Finance,Collection Fund Revenue Accts,138A,LANCASHIRE FIRE AUTHORITY,30/11/2022,WPST00085984,293661.00,0.00,Lancashire Fire22/23 Council Tax,Other Local Authorities,52000
Wyre Council,http://opendatacommunities.org/doc/district-council/wyre,29/11/2022,Finance,Collection Fund Revenue Accts,138A,,30/11/2022,WPST00085985,6782.00,0.00,Lancashire Fire21/22 Council Tax Defici,Other Local Authorities,52000
Wyre Council,http://opendatacommunities.org/doc/district-council/wyre,29/11/2022,Finance,Collection Fund Revenue Accts,138A,,30/11/2022,WPST00085988,898615.00,0.00,PCC 22/23 Council Tax,Other Local Authorities,52000
Wyre Council,http://opendatacommunities.org/doc/district-council/wyre,29/11/2022,Finance,Collection Fund Revenue Accts,138A,,30/11/2022,WPST00085989,21250.00,0.00,PCC21/22 Council Tax Deficit,Other Local Authorities,52000
Wyre Council,http://opendatacommunities.org/doc/district-council/wyre,29/11/2022,Finance,Collection Fund Revenue Accts,138A,LANCASHIRE FIRE AUTHORITY,30/11/2022,WPST00085986,21660.00,0.00,Lancashire Fire22/23 Business Rates,Other Local Authorities,52000
Wyre Council,http://opendatacommunities.org/doc/district-council/wyre,29/11/2022,Finance,Collection Fund Revenue Accts,138A,,30/11/2022,WPST00085982,194942.00,0.00,lcc 22/23 Business Rates,Other Local Authorities,52000
Wyre Council,http://opendatacommunities.org/doc/district-council/wyre,29/11/2022,People and Places,Parking Services,133F,Park Now Limited,07/11/2022,PE144559,498.76,0.00,RingGo fees 1 April 2022 - 31 March 2023 - service charges - text summary charges - text reminder charges - card processing fees,Other Parking Fees and Commission,42622
Wyre Council,http://opendatacommunities.org/doc/district-council/wyre,29/11/2022,People and Places,Parking Services,133F,Park Now Limited,02/11/2022,PE145097,521.06,0.00,RingGo fees 1 April 2022 - 31 March 2023- service charges- text summary charges- text reminder charges- card processing fees,Other Parking Fees and Commission,42622
Wyre Council,http://opendatacommunities.org/doc/district-council/wyre,29/11/2022,People and Places,Parking Services,133F,Andrew Signs LTD,30/11/2022,PE145627,1869.65,0.00,"*** Confirmation of Order ***
Provide 46 no EV signs and 3 no Loading Bay signs as discussed.","Paths, Roads and Car Park Mtnce Annual",28050
Wyre Council,http://opendatacommunities.org/doc/district-council/wyre,29/11/2022,People and Places,Cultural and Related Services,132A,C & C Supplies Collinson LTD,07/11/2022,PE144845,244.79,0.00,6 tonne of 40mm to dust loose,"Paths, Roads and Car Park Mtnce Annual",28050
Wyre Council,http://opendatacommunities.org/doc/district-council/wyre,29/11/2022,People and Places,Parking Services,133F,A1 Streamline Road,24/11/2022,PE145532,3010.27,0.00,"Enquiry No. 14220Carry out relining works to marine Hall, Fleetwood as per quotation of 8 Nov 22.","Paths, Roads and Car Park Mtnce Annual",28050
Wyre Council,http://opendatacommunities.org/doc/district-council/wyre,29/11/2022,People and Places,Cultural and Related Services,132A,HUWS GRAY LTD,24/11/2022,PE145144,311.80,0.00,10 x tactile slabs 8x 6by 2  20 x ft. 1/2 pegs,"Paths, Roads and Car Park Mtnce Annual",28050
Wyre Council,http://opendatacommunities.org/doc/district-council/wyre,29/11/2022,Finance,Corporate and Democratic Core,131A,LANCASHIRE COUNTY COUNCIL,04/11/2022,WPST00081632,14824.45,0.00,lcc 29/4,Pension Increase Act Payments,19004
Wyre Council,http://opendatacommunities.org/doc/district-council/wyre,29/11/2022,Finance,Corporate and Democratic Core,131A,LANCASHIRE COUNTY COUNCIL,03/11/2022,WPST00081451,15131.44,0.00,lcc,Pension Increase Act Payments,19004
Wyre Council,http://opendatacommunities.org/doc/district-council/wyre,29/11/2022,People and Places,Planning and Development Servs,132C,Premier Pest Control,03/11/2022,PE135647,2250.00,0.00,Fleetwood Market: full inspection and survey of ceiling void over the Bird Cage found to be occupied by pigeons. Carry out full clean up of area and treat with insecticide spray to eradicate any insect problems in future.,Pest Control,27017
Wyre Council,http://opendatacommunities.org/doc/district-council/wyre,29/11/2022,People and Places,Support Services,135B,Allstar Business Solutions LTD,23/11/2022,PE145445,55.44,0.00,Fuel Charges,Petrol,30511
Wyre Council,http://opendatacommunities.org/doc/district-council/wyre,29/11/2022,People and Places,Support Services,135B,Allstar Business Solutions LTD,18/11/2022,PE145074,57.16,0.00,PF10NUM fuel 21/09/22 to 28/10/25,Petrol,30511
Wyre Council,http://opendatacommunities.org/doc/district-council/wyre,29/11/2022,People and Places,Support Services,135B,Allstar Business Solutions LTD,18/11/2022,PE145074,72.83,0.00,PJ67PHF fuel 21/09/22 to 28/10/26,Petrol,30511
Wyre Council,http://opendatacommunities.org/doc/district-council/wyre,29/11/2022,People and Places,Cultural and Related Services,132A,Allstar Business Solutions LTD,18/11/2022,PE144735,104.36,0.00,Fuel Charges for 29/09/22 to 14/10/22,Petrol,30511
Wyre Council,http://opendatacommunities.org/doc/district-council/wyre,29/11/2022,People and Places,Cultural and Related Services,132A,Allstar Business Solutions LTD,18/11/2022,PE145074,70.53,0.00,PE65DDO fuel 21/09/22 to 28/10/22,Petrol,30511
Wyre Council,http://opendatacommunities.org/doc/district-council/wyre,29/11/2022,People and Places,Support Services,135B,Allstar Business Solutions LTD,23/11/2022,PE145445,60.11,0.00,Fuel Charges,Petrol,30511
Wyre Council,http://opendatacommunities.org/doc/district-council/wyre,29/11/2022,People and Places,Support Services,135B,Allstar Business Solutions LTD,18/11/2022,PE144735,62.78,0.00,Fuel Charges for 29/09/22 to 14/10/22,Petrol,30511
Wyre Council,http://opendatacommunities.org/doc/district-council/wyre,29/11/2022,People and Places,Support Services,135B,Allstar Business Solutions LTD,18/11/2022,PE145074,41.08,0.00,PJ67PHA fuel 21/09/22 to 28/10/28,Petrol,30511
Wyre Council,http://opendatacommunities.org/doc/district-council/wyre,29/11/2022,People and Places,Support Services,135B,Allstar Business Solutions LTD,18/11/2022,PE145074,47.23,0.00,PK14TTX fuel 21/09/22 to 28/10/29,Petrol,30511
Wyre Council,http://opendatacommunities.org/doc/district-council/wyre,29/11/2022,People and Places,Support Services,135B,Allstar Business Solutions LTD,23/11/2022,PE145445,61.40,0.00,Fuel Charges,Petrol,30511
Wyre Council,http://opendatacommunities.org/doc/district-council/wyre,29/11/2022,People and Places,Support Services,135B,Allstar Business Solutions LTD,18/11/2022,PE145074,124.86,0.00,PK14FKY fuel 21/09/22 to 28/10/27,Petrol,30511
Wyre Council,http://opendatacommunities.org/doc/district-council/wyre,29/11/2022,People and Places,Support Services,135B,Allstar Business Solutions LTD,23/11/2022,PE145445,32.64,0.00,Fuel Charges,Petrol,30511
Wyre Council,http://opendatacommunities.org/doc/district-council/wyre,29/11/2022,People and Places,Support Services,135B,Allstar Business Solutions LTD,18/11/2022,PE145074,28.35,0.00,PK14TMZ fuel 21/09/22 to 28/10/30,Petrol,30511
Wyre Council,http://opendatacommunities.org/doc/district-council/wyre,29/11/2022,People and Places,Support Services,135B,Allstar Business Solutions LTD,18/11/2022,PE144735,56.77,0.00,Fuel Charges for 29/09/22 to 14/10/22,Petrol,30511
Wyre Council,http://opendatacommunities.org/doc/district-council/wyre,29/11/2022,People and Places,Support Services,135B,EAS Electrical Mechanical,28/11/2022,PE145581,1644.89,0.00,"Civic Centre: Gas safety check, service and tightness test of all equipment installed.  Replaced filters with AHU, replaced 3 x BROAG service kit B",Planned Building Maintenance,21000
Wyre Council,http://opendatacommunities.org/doc/district-council/wyre,29/11/2022,People and Places,Cultural and Related Services,132A,Schneider Electric LTD,03/11/2022,PE145022,801.50,0.00,Marine Hall: maintenance for 01/10/22 to 30/09/23,Planned Building Maintenance,21000
Wyre Council,http://opendatacommunities.org/doc/district-council/wyre,29/11/2022,People and Places,Planning and Development Servs,132C,Schneider Electric LTD,08/11/2022,PE145135,881.00,0.00,Fleetwood MArket: Maintenance for 01/10/22 to 30/09/23,Planned Building Maintenance,21000
Wyre Council,http://opendatacommunities.org/doc/district-council/wyre,29/11/2022,People and Places,Support Services,135B,M D Security,09/11/2022,PE144761,60.00,0.00,Civic Centre: emergency light test month 10/22,Planned Building Maintenance,21000
Wyre Council,http://opendatacommunities.org/doc/district-council/wyre,29/11/2022,People and Places,Support Services,135B,M D Security,08/11/2022,PE145124,60.00,0.00,Civic Centre: Emergency light test for month 11/22,Planned Building Maintenance,21000
Wyre Council,http://opendatacommunities.org/doc/district-council/wyre,29/11/2022,People and Places,Cultural and Related Services,132A,ADP ENVIRONMENTAL SERVICES LTD,14/11/2022,PE145012,370.00,0.00,Rossal Point - P12 treatment plant,Planned Building Maintenance,21000
Wyre Council,http://opendatacommunities.org/doc/district-council/wyre,29/11/2022,People and Places,Planning and Development Servs,132C,ADP ENVIRONMENTAL SERVICES LTD,14/11/2022,PE145012,1270.00,0.00,Copse Road - NSFP006,Planned Building Maintenance,21000
Wyre Council,http://opendatacommunities.org/doc/district-council/wyre,29/11/2022,People and Places,Planning and Development Servs,132C,ADP ENVIRONMENTAL SERVICES LTD,14/11/2022,PE145012,120.00,0.00,Copse Road - RWH sensor,Planned Building Maintenance,21000
Wyre Council,http://opendatacommunities.org/doc/district-council/wyre,29/11/2022,People and Places,Cultural and Related Services,132A,RENTOKIL INITIAL UK LTD,10/11/2022,PE144299,233.31,0.00,Marine Hall Contract C/90302367,Planned Building Maintenance,21000
Wyre Council,http://opendatacommunities.org/doc/district-council/wyre,29/11/2022,People and Places,Cultural and Related Services,132A,RENTOKIL INITIAL UK LTD,10/11/2022,PE142369,233.31,0.00,Marine Hall: Contract C/90302367,Planned Building Maintenance,21000
Wyre Council,http://opendatacommunities.org/doc/district-council/wyre,29/11/2022,People and Places,Support Services,135B,RENTOKIL INITIAL UK LTD,10/11/2022,PE144299,669.19,0.00,Breck Rd Contract C/90302367,Planned Building Maintenance,21000
Wyre Council,http://opendatacommunities.org/doc/district-council/wyre,29/11/2022,People and Places,Support Services,135B,RENTOKIL INITIAL UK LTD,10/11/2022,PE142369,669.19,0.00,Breck Rd: Contract C/90302367,Planned Building Maintenance,21000
Wyre Council,http://opendatacommunities.org/doc/district-council/wyre,29/11/2022,People and Places,Cultural and Related Services,132A,RENTOKIL INITIAL UK LTD,10/11/2022,PE142369,20.13,0.00,Thornton Little Theatre: Contract C/90302367,Planned Building Maintenance,21000
Wyre Council,http://opendatacommunities.org/doc/district-council/wyre,29/11/2022,People and Places,Cultural and Related Services,132A,RENTOKIL INITIAL UK LTD,10/11/2022,PE144299,20.13,0.00,Thornton Little Theatre Contract C/90302367,Planned Building Maintenance,21000
Wyre Council,http://opendatacommunities.org/doc/district-council/wyre,29/11/2022,People and Places,Planning and Development Servs,132C,RENTOKIL INITIAL UK LTD,10/11/2022,PE142369,255.11,0.00,Fleetwood Market: Contract C/90302367,Planned Building Maintenance,21000
Wyre Council,http://opendatacommunities.org/doc/district-council/wyre,29/11/2022,People and Places,Planning and Development Servs,132C,RENTOKIL INITIAL UK LTD,10/11/2022,PE144299,255.11,0.00,Fleetwood Market Contract C/90302367,Planned Building Maintenance,21000
Wyre Council,http://opendatacommunities.org/doc/district-council/wyre,29/11/2022,People and Places,Planning and Development Servs,132C,RENTOKIL INITIAL UK LTD,10/11/2022,PE144299,243.37,0.00,Copse Rd Contract C/90302367,Planned Building Maintenance,21000
Wyre Council,http://opendatacommunities.org/doc/district-council/wyre,29/11/2022,People and Places,Planning and Development Servs,132C,RENTOKIL INITIAL UK LTD,10/11/2022,PE142369,243.37,0.00,Copse Rd: Contract C/90302367,Planned Building Maintenance,21000
Wyre Council,http://opendatacommunities.org/doc/district-council/wyre,29/11/2022,People and Places,Cultural and Related Services,132A,GARRY CARR BUILDING SERVICES LTD,03/11/2022,PE144848,240.00,0.00,"Marine Hall: full clearance of all roofs, gutters and RWP`s",Planned Building Maintenance,21000
Wyre Council,http://opendatacommunities.org/doc/district-council/wyre,29/11/2022,People and Places,Cultural and Related Services,132A,EVOLUTION CONSTRUCTION GROUP LTD,18/11/2022,PE145434,61.38,0.00,"Civc Centre: full clearande of all accessible gutters, roof outlets and rwps to ensure they are free running and free of debris",Planned Building Maintenance,21000
Wyre Council,http://opendatacommunities.org/doc/district-council/wyre,29/11/2022,People and Places,Planning and Development Servs,132C,EVOLUTION CONSTRUCTION GROUP LTD,18/11/2022,PE145436,135.03,0.00,Civic Centre: clear gutters to outside market brick units and canopy,Planned Building Maintenance,21000
Wyre Council,http://opendatacommunities.org/doc/district-council/wyre,29/11/2022,People and Places,Support Services,135B,EVOLUTION CONSTRUCTION GROUP LTD,18/11/2022,PE145433,306.88,0.00,"Civic Centre: Clear all accessible gutters, roof outlets and rwps to ensure they are free running and free of debris.",Planned Building Maintenance,21000
Wyre Council,http://opendatacommunities.org/doc/district-council/wyre,29/11/2022,Finance,Central Services to the Public,131C,SANTANDER,08/11/2022,WPST00082152,835.54,0.00,SAN UK ACC RECEIVE,Plastic Cards Processing Fees,42608
Wyre Council,http://opendatacommunities.org/doc/district-council/wyre,29/11/2022,Resources,Central Services to the Public,131C,Critiqom LTD,14/11/2022,RS145305,412.62,0.00,"Daily Bills,Oct 22",Postage,43000
Wyre Council,http://opendatacommunities.org/doc/district-council/wyre,29/11/2022,Resources,Central Services to the Public,131C,Critiqom LTD,14/11/2022,RS145306,1441.01,0.00,"Daily Bills,Oct 22",Postage,43000
Wyre Council,http://opendatacommunities.org/doc/district-council/wyre,29/11/2022,Resources,Central Services to the Public,131C,Critiqom LTD,14/11/2022,RS145305,331.26,0.00,"IQ post - Electoral,Oct 22",Postage,43000
Wyre Council,http://opendatacommunities.org/doc/district-council/wyre,29/11/2022,Resources,Support Services,135B,Critiqom LTD,16/11/2022,RS145366,30.00,0.00,Data Quality Infractions Oct 22,Postage,43000
Wyre Council,http://opendatacommunities.org/doc/district-council/wyre,29/11/2022,Resources,Support Services,135B,Critiqom LTD,14/11/2022,RS145305,146.62,0.00,"Ctax Reminders,Oct 22",Postage,43000
Wyre Council,http://opendatacommunities.org/doc/district-council/wyre,29/11/2022,Resources,Support Services,135B,Critiqom LTD,14/11/2022,RS145305,3.89,0.00,"NNDR Reminders,Oct 22",Postage,43000
Wyre Council,http://opendatacommunities.org/doc/district-council/wyre,29/11/2022,Resources,Support Services,135B,Critiqom LTD,14/11/2022,RS145305,94.34,0.00,"Ctax Summons,Oct 22",Postage,43000
Wyre Council,http://opendatacommunities.org/doc/district-council/wyre,29/11/2022,Resources,Support Services,135B,Critiqom LTD,14/11/2022,RS145305,4.80,0.00,"NNDR Summons,Oct 22",Postage,43000
Wyre Council,http://opendatacommunities.org/doc/district-council/wyre,29/11/2022,Resources,Support Services,135B,Critiqom LTD,14/11/2022,RS145305,1.45,0.00,"IQ post - Recovery,Oct 22",Postage,43000
Wyre Council,http://opendatacommunities.org/doc/district-council/wyre,29/11/2022,Resources,Housing General Fund,134A,Critiqom LTD,14/11/2022,RS145305,26.52,0.00,"Benefit Notifications,Oct 22",Postage,43000
Wyre Council,http://opendatacommunities.org/doc/district-council/wyre,29/11/2022,Resources,Support Services,135B,Critiqom LTD,14/11/2022,RS145305,629.06,0.00,"IQ post - CC,Oct 22",Postage,43000
Wyre Council,http://opendatacommunities.org/doc/district-council/wyre,29/11/2022,Resources,Support Services,135B,Critiqom LTD,14/11/2022,RS145305,249.92,0.00,"IQ Post - Planning,Oct 22",Postage,43000
Wyre Council,http://opendatacommunities.org/doc/district-council/wyre,29/11/2022,Resources,Support Services,135B,Critiqom LTD,14/11/2022,RS145306,391.58,0.00,"Council Tax Reminders,Oct 22",Postage,43000
Wyre Council,http://opendatacommunities.org/doc/district-council/wyre,29/11/2022,Resources,Support Services,135B,Critiqom LTD,14/11/2022,RS145306,21.54,0.00,"NNDR Reminders,Oct 22",Postage,43000
Wyre Council,http://opendatacommunities.org/doc/district-council/wyre,29/11/2022,Resources,Support Services,135B,Critiqom LTD,14/11/2022,RS145306,220.31,0.00,"Council Tax Summons,Oct 22",Postage,43000
Wyre Council,http://opendatacommunities.org/doc/district-council/wyre,29/11/2022,Resources,Support Services,135B,Critiqom LTD,14/11/2022,RS145306,14.00,0.00,"NNDR Summons,Oct 22",Postage,43000
Wyre Council,http://opendatacommunities.org/doc/district-council/wyre,29/11/2022,Resources,Support Services,135B,Critiqom LTD,14/11/2022,RS145305,130.93,0.00,"IQ post - Off Serv Admin,Oct 22",Postage,43000
Wyre Council,http://opendatacommunities.org/doc/district-council/wyre,29/11/2022,People and Places,Parking Services,133F,FLOWBIRD SMART CITY UK LTD,01/11/2022,PE145046,1669.00,0.00,"Provide 12 boxes HYBRID4 100mm single issue, non-adhesive tickets, REVERSE WOUND for use in CWT machines, as per your quotation 280922LRW0061Delivery to Paul LongWyre Civic CentreBreck RoadPoulton-le-Fylde FY6 7PU",Printing,42000
Wyre Council,http://opendatacommunities.org/doc/district-council/wyre,29/11/2022,Finance,Housing General Fund,134A,,10/11/2022,WPST00082535,649.18,0.00,,Private Contractors,57000
Wyre Council,http://opendatacommunities.org/doc/district-council/wyre,29/11/2022,Finance,Housing General Fund,134A,,10/11/2022,WPST00082482,7808.36,0.00,homes for ukraine 7/11,Private Contractors,57000
Wyre Council,http://opendatacommunities.org/doc/district-council/wyre,29/11/2022,People and Places,Public Transport,133G,Wyre Marine Services,11/11/2022,PE145293,17370.00,0.00,"Fleetwood - Knott End Ferry Service.Schedule of payments12 April 2022             - 11 May 2022                        �,8685.0012 May 2022             - 11 June 2022                       8,685.0012 June 2022            - 11 July 2022",Private Contractors,57000
Wyre Council,http://opendatacommunities.org/doc/district-council/wyre,29/11/2022,People and Places,Parking Services,133F,NSL Services Group,07/11/2022,PE145170,4727.93,0.00,Variable fee - car park Enforcement Oct 22,Private Contractors,57000
Wyre Council,http://opendatacommunities.org/doc/district-council/wyre,29/11/2022,People and Places,Parking Services,133F,CHIPSIDE LTD,08/11/2022,PE145187,30.00,0.00,Provide 2 no 500mb SiMS for Wyre handheld units 1 April 2022 - 31 March 2023,Private Contractors,57000
Wyre Council,http://opendatacommunities.org/doc/district-council/wyre,29/11/2022,People and Places,Parking Services,133F,CHIPSIDE LTD,09/11/2022,PE145199,42.55,0.00,Wyre Council parking - Bank Transaction Fees 1 April 2022 - 31 March 2023,Private Contractors,57000
Wyre Council,http://opendatacommunities.org/doc/district-council/wyre,29/11/2022,People and Places,Parking Services,133F,CHIPSIDE LTD,21/11/2022,PE145394,537.69,0.00,Provision of notice processing services for the period Oct 22,Private Contractors,57000
Wyre Council,http://opendatacommunities.org/doc/district-council/wyre,29/11/2022,People and Places,Cultural and Related Services,132A,Melrose Development Services Ltd,17/11/2022,PE144644,1428.25,0.00,Marsh Mill service charge for period 1/10/22 - 31/12/22,Private Contractors,57000
Wyre Council,http://opendatacommunities.org/doc/district-council/wyre,29/11/2022,Resources,Housing General Fund,134A,Victora & Richard Walmsley,07/11/2022,RS145147,1200.00,0.00,"1st months rent, 19 November to 19th December 2022",Private Contractors,57000
Wyre Council,http://opendatacommunities.org/doc/district-council/wyre,29/11/2022,Resources,Housing General Fund,134A,Victora & Richard Walmsley,28/11/2022,RS145575,600.00,0.00,Invoice for bond,Private Contractors,57000
Wyre Council,http://opendatacommunities.org/doc/district-council/wyre,29/11/2022,People and Places,Environmental Services,132B,BGEN Ltd,16/11/2022,PE145401,1694.53,0.00,"FAO Jamie Aspinall JamieAspinall@b-gen.co.uk BGEN. Formerly Boulting Ltd.Firecrest CourtCentre ParkWarringtonWA1 1RGInvestigate Marine Hall pumping station not pumping issue.Cost 1,694.53 as per the attached CE-001.",Private Contractors,57000
Wyre Council,http://opendatacommunities.org/doc/district-council/wyre,29/11/2022,People and Places,Environmental Services,132B,BGEN Ltd,16/11/2022,PE145400,6653.49,0.00,"FAO Jamie Aspinall JamieAspinall@b-gen.co.uk BGEN. Formerly Boulting Ltd.Supply and install new pump to Marine Hall pumping station, Fleetwood as per your quote emailed 22nd February 2022.Cost 6,653.49",Private Contractors,57000
Wyre Council,http://opendatacommunities.org/doc/district-council/wyre,29/11/2022,People and Places,Cultural and Related Services,132A,Tina Warren,28/11/2022,PE145453,850.00,0.00,"Creative Wellbeing sessions at Fleetwood Market House studios Sept - Nov 2022, payment 2 of 2 for 850",Project Costs,46841
Wyre Council,http://opendatacommunities.org/doc/district-council/wyre,29/11/2022,Resources,Environmental Services,132B,Critiqom LTD,14/11/2022,RS145306,94.15,0.00,"Green Waste 2022,Oct 22",Promotions - General,46104
Wyre Council,http://opendatacommunities.org/doc/district-council/wyre,29/11/2022,People and Places,Support Services,135B,Key Engineering & Hygiene Supplies LTD,03/11/2022,PE145112,23.35,0.00,"20 boxes of GD19/XL Blue Nitrile gloves @ 4.67 per box Delivery for the attention of Tracy Waistle - quotation 15877Delivery to Wyre Council, Copse Road Depot, Copse Road, Fleetwood, FY7 6RP.",Protective Clothing,41600
Wyre Council,http://opendatacommunities.org/doc/district-council/wyre,29/11/2022,People and Places,Support Services,135B,Key Engineering & Hygiene Supplies LTD,08/11/2022,PE145111,50.46,0.00,"Supply and deliver as per quotation 16080 6/10/2022Delivery to Wyre Council, Copse Road Depot, Fleetwood, FY7 6RP.",Protective Clothing,41600
Wyre Council,http://opendatacommunities.org/doc/district-council/wyre,29/11/2022,People and Places,Support Services,135B,Key Engineering & Hygiene Supplies LTD,16/11/2022,PE143883,36.60,0.00,Supply and deliver as part of quotation 15275 T03-Y-LEO/Large - Larkstone IS020471 cool viz plus T-shirt in yellow (no Logo) @ 13.01 1 x Large  1 x XL 1 x 2XL  T181 PWS - Portwest T-Shirts (T181YBR) in Hi-vis yellow (no logo) @ 11.39 each  1 x Large  1,Protective Clothing,41600
Wyre Council,http://opendatacommunities.org/doc/district-council/wyre,29/11/2022,People and Places,Support Services,135B,Key Engineering & Hygiene Supplies LTD,16/11/2022,PE143883,42.60,0.00,SUPPLY AND DELIVER AS PER QUOTATION 14714  RC076BLKONE 10 RESULT FOLD UP LEGIONNAIRES CAP BLACK ONE 4.26 EACH 42.60 803YWXS 1 UC803 YELLOW XS HI VIS TRAFFIC JACKET 19.20 EACH 19.20 S480YERXS 1 HI-VIS TRAFFIC TROUSER XS YELLOW 10.81 EACH 10.81  72.61  DELI,Protective Clothing,41600
Wyre Council,http://opendatacommunities.org/doc/district-council/wyre,29/11/2022,People and Places,Support Services,135B,Key Engineering & Hygiene Supplies LTD,16/11/2022,PE143883,37.64,0.00,"SUPPLY AND DELIVER AS PER QUOTE 14785 7/7/22  DELIVERY FAO KEITH URWIN, WYRE COUNCIL, COPSE ROAD DEPOT, COPSE ROAD, FLEETWOOD, FY7 6RP.",Protective Clothing,41600
Wyre Council,http://opendatacommunities.org/doc/district-council/wyre,29/11/2022,People and Places,Support Services,135B,Key Engineering & Hygiene Supplies LTD,16/11/2022,PE143883,39.24,0.00,"SUPPLY AND DELIVER AS PER QUOTATION 15235 TRA152BLACKL 1 REGATTA WOMANS CLASSIC 3 IN 1 JACKET BLACK LARGE (14) 35.24 EACH 35.24 LOGOEMB/WYRECOUNCIL 2 EMBROIDERED LOGO FOR WYRE COUNCIL 2.00 EACH 4.00  DELIVERY TO WYRE COUNCIL, COPSE ROAD DEPOT, COPSE ROAD,",Protective Clothing,41600
Wyre Council,http://opendatacommunities.org/doc/district-council/wyre,29/11/2022,People and Places,Support Services,135B,Key Engineering & Hygiene Supplies LTD,16/11/2022,PE143883,178.39,0.00,"Supply and deliver clothing as per quotation 148083 12/8/22  Delivery to Wyre Council, Copse Road Depot, Copse Road, Fleetwood, FY7 6RP",Protective Clothing,41600
Wyre Council,http://opendatacommunities.org/doc/district-council/wyre,29/11/2022,People and Places,Support Services,135B,Key Engineering & Hygiene Supplies LTD,16/11/2022,PE143883,132.45,0.00,"Supply and deliver clothing as per quotation 148083 12/8/22  Delivery to Wyre Council, Copse Road Depot, Copse Road, Fleetwood, FY7 6RP",Protective Clothing,41600
Wyre Council,http://opendatacommunities.org/doc/district-council/wyre,29/11/2022,People and Places,Environmental Services,132B,Key Engineering & Hygiene Supplies LTD,24/11/2022,PE145554,120.17,0.00,Clothing as per quote 16483,Protective Clothing,41600
Wyre Council,http://opendatacommunities.org/doc/district-council/wyre,29/11/2022,People and Places,Environmental Services,132B,Key Engineering & Hygiene Supplies LTD,17/11/2022,PE145154,242.73,0.00,"Supply and deliver as per quotation 16079 6/10/2022  Delivery to Wyre Council, Copse Road Depot, Copse Road, Fleetwood, FY7 6RP.",Protective Clothing,41600
Wyre Council,http://opendatacommunities.org/doc/district-council/wyre,29/11/2022,People and Places,Environmental Services,132B,Key Engineering & Hygiene Supplies LTD,15/11/2022,PE143358,122.40,0.00,"URGENT SUPPLY AND DELIVER AS PER QUOTATION 14243 31/03/2022 AP80B4RL 30 LIQUID PRO GLOVE SIZE LRG BLUE 2.04 EACH 61.20 AP80B4RM 30 LIQUID PRO GLOVE SIZE MED BLUE 2.04 EACH 61.2  DELIVERY TO WYRE COUNCIL, COPSE ROAD DEPOT, COPSE ROAD, FLEETWOOD, FY7 6RP.",Protective Clothing,41600
Wyre Council,http://opendatacommunities.org/doc/district-council/wyre,29/11/2022,People and Places,Environmental Services,132B,Key Engineering & Hygiene Supplies LTD,15/11/2022,PE143358,353.51,0.00,"Supply PPE as per quotation 14112 As per John   Delivery to Wyre Council, Copse Road Depot, Copse Road, Fleetwood, FY7 6RP.",Protective Clothing,41600
Wyre Council,http://opendatacommunities.org/doc/district-council/wyre,29/11/2022,People and Places,Environmental Services,132B,Key Engineering & Hygiene Supplies LTD,03/11/2022,PE145112,23.35,0.00,"20 boxes of GD19/XL Blue Nitrile gloves @ 4.67 per box Delivery for the attention of Tracy Waistle - quotation 15877Delivery to Wyre Council, Copse Road Depot, Copse Road, Fleetwood, FY7 6RP.",Protective Clothing,41600
Wyre Council,http://opendatacommunities.org/doc/district-council/wyre,29/11/2022,People and Places,Environmental Services,132B,Key Engineering & Hygiene Supplies LTD,08/11/2022,PE145111,50.46,0.00,"Supply and deliver as per quotation 16080 6/10/2022Delivery to Wyre Council, Copse Road Depot, Fleetwood, FY7 6RP.",Protective Clothing,41600
Wyre Council,http://opendatacommunities.org/doc/district-council/wyre,29/11/2022,People and Places,Environmental Services,132B,Key Engineering & Hygiene Supplies LTD,16/11/2022,PE143883,11.90,0.00,"Supply PPE as per quotation 14112 As per John   Delivery to Wyre Council, Copse Road Depot, Copse Road, Fleetwood, FY7 6RP.",Protective Clothing,41600
Wyre Council,http://opendatacommunities.org/doc/district-council/wyre,29/11/2022,People and Places,Environmental Services,132B,Key Engineering & Hygiene Supplies LTD,16/11/2022,PE143883,36.60,0.00,Supply and deliver as part of quotation 15275 T03-Y-LEO/Large - Larkstone IS020471 cool viz plus T-shirt in yellow (no Logo) @ 13.01 1 x Large  1 x XL 1 x 2XL  T181 PWS - Portwest T-Shirts (T181YBR) in Hi-vis yellow (no logo) @ 11.39 each  1 x Large  1,Protective Clothing,41600
Wyre Council,http://opendatacommunities.org/doc/district-council/wyre,29/11/2022,People and Places,Environmental Services,132B,Key Engineering & Hygiene Supplies LTD,16/11/2022,PE143883,132.45,0.00,"Supply and deliver clothing as per quotation 148083 12/8/22  Delivery to Wyre Council, Copse Road Depot, Copse Road, Fleetwood, FY7 6RP",Protective Clothing,41600
Wyre Council,http://opendatacommunities.org/doc/district-council/wyre,29/11/2022,People and Places,Environmental Services,132B,Key Engineering & Hygiene Supplies LTD,16/11/2022,PE143883,178.39,0.00,"Supply and deliver clothing as per quotation 148083 12/8/22  Delivery to Wyre Council, Copse Road Depot, Copse Road, Fleetwood, FY7 6RP",Protective Clothing,41600
Wyre Council,http://opendatacommunities.org/doc/district-council/wyre,29/11/2022,People and Places,Environmental Services,132B,Key Engineering & Hygiene Supplies LTD,16/11/2022,PE145402,55.85,0.00,"SUPPLY AND DELIVER AS PER QUOTE 16453JCB BOOTS DELIVERY TO WYRE COUNCIL, COPSE ROAD DEPOT, COPSE ROAD, FLEETWOOD, FY7 6RP",Protective Clothing,41600
Wyre Council,http://opendatacommunities.org/doc/district-council/wyre,29/11/2022,People and Places,Support Services,135B,Key Engineering & Hygiene Supplies LTD,08/11/2022,PE145111,35.24,0.00,"Supply and deliver as per quotation 16080 6/10/2022Delivery to Wyre Council, Copse Road Depot, Fleetwood, FY7 6RP.",Protective Clothing,41600
Wyre Council,http://opendatacommunities.org/doc/district-council/wyre,29/11/2022,People and Places,Environmental Services,132B,Key Engineering & Hygiene Supplies LTD,16/11/2022,PE145403,46.70,0.00,"20 boxes of GD19/XL Blue Nitrile gloves @ 4.67 per box Delivery for the attention of Tracy Waistle - quotation 15877Delivery to Wyre Council, Copse Road Depot, Copse Road, Fleetwood, FY7 6RP.",Protective Clothing,41600
Wyre Council,http://opendatacommunities.org/doc/district-council/wyre,29/11/2022,People and Places,Support Services,135B,Key Engineering & Hygiene Supplies LTD,08/11/2022,PE145111,63.19,0.00,"Supply and deliver as per quotation 16080 6/10/2022Delivery to Wyre Council, Copse Road Depot, Fleetwood, FY7 6RP.",Protective Clothing,41600
Wyre Council,http://opendatacommunities.org/doc/district-council/wyre,29/11/2022,People and Places,Support Services,135B,Key Engineering & Hygiene Supplies LTD,17/11/2022,PE145154,227.07,0.00,"Supply and deliver as per quotation 16079 6/10/2022  Delivery to Wyre Council, Copse Road Depot, Copse Road, Fleetwood, FY7 6RP.",Protective Clothing,41600
Wyre Council,http://opendatacommunities.org/doc/district-council/wyre,29/11/2022,People and Places,Support Services,135B,Key Engineering & Hygiene Supplies LTD,17/11/2022,PE145154,15.66,0.00,cleaning materials,Protective Clothing,41600
Wyre Council,http://opendatacommunities.org/doc/district-council/wyre,29/11/2022,People and Places,Support Services,135B,Key Engineering & Hygiene Supplies LTD,24/11/2022,PE143944,49.95,0.00,GOLIATH BOOTS  GROUNDS,Protective Clothing,41600
Wyre Council,http://opendatacommunities.org/doc/district-council/wyre,29/11/2022,People and Places,Support Services,135B,Key Engineering & Hygiene Supplies LTD,24/11/2022,PE145554,120.17,0.00,Clothing as per quote 16483,Protective Clothing,41600
Wyre Council,http://opendatacommunities.org/doc/district-council/wyre,29/11/2022,People and Places,Support Services,135B,Malcolm McCulloch & Sons LTD,22/11/2022,PE145518,67.00,0.00,Coveralls,Protective Clothing,41600
Wyre Council,http://opendatacommunities.org/doc/district-council/wyre,29/11/2022,People and Places,Cultural and Related Services,132A,HUWS GRAY LTD,16/11/2022,PE144477,64.47,0.00,safety boots,Protective Clothing,41600
Wyre Council,http://opendatacommunities.org/doc/district-council/wyre,29/11/2022,People and Places,Environmental Services,132B,Key Engineering & Hygiene Supplies LTD,01/11/2022,PE145038,247.50,0.00,to deliver as per quote 16388   ...10 x NA240B1,"Provision of Bins, Boxes and Sacks",40500
Wyre Council,http://opendatacommunities.org/doc/district-council/wyre,29/11/2022,People and Places,Environmental Services,132B,Key Engineering & Hygiene Supplies LTD,16/11/2022,PE143883,1301.75,0.00,to deliver as per quote 15306 . 50 boxes of blue refuse sacks @ 16.91 per box and 25 boxes of green refuse sacks @ 18.21 per box,"Provision of Bins, Boxes and Sacks",40500
Wyre Council,http://opendatacommunities.org/doc/district-council/wyre,29/11/2022,People and Places,Environmental Services,132B,Key Engineering & Hygiene Supplies LTD,15/11/2022,PE143358,845.50,0.00,"SUPPLY AND DELIVER BL090C1 50 BOXES OF BLUE REFUSE SACK 18X29X39 15KG/90LTR 200 PER BOX 16.91 EACH 16.91  DELIVERY TO WYRE COUNCIL, COPSE ROAD DEPOT, COPSE ROAD, FLEEWOOD, FY7 6RP.","Provision of Bins, Boxes and Sacks",40500
Wyre Council,http://opendatacommunities.org/doc/district-council/wyre,29/11/2022,People and Places,Environmental Services,132B,Blackpool Skip Hire LTD,17/11/2022,PE145181,200.00,0.00,Mixed waste collection 19/10/22 copse road depot,"Provision of Bins, Boxes and Sacks",40500
Wyre Council,http://opendatacommunities.org/doc/district-council/wyre,29/11/2022,People and Places,Environmental Services,132B,A & C Weber UK LTD,21/11/2022,PE145450,18643.20,0.00,360ltr Grey Carcasses @ 38.84 per unit,"Provision of Bins, Boxes and Sacks",40500
Wyre Council,http://opendatacommunities.org/doc/district-council/wyre,29/11/2022,People and Places,Environmental Services,132B,A & C Weber UK LTD,21/11/2022,PE145450,624.00,0.00,Lid Pins @ 0.10 per pin,"Provision of Bins, Boxes and Sacks",40500
Wyre Council,http://opendatacommunities.org/doc/district-council/wyre,29/11/2022,People and Places,Environmental Services,132B,A & C Weber UK LTD,21/11/2022,PE145450,100.00,0.00,"DeliveryPrices as per ESPO Contract Schedule 860ADDAnticipated delivery ASAP (can accept delivery any time, but please advise in advance ifpossible)Please ensure bins are stacked no higher than 8 bins due to Unloading H&S issuese-ma","Provision of Bins, Boxes and Sacks",40500
Wyre Council,http://opendatacommunities.org/doc/district-council/wyre,29/11/2022,People and Places,Environmental Services,132B,Veolia ES (UK) LTD,22/11/2022,PE145524,4584.66,0.00,Bin delivery,"Provision of Bins, Boxes and Sacks",40500
Wyre Council,http://opendatacommunities.org/doc/district-council/wyre,29/11/2022,People and Places,Support Services,135B,Amazon Business,24/11/2022,PE145446,124.99,0.00,"Cookology Freestanding Undercounter Larder Fridge (50cm, Black) [Energy Class F]  https://www.amazon.co.uk/Cookology-UCFR110BK-Freestanding-Undercounter-Larder/dp/B07F1RWM5F/ref=sr_1_19?crid=2FBX0WS5U7N99&keywords=larder%2Bfridge%2Bfreestanding&qid=166858",Purchase Furniture,40300
Wyre Council,http://opendatacommunities.org/doc/district-council/wyre,29/11/2022,Resources,Support Services,135B,Thomson Reuters,14/11/2022,RS145095,3589.92,0.00,Uplift of Invoice 6801289613.  Information Services of Software Solutions (217725),Purchase of Publications,42302
Wyre Council,http://opendatacommunities.org/doc/district-council/wyre,29/11/2022,People and Places,Cultural and Related Services,132A,HUWS GRAY LTD,24/11/2022,PE145144,284.30,0.00,5 x long handled loppers,Purchase of Tools or Equipment,40100
Wyre Council,http://opendatacommunities.org/doc/district-council/wyre,29/11/2022,People and Places,Cultural and Related Services,132A,HUWS GRAY LTD,16/11/2022,PE144477,154.22,0.00,2 x metal wheel barrows,Purchase of Tools or Equipment,40100
Wyre Council,http://opendatacommunities.org/doc/district-council/wyre,29/11/2022,People and Places,Cultural and Related Services,132A,HUWS GRAY LTD,16/11/2022,PE144477,44.00,0.00,wooden shafts various,Purchase of Tools or Equipment,40100
Wyre Council,http://opendatacommunities.org/doc/district-council/wyre,29/11/2022,Resources,Housing General Fund,134A,HUWS GRAY LTD,28/11/2022,RS145576,28.99,0.00,Payment of invoice ID1248789,Purchase of Tools or Equipment,40100
Wyre Council,http://opendatacommunities.org/doc/district-council/wyre,29/11/2022,Resources,Housing General Fund,134A,VODAFONE LIMITED,28/11/2022,RS145528,24.00,0.00,Monthly Mobile phone charges invoice dated 15 October 2022,Purchase of Tools or Equipment,40100
Wyre Council,http://opendatacommunities.org/doc/district-council/wyre,29/11/2022,Resources,Housing General Fund,134A,VODAFONE LIMITED,16/11/2022,RS143933,24.00,0.00,Monthly Mobile phone charges invoice dated September 2022,Purchase of Tools or Equipment,40100
Wyre Council,http://opendatacommunities.org/doc/district-council/wyre,29/11/2022,Resources,Support Services,135B,Amazon Business,18/11/2022,RS145420,62.04,0.00,"PERLESMITH TV Wall Bracket, Swivel Tilt TV Mount for 32-65 Inch Flat & Curved TV up to 45kg, Max. VESA 400x400mm",Purchase of Tools or Equipment,40100
Wyre Council,http://opendatacommunities.org/doc/district-council/wyre,29/11/2022,People and Places,Cultural and Related Services,132A,Steve Tomlin Crafts,09/11/2022,PE145198,-1190.00,0.00,scything Kits x 8 - internal credit note raised because incorrect CIS was entered on original invoice,Purchase of Tools or Equipment,40100
Wyre Council,http://opendatacommunities.org/doc/district-council/wyre,29/11/2022,People and Places,Cultural and Related Services,132A,Thornton Cleveleys Operatic Society,29/11/2022,PE145455,7754.00,0.00,Refund of ticket sales - `Just Be`,Refund of Ticket Sales to Ext Promoters,46830
Wyre Council,http://opendatacommunities.org/doc/district-council/wyre,29/11/2022,People and Places,Cultural and Related Services,132A,Phil McIntyre Entertainments Ltd,09/11/2022,PE145238,1845.83,0.00,Refund of ticket sales - Ed Byrne 9/7/22,Refund of Ticket Sales to Ext Promoters,46830
Wyre Council,http://opendatacommunities.org/doc/district-council/wyre,29/11/2022,People and Places,Cultural and Related Services,132A,THE WINDMILL PLAYERS,29/11/2022,PE145244,5010.00,0.00,Refund of ticket sales - Billy Liar,Refund of Ticket Sales to Ext Promoters,46830
Wyre Council,http://opendatacommunities.org/doc/district-council/wyre,29/11/2022,People and Places,Cultural and Related Services,132A,Carlton Entertainment,09/11/2022,PE145245,6906.00,0.00,Refund of ticket sales - Celine,Refund of Ticket Sales to Ext Promoters,46830
Wyre Council,http://opendatacommunities.org/doc/district-council/wyre,29/11/2022,People and Places,Cultural and Related Services,132A,Camra Fleetwood Beer Festival,22/11/2022,PE145552,2010.00,0.00,Refund of ticket sales - Fleetwood Beer & Cider Festival 2022,Refund of Ticket Sales to Ext Promoters,46830
Wyre Council,http://opendatacommunities.org/doc/district-council/wyre,29/11/2022,People and Places,Cultural and Related Services,132A,ELP,29/11/2022,PE145398,3670.00,0.00,Refund of ticket sales - 28th & 29th October 2022,Refund of Ticket Sales to Ext Promoters,46830
Wyre Council,http://opendatacommunities.org/doc/district-council/wyre,29/11/2022,People and Places,Planning and Development Servs,132C,Suez Recycling And Recovery UK LTD,04/11/2022,PE145072,1253.60,0.00,waste removal market suez,Refuse Collection,27008
Wyre Council,http://opendatacommunities.org/doc/district-council/wyre,29/11/2022,People and Places,Planning and Development Servs,132C,Suez Recycling And Recovery UK LTD,29/11/2022,PE144435,1103.19,0.00,waste removal market suez,Refuse Collection,27008
Wyre Council,http://opendatacommunities.org/doc/district-council/wyre,29/11/2022,People and Places,Environmental Services,132B,Veolia ES (UK) LTD,22/11/2022,PE145524,178535.32,0.00,Domestic Waste Management Collection Contract 2022/23,Refuse Collection Contract,27009
Wyre Council,http://opendatacommunities.org/doc/district-council/wyre,29/11/2022,People and Places,Environmental Services,132B,Veolia ES (UK) LTD,22/11/2022,PE145524,1800.51,0.00,Pension pass through,Refuse Collection Contract,27009
Wyre Council,http://opendatacommunities.org/doc/district-council/wyre,29/11/2022,Resources,Corporate and Democratic Core,131A,Road Safety Services LTD,16/11/2022,RS145399,1100.00,0.00,Remembrance Sunday 2022 - Traffic Management  Road Closures Fleetwood - 650Thornton - 450,Remembrance Sunday,46503
Wyre Council,http://opendatacommunities.org/doc/district-council/wyre,29/11/2022,Resources,Corporate and Democratic Core,131A,Corrys Limited,15/11/2022,RS145354,900.00,0.00,PA Hire for Remembrance Sunday Services November 2022The cost of hire of equipment and engineer for Poulton and Thornton Services.,Remembrance Sunday,46503
Wyre Council,http://opendatacommunities.org/doc/district-council/wyre,29/11/2022,People and Places,Cultural and Related Services,132A,Robert Pinkus Property Management LTD,30/11/2022,PE145602,3550.00,0.00,"Garstang Park Hill Road, Unit 1 TIC: 25/05/22 to 24/03/23 quarterly rent in advance",Rents,23000
Wyre Council,http://opendatacommunities.org/doc/district-council/wyre,29/11/2022,People and Places,Cultural and Related Services,132A,Robert Pinkus Property Management LTD,30/11/2022,PE145602,440.00,0.00,"Garstang Park Hill Road, Unit 1 TIC: 25/05/22 to 24/03/23 quarterly service charge in advance",Rents,23000
Wyre Council,http://opendatacommunities.org/doc/district-council/wyre,29/11/2022,People and Places,Support Services,135B,EAS Electrical Mechanical,09/11/2022,PE145233,945.00,0.00,Civic Centre: pipe tracer survey,Responsive Building Maintenance,21002
Wyre Council,http://opendatacommunities.org/doc/district-council/wyre,29/11/2022,People and Places,Cultural and Related Services,132A,EAS Electrical Mechanical,21/11/2022,PE145383,91.77,0.00,Investigate leak on sink and replace parts at Marsh Mill,Responsive Building Maintenance,21002
Wyre Council,http://opendatacommunities.org/doc/district-council/wyre,29/11/2022,People and Places,Cultural and Related Services,132A,EAS Electrical Mechanical,16/11/2022,PE145368,152.16,0.00,Fault on link from staircase to first outside light - replaced at Lower Lighthouse,Responsive Building Maintenance,21002
Wyre Council,http://opendatacommunities.org/doc/district-council/wyre,29/11/2022,People and Places,Cultural and Related Services,132A,EAS Electrical Mechanical,21/11/2022,PE145379,48.00,0.00,Investigate leaking stop tap at Memorial Park,Responsive Building Maintenance,21002
Wyre Council,http://opendatacommunities.org/doc/district-council/wyre,29/11/2022,People and Places,Cultural and Related Services,132A,EAS Electrical Mechanical,21/11/2022,PE145387,150.00,0.00,Blocked drain at tennis pavillion Memorial Park,Responsive Building Maintenance,21002
Wyre Council,http://opendatacommunities.org/doc/district-council/wyre,29/11/2022,People and Places,Environmental Services,132B,EAS Electrical Mechanical,09/11/2022,PE142735,154.00,0.00,offset PE145231 Garstand Rd Cemetery: EICR remedials,Responsive Building Maintenance,21002
Wyre Council,http://opendatacommunities.org/doc/district-council/wyre,29/11/2022,People and Places,Environmental Services,132B,EAS Electrical Mechanical,21/11/2022,PE145376,75.76,0.00,Investigate col tap in staff room and replace faulty tap revivers at Garstang Road Cemetery,Responsive Building Maintenance,21002
Wyre Council,http://opendatacommunities.org/doc/district-council/wyre,29/11/2022,People and Places,Environmental Services,132B,EAS Electrical Mechanical,16/11/2022,PE145369,197.39,0.00,Repaired fault to lights in chapel at Garstang cemetery,Responsive Building Maintenance,21002
Wyre Council,http://opendatacommunities.org/doc/district-council/wyre,29/11/2022,People and Places,Environmental Services,132B,EAS Electrical Mechanical,21/11/2022,PE145385,129.09,0.00,Isolate water supply at Chatsworth Depot,Responsive Building Maintenance,21002
Wyre Council,http://opendatacommunities.org/doc/district-council/wyre,29/11/2022,People and Places,Planning and Development Servs,132C,EAS Electrical Mechanical,23/11/2022,PE145563,64.97,0.00,Re-secure loose sink and test at Fleetwood Market,Responsive Building Maintenance,21002
Wyre Council,http://opendatacommunities.org/doc/district-council/wyre,29/11/2022,People and Places,Planning and Development Servs,132C,EAS Electrical Mechanical,21/11/2022,PE145381,105.69,0.00,"Replace siphon, replace inlet,flushcone at Fleetwood Market",Responsive Building Maintenance,21002
Wyre Council,http://opendatacommunities.org/doc/district-council/wyre,29/11/2022,People and Places,Planning and Development Servs,132C,EAS Electrical Mechanical,21/11/2022,PE145382,96.00,0.00,Investigate water heater temperature at Fleetwood Market,Responsive Building Maintenance,21002
Wyre Council,http://opendatacommunities.org/doc/district-council/wyre,29/11/2022,People and Places,Planning and Development Servs,132C,EAS Electrical Mechanical,21/11/2022,PE145386,48.00,0.00,Test all toilets on site at Fleetwood Market,Responsive Building Maintenance,21002
Wyre Council,http://opendatacommunities.org/doc/district-council/wyre,29/11/2022,People and Places,Planning and Development Servs,132C,EAS Electrical Mechanical,21/11/2022,PE145389,78.00,0.00,Isolate water to unit at Fleetwood Market,Responsive Building Maintenance,21002
Wyre Council,http://opendatacommunities.org/doc/district-council/wyre,29/11/2022,People and Places,Planning and Development Servs,132C,EAS Electrical Mechanical,21/11/2022,PE145388,24.00,0.00,Attend to glass which had blkown out of luminaire from the wind at Fleetwood Market,Responsive Building Maintenance,21002
Wyre Council,http://opendatacommunities.org/doc/district-council/wyre,29/11/2022,People and Places,Cultural and Related Services,132A,EAS Electrical Mechanical,16/11/2022,PE145367,174.19,0.00,Converted fitting to LED in cupboard Store and cleaning cupboard at Marine Hall,Responsive Building Maintenance,21002
Wyre Council,http://opendatacommunities.org/doc/district-council/wyre,29/11/2022,People and Places,Cultural and Related Services,132A,EAS Electrical Mechanical,21/11/2022,PE145377,117.00,0.00,"Replaced tile with smoke detector, isolate lights in bar at marine hall",Responsive Building Maintenance,21002
Wyre Council,http://opendatacommunities.org/doc/district-council/wyre,29/11/2022,People and Places,Cultural and Related Services,132A,EAS Electrical Mechanical,21/11/2022,PE145380,62.10,0.00,Investigate faulty flush and replace damaged toilet lever at Thornton Little Theatre,Responsive Building Maintenance,21002
Wyre Council,http://opendatacommunities.org/doc/district-council/wyre,29/11/2022,People and Places,Planning and Development Servs,132C,EAS Electrical Mechanical,21/11/2022,PE145378,60.77,0.00,"Isolate urinal, remove and replace damaged urinal at copse road",Responsive Building Maintenance,21002
Wyre Council,http://opendatacommunities.org/doc/district-council/wyre,29/11/2022,People and Places,Support Services,135B,EAS Electrical Mechanical,21/11/2022,PE145384,306.90,0.00,Investigate faulty taps in gents and replace faulkty parts at Civic Centre,Responsive Building Maintenance,21002
Wyre Council,http://opendatacommunities.org/doc/district-council/wyre,29/11/2022,People and Places,Support Services,135B,Geze UK Ltd,29/11/2022,PE145580,122.50,0.00,Civic Centre: attendance charge,Responsive Building Maintenance,21002
Wyre Council,http://opendatacommunities.org/doc/district-council/wyre,29/11/2022,People and Places,Planning and Development Servs,132C,Geze UK Ltd,10/11/2022,PE145248,-1525.08,0.00,credit ref invoice 905447528 PE144293,Responsive Building Maintenance,21002
Wyre Council,http://opendatacommunities.org/doc/district-council/wyre,29/11/2022,People and Places,Planning and Development Servs,132C,Geze UK Ltd,10/11/2022,PE144293,3391.80,0.00,Fleetwood Market: quoted works,Responsive Building Maintenance,21002
Wyre Council,http://opendatacommunities.org/doc/district-council/wyre,29/11/2022,People and Places,Cultural and Related Services,132A,John Carney,01/11/2022,PE145030,650.00,0.00,"Tennis Pavillion, Mess Room, Warrenhurst Road: roof repairs",Responsive Building Maintenance,21002
Wyre Council,http://opendatacommunities.org/doc/district-council/wyre,29/11/2022,People and Places,Planning and Development Servs,132C,John Carney,09/11/2022,PE145230,95.00,0.00,Fleetwood Market: cleaning out 2 gulleys on market main roof,Responsive Building Maintenance,21002
Wyre Council,http://opendatacommunities.org/doc/district-council/wyre,29/11/2022,People and Places,Cultural and Related Services,132A,John Carney,01/11/2022,PE145028,260.00,0.00,Marine Hall: Roof repairs to reception roof,Responsive Building Maintenance,21002
Wyre Council,http://opendatacommunities.org/doc/district-council/wyre,29/11/2022,People and Places,Cultural and Related Services,132A,John Carney,01/11/2022,PE145032,650.00,0.00,"Wyre Side Ecology Centre, River Road: Roof repairs",Responsive Building Maintenance,21002
Wyre Council,http://opendatacommunities.org/doc/district-council/wyre,29/11/2022,People and Places,Cultural and Related Services,132A,John Carney,01/11/2022,PE145029,45.00,0.00,Mount Grounds: looking at roof repair,Responsive Building Maintenance,21002
Wyre Council,http://opendatacommunities.org/doc/district-council/wyre,29/11/2022,People and Places,Environmental Services,132B,John Carney,01/11/2022,PE145031,180.00,0.00,"Chatsworth Depot, Fleetwood: unblocking drain over main front sliding patio doors plus cleaning off all debris in land gulley",Responsive Building Maintenance,21002
Wyre Council,http://opendatacommunities.org/doc/district-council/wyre,29/11/2022,People and Places,Planning and Development Servs,132C,John Carney,01/11/2022,PE145033,250.00,0.00,Fleetwood Market: slate repairs to managers office and main roof,Responsive Building Maintenance,21002
Wyre Council,http://opendatacommunities.org/doc/district-council/wyre,29/11/2022,People and Places,Planning and Development Servs,132C,John Carney,01/11/2022,PE145034,380.00,0.00,Fleetwood Market: cleaning all box gutters to market rain water pipes and outlets in all areas of market roof.  Clearing away all debris from roof gutters,Responsive Building Maintenance,21002
Wyre Council,http://opendatacommunities.org/doc/district-council/wyre,29/11/2022,People and Places,Cultural and Related Services,132A,GARRY CARR BUILDING SERVICES LTD,03/11/2022,PE144847,3535.00,0.00,Beach Chalets /phase 1: rebuilt 5m section of wall adjacent to YMCA.,Responsive Building Maintenance,21002
Wyre Council,http://opendatacommunities.org/doc/district-council/wyre,29/11/2022,People and Places,Cultural and Related Services,132A,GARRY CARR BUILDING SERVICES LTD,22/11/2022,PE145451,987.00,0.00,Replace floor coverings to bar area at Marine Hall,Responsive Building Maintenance,21002
Wyre Council,http://opendatacommunities.org/doc/district-council/wyre,29/11/2022,People and Places,Support Services,135B,EVOLUTION CONSTRUCTION GROUP LTD,18/11/2022,PE145431,102.07,0.00,Civic Centre: Urgent works following break in to make building secure,Responsive Building Maintenance,21002
Wyre Council,http://opendatacommunities.org/doc/district-council/wyre,29/11/2022,People and Places,Support Services,135B,EVOLUTION CONSTRUCTION GROUP LTD,18/11/2022,PE145427,85.93,0.00,Civic Centre: ease and adjust opening lights to member lounge windoes to ensure windows open and close freely,Responsive Building Maintenance,21002
Wyre Council,http://opendatacommunities.org/doc/district-council/wyre,29/11/2022,People and Places,Cultural and Related Services,132A,EVOLUTION CONSTRUCTION GROUP LTD,18/11/2022,PE145428,24.55,0.00,Civic Centre: investigate and rectify fault to door closer to bar,Responsive Building Maintenance,21002
Wyre Council,http://opendatacommunities.org/doc/district-council/wyre,29/11/2022,People and Places,Cultural and Related Services,132A,EVOLUTION CONSTRUCTION GROUP LTD,18/11/2022,PE145425,55.24,0.00,Civc Centre: re-fix curtain rail currently stored in rom opposite Terrace Bard,Responsive Building Maintenance,21002
Wyre Council,http://opendatacommunities.org/doc/district-council/wyre,29/11/2022,People and Places,Cultural and Related Services,132A,EVOLUTION CONSTRUCTION GROUP LTD,18/11/2022,PE145423,73.65,0.00,Civic Centre: repairs to window elevation damaged over 3/4th Sept.,Responsive Building Maintenance,21002
Wyre Council,http://opendatacommunities.org/doc/district-council/wyre,29/11/2022,People and Places,Cultural and Related Services,132A,EVOLUTION CONSTRUCTION GROUP LTD,18/11/2022,PE145429,44.90,0.00,Civic Centre: repair guttering to Memorial Park Pavilion,Responsive Building Maintenance,21002
Wyre Council,http://opendatacommunities.org/doc/district-council/wyre,29/11/2022,People and Places,Cultural and Related Services,132A,EVOLUTION CONSTRUCTION GROUP LTD,18/11/2022,PE145435,213.31,0.00,Civic Centre: make safe the inside  of vandalised window.  Measure up and supply and fit replacement glass panels,Responsive Building Maintenance,21002
Wyre Council,http://opendatacommunities.org/doc/district-council/wyre,29/11/2022,People and Places,Cultural and Related Services,132A,EVOLUTION CONSTRUCTION GROUP LTD,18/11/2022,PE145432,190.66,0.00,"Civic Centre: re-attach pipework to guttering; remove graffiti, replace putty to window which had been gouged out",Responsive Building Maintenance,21002
Wyre Council,http://opendatacommunities.org/doc/district-council/wyre,29/11/2022,People and Places,Cultural and Related Services,132A,EVOLUTION CONSTRUCTION GROUP LTD,18/11/2022,PE145430,98.20,0.00,Civic Centre: urgent access to area behind clock and empty drip trays if necessary,Responsive Building Maintenance,21002
Wyre Council,http://opendatacommunities.org/doc/district-council/wyre,29/11/2022,People and Places,Cultural and Related Services,132A,EVOLUTION CONSTRUCTION GROUP LTD,18/11/2022,PE145426,172.23,0.00,"Civic Centre: Attend urgently to make secure bowls paviliion, mess room and toilet building following break in",Responsive Building Maintenance,21002
Wyre Council,http://opendatacommunities.org/doc/district-council/wyre,29/11/2022,People and Places,Planning and Development Servs,132C,EVOLUTION CONSTRUCTION GROUP LTD,18/11/2022,PE145424,1185.09,0.00,Civic Centre: construct/install  3 no. sets of pocket screens using 5mm perspex.  Screens prrovided as temporary measure to ensire doors are compliant until new auto doors installed,Responsive Building Maintenance,21002
Wyre Council,http://opendatacommunities.org/doc/district-council/wyre,29/11/2022,People and Places,Cultural and Related Services,132A,Clive Carruthers,15/11/2022,PE144504,4059.00,0.00,"To carry out architectural consultant works in relation to the King George?s Pavilion Re-build following fire to include 1.1915 Landscaping, survey  (to include site survey, levels drawing to affected area, landscaping scheme, drainage scheme, EVCP sche",Responsive Building Maintenance,21002
Wyre Council,http://opendatacommunities.org/doc/district-council/wyre,29/11/2022,Resources,Housing General Fund,134A,Blackpool Transport Services,16/11/2022,RS145406,925.44,0.00,REDACT,Rough Sleeper Project/NSNO,46846
Wyre Council,http://opendatacommunities.org/doc/district-council/wyre,29/11/2022,People and Places,Highways,133B,Glasdon UK LTD,30/11/2022,PE145645,486.70,0.00,"Supply one black phoenix memorial bench with plaque.
Plaque inscription to read 

In the Memory of  Alan Chew  LC
From October 1943 to November 2020

Please deliver bench to Copse Road Depot, Copse Road, 
Fleetwood.  Please contact Bob Greaves on 0",Seats and Shelters (Non BM),21012
Wyre Council,http://opendatacommunities.org/doc/district-council/wyre,29/11/2022,People and Places,Highways,133B,Glasdon UK LTD,04/11/2022,PE144023,506.98,0.00,Supply one black phoenix memorial bench with plaque.Plaque inscription to read In the Memory of Norah Gillingham1918-2008 - Offset via Cr note PE144993,Seats and Shelters (Non BM),21012
Wyre Council,http://opendatacommunities.org/doc/district-council/wyre,29/11/2022,People and Places,Highways,133B,Glasdon UK LTD,10/11/2022,PE145291,486.70,0.00,Supply one black phoenix memorial bench with plaque.Plaque inscription to read In the memory of Sean Doherty from 21st December 1963 to 19th February 2022The best dads make the best grandadsMeet me when the sun kisses the oceanPlease send,Seats and Shelters (Non BM),21012
Wyre Council,http://opendatacommunities.org/doc/district-council/wyre,29/11/2022,Resources,Support Services,135B,Civica UK LTD,09/11/2022,RS145177,23126.00,0.00,Civicapay Annual Subscription - Year 2 (01/07/22 - 30/06/23),Software Maintenance,43604
Wyre Council,http://opendatacommunities.org/doc/district-council/wyre,29/11/2022,Resources,Support Services,135B,Civica UK LTD,09/11/2022,RS145177,900.00,0.00,"Civicpay - WebPay Staff 1.5 Annual Fee, year 2 (01/07/22 - 30/06/23)",Software Maintenance,43604
Wyre Council,http://opendatacommunities.org/doc/district-council/wyre,29/11/2022,Resources,Support Services,135B,Clear Skies software LTD,30/11/2022,RS145631,1648.50,0.00,"BACAS Support.
From 01/01/2023 to 31/12/2023.",Software Maintenance,43604
Wyre Council,http://opendatacommunities.org/doc/district-council/wyre,29/11/2022,Resources,Support Services,135B,Phoenix Software LTD,21/11/2022,RS145523,13608.00,0.00,"SQL Server Standard Core All Language Subscription 2 Core - Licence 18 756.00 13,608.00Server Cloud Enrolment - SCE for Wyre BC`s SQL estate effective from 01/12/22 for 12 months",Software Maintenance,43604
Wyre Council,http://opendatacommunities.org/doc/district-council/wyre,29/11/2022,Resources,Support Services,135B,NEC Software Solutions UK Limited,28/11/2022,RS145573,5100.00,0.00,SUPPLIER REFERENCE: LT / CRM 137784Citizen Access ? Landlords (CA-LL)   01.01.23 ? 31.12.23,Software Maintenance,43604
Wyre Council,http://opendatacommunities.org/doc/district-council/wyre,29/11/2022,Resources,Support Services,135B,Crown Computing LTD,03/11/2022,RS145101,975.00,0.00,Crown monthly fee April 22 to March 23,Software Maintenance,43604
Wyre Council,http://opendatacommunities.org/doc/district-council/wyre,29/11/2022,Resources,Support Services,135B,JADU CREATIVE LTD,03/11/2022,RS144914,1800.00,0.00,UAT Hosting 06/12/2022 to 05/12/2023,Software Maintenance,43604
Wyre Council,http://opendatacommunities.org/doc/district-council/wyre,29/11/2022,Resources,Support Services,135B,JADU CREATIVE LTD,03/11/2022,RS144913,12000.00,0.00,CXM Subscription Year 1 20 Users @ 50 per user per month 05/12/2022 to 04/12/2023,Software Maintenance,43604
Wyre Council,http://opendatacommunities.org/doc/district-council/wyre,29/11/2022,Resources,Support Services,135B,JADU CREATIVE LTD,03/11/2022,RS144913,6000.00,0.00,LIVE Hosting 06/12/2022 to 05/12/2023,Software Maintenance,43604
Wyre Council,http://opendatacommunities.org/doc/district-council/wyre,29/11/2022,Resources,Support Services,135B,BRAMBLE HUB LTD,09/11/2022,RS144696,1056.00,0.00,500TEST Test Environment,Software Maintenance,43604
Wyre Council,http://opendatacommunities.org/doc/district-council/wyre,29/11/2022,Resources,Support Services,135B,BRAMBLE HUB LTD,09/11/2022,RS144696,1584.00,0.00,TOPdesk Enterprise/UK SaaS: 500I Incident Management,Software Maintenance,43604
Wyre Council,http://opendatacommunities.org/doc/district-council/wyre,29/11/2022,Resources,Support Services,135B,BRAMBLE HUB LTD,09/11/2022,RS144696,1584.00,0.00,500C Asset and Configuration Management,Software Maintenance,43604
Wyre Council,http://opendatacommunities.org/doc/district-council/wyre,29/11/2022,Resources,Support Services,135B,BRAMBLE HUB LTD,09/11/2022,RS144696,1584.00,0.00,500S Contract and SLA Man.,Software Maintenance,43604
Wyre Council,http://opendatacommunities.org/doc/district-council/wyre,29/11/2022,Resources,Support Services,135B,BRAMBLE HUB LTD,09/11/2022,RS144696,1584.00,0.00,500W Change Management,Software Maintenance,43604
Wyre Council,http://opendatacommunities.org/doc/district-council/wyre,29/11/2022,Resources,Support Services,135B,BRAMBLE HUB LTD,09/11/2022,RS144696,2640.00,0.00,500Z Self Service Portal,Software Maintenance,43604
Wyre Council,http://opendatacommunities.org/doc/district-council/wyre,29/11/2022,Resources,Support Services,135B,BRAMBLE HUB LTD,09/11/2022,RS144696,2018.04,0.00,500D TOPdesk Platform,Software Maintenance,43604
Wyre Council,http://opendatacommunities.org/doc/district-council/wyre,29/11/2022,Resources,Support Services,135B,Altair Engineering Ltd,21/11/2022,RS145393,1804.00,0.00,Altair Monarch Complete Citrix UserSubscription - LeaseProduct code: KW-MON-COMP-CTRX-ANTerm start date: 09/11/2022Term end date: 08/11/2023,Software Maintenance,43604
Wyre Council,http://opendatacommunities.org/doc/district-council/wyre,29/11/2022,Resources,Support Services,135B,Altair Engineering Ltd,21/11/2022,RS145393,1947.33,0.00,Altair Monarch Complete Citrix UserSubscription Renewal.Product code: KW-MON-COMP-CTRX-SUBR-AN.Term start date: 26/04/2023Term end date: 08/11/2023,Software Maintenance,43604
Wyre Council,http://opendatacommunities.org/doc/district-council/wyre,29/11/2022,Resources,Support Services,135B,EPOS NOW LTD,02/11/2022,RS145096,2394.00,0.00,Invoice No: Invoice-283331Invoice Date: 24 August 2022Account Number: 0376950002Hospitality Solution Lite x6- Epos Now Pro-C15 Terminal (Android OS)- Secure Cash Drawer- 80mm Thermal Receipt Printer- First year of Epos Now Hospitality Soft,Software Maintenance,43604
Wyre Council,http://opendatacommunities.org/doc/district-council/wyre,29/11/2022,Resources,Support Services,135B,EPOS NOW LTD,02/11/2022,RS145096,26.26,0.00,DPD Standard Delivery,Software Maintenance,43604
Wyre Council,http://opendatacommunities.org/doc/district-council/wyre,29/11/2022,Resources,Support Services,135B,EPOS NOW LTD,02/11/2022,RS145075,15.08,0.00,Invoice No: Invoice-283330Invoice Date: 24 August 2022Account Number: 0376950002DPD Standard Delivery,Software Maintenance,43604
Wyre Council,http://opendatacommunities.org/doc/district-council/wyre,29/11/2022,Resources,Support Services,135B,EPOS NOW LTD,02/11/2022,RS145075,3420.00,0.00,"Standard Support License - 3 years- 12 month minimum contract, includes Software License- Welcome Manager at point of sale to get you set up to trade- Access to daytime phone support excludes Sundays and Evenings- Software updates",Software Maintenance,43604
Wyre Council,http://opendatacommunities.org/doc/district-council/wyre,29/11/2022,Resources,Support Services,135B,EPOS NOW LTD,02/11/2022,RS145075,3024.00,0.00,"3 Years Protect Now Care Plan- Epos Now Protection Plan for your PRO Hardware- Next-Day Replacement of Faulty Equipment- Up to 2 accidental damage repairs per year, excess fee required",Software Maintenance,43604
Wyre Council,http://opendatacommunities.org/doc/district-council/wyre,29/11/2022,Resources,Support Services,135B,EPOS NOW LTD,02/11/2022,RS145075,360.00,0.00,"3 Years Epos Now Order & PayProvide seamless table ordering. Guests scan, order & pay.",Software Maintenance,43604
Wyre Council,http://opendatacommunities.org/doc/district-council/wyre,29/11/2022,People and Places,Planning and Development Servs,132C,EAS Electrical Mechanical,23/11/2022,PE145557,148.94,0.00,Installed feed to twinkle light socket,Special Events,46522
Wyre Council,http://opendatacommunities.org/doc/district-council/wyre,29/11/2022,People and Places,Cultural and Related Services,132A,Tina Dempsey,14/11/2022,PE145307,2400.00,0.00,"The Science Residency (1/11/2022 to 31/10/2023): Residency Total:  9600 (2,400 per quarter)",Special Events,46522
Wyre Council,http://opendatacommunities.org/doc/district-council/wyre,29/11/2022,People and Places,Cultural and Related Services,132A,Tina Dempsey,14/11/2022,PE145307,1250.00,0.00,"Materials/Resources Total: 5000 costs (1,250 per quarter)",Special Events,46522
Wyre Council,http://opendatacommunities.org/doc/district-council/wyre,29/11/2022,People and Places,Cultural and Related Services,132A,Tina Dempsey,14/11/2022,PE145307,600.00,0.00,Science and Discovery Club Total:  2400 for 24 workshops/activities (600 per quarter),Special Events,46522
Wyre Council,http://opendatacommunities.org/doc/district-council/wyre,29/11/2022,People and Places,Cultural and Related Services,132A,LISA WIGHAM,16/11/2022,PE145408,2000.00,0.00,"The Artist Residency (1/11/2022 to 31/10/2023):Residency Total 8000 (2,000 per quarter)",Special Events,46522
Wyre Council,http://opendatacommunities.org/doc/district-council/wyre,29/11/2022,People and Places,Cultural and Related Services,132A,LISA WIGHAM,16/11/2022,PE145408,1250.00,0.00,"Materials/Resources Total  5000 costs (1,250 per quarter)",Special Events,46522
Wyre Council,http://opendatacommunities.org/doc/district-council/wyre,29/11/2022,People and Places,Cultural and Related Services,132A,LISA WIGHAM,16/11/2022,PE145408,300.00,0.00,Science and Discovery Club Total:  1200 for 12 workshops/activities (300 per quarter,Special Events,46522
Wyre Council,http://opendatacommunities.org/doc/district-council/wyre,29/11/2022,People and Places,Cultural and Related Services,132A,GARRY CARR BUILDING SERVICES LTD,08/11/2022,PE145121,200.00,0.00,"Marsh Mill: turning of sails, heritage open days 17th & 18th Sept 22",Special Events,46522
Wyre Council,http://opendatacommunities.org/doc/district-council/wyre,29/11/2022,People and Places,Support Services,135B,Dr Tree Surgeons,21/11/2022,PE145522,300.00,0.00,Quote Number: 651Emergency tree works at Fleetwood on Friday the 04/11/22. Thecollapsed willow tree on neighbour`s fence. Total Net Amount: 300.00VAT @ 20%: 60.00Quote Total: 360.00,Special Maintenance - Trees,28004
Wyre Council,http://opendatacommunities.org/doc/district-council/wyre,29/11/2022,People and Places,Support Services,135B,Dr Tree Surgeons,07/11/2022,PE145162,250.00,0.00,Quote Number: 6491 Emergency tree works: Processing windblown Alder tree at River WyreCar park Garstang.250.00 250.00This work was carried out on the14th OctTotal Net Amount: 250.00VAT @ 20%: 50.00Quote Total: 300.00,Special Maintenance - Trees,28004
Wyre Council,http://opendatacommunities.org/doc/district-council/wyre,29/11/2022,People and Places,Support Services,135B,Dr Tree Surgeons,07/11/2022,PE145161,150.00,0.00,Quote Number: 6511 The taking down of one Sorbs tree &#8208; highlighted as dangerous atThornton Li le Theatre .150.00 150.00Total Net Amount: 150.00VAT @ 20%: 30.00Quote Total: 180.00,Special Maintenance - Trees,28004
Wyre Council,http://opendatacommunities.org/doc/district-council/wyre,29/11/2022,People and Places,Support Services,135B,Dr Tree Surgeons,15/11/2022,PE145357,250.00,0.00,Quote Number: 6501 Emergency tree works:Processing windblown Alder tree at River WyreCar park Garstang .250.00 Total Net Amount: 250.00VAT @ 20%: 50.00Quote Total: 300.00,Special Maintenance - Trees,28004
Wyre Council,http://opendatacommunities.org/doc/district-council/wyre,29/11/2022,People and Places,Environmental Services,132B,TARMAC TRADING LTD,04/11/2022,PE144632,375.20,0.00,Concrete 30.09.2022 Garstang Road East Cemetery  ticket no 2000630992,Special Works,28003
Wyre Council,http://opendatacommunities.org/doc/district-council/wyre,29/11/2022,Resources,Central Services to the Public,131C,Critiqom LTD,14/11/2022,RS145305,200.00,0.00,"Council Tax Technical,Oct 22",Stationery,42200
Wyre Council,http://opendatacommunities.org/doc/district-council/wyre,29/11/2022,People and Places,Cultural and Related Services,132A,Bates Office Services Ltd,10/11/2022,PE143822,79.08,0.00,A4 80GSM WHITEBOX COPIER PAPER,Stationery,42200
Wyre Council,http://opendatacommunities.org/doc/district-council/wyre,29/11/2022,People and Places,Support Services,135B,Bates Office Services Ltd,28/11/2022,PE145314,8.14,0.00,Initiative Env C5 SSeal 90g Wh Wdw 500s,Stationery,42200
Wyre Council,http://opendatacommunities.org/doc/district-council/wyre,29/11/2022,People and Places,Support Services,135B,Bates Office Services Ltd,28/11/2022,PE145314,19.84,0.00,SELLOTAPE BROWN PARCEL TAPE 48MMX50M,Stationery,42200
Wyre Council,http://opendatacommunities.org/doc/district-council/wyre,29/11/2022,People and Places,Support Services,135B,Bates Office Services Ltd,28/11/2022,PE145314,3.72,0.00,Initiative Whiteboard Cleaner 250ml,Stationery,42200
Wyre Council,http://opendatacommunities.org/doc/district-council/wyre,29/11/2022,People and Places,Support Services,135B,Bates Office Services Ltd,28/11/2022,PE145314,6.26,0.00,2WORK MAGN REFILLABLE WHITEBOARD ERASER,Stationery,42200
Wyre Council,http://opendatacommunities.org/doc/district-council/wyre,29/11/2022,People and Places,Support Services,135B,Bates Office Services Ltd,28/11/2022,PE145314,0.54,0.00,SLIM DESK DIARY PORT WTV BLUE 2022,Stationery,42200
Wyre Council,http://opendatacommunities.org/doc/district-council/wyre,29/11/2022,People and Places,Support Services,135B,Bates Office Services Ltd,28/11/2022,PE145314,1.72,0.00,DESK DIARY WTV A5 BLUE 2022,Stationery,42200
Wyre Council,http://opendatacommunities.org/doc/district-council/wyre,29/11/2022,People and Places,Support Services,135B,Bates Office Services Ltd,28/11/2022,PE145314,1.61,0.00,DESK DIARY WTV A4 BLACK 2022,Stationery,42200
Wyre Council,http://opendatacommunities.org/doc/district-council/wyre,29/11/2022,People and Places,Support Services,135B,Bates Office Services Ltd,28/11/2022,PE145314,3.08,0.00,DESK DIARY DPP A5 BLACK 2022,Stationery,42200
Wyre Council,http://opendatacommunities.org/doc/district-council/wyre,29/11/2022,People and Places,Support Services,135B,Bates Office Services Ltd,28/11/2022,PE145314,64.24,0.00,LAMINATING POUCH A4 L/WT PK100 ECON,Stationery,42200
Wyre Council,http://opendatacommunities.org/doc/district-council/wyre,29/11/2022,People and Places,Support Services,135B,Bates Office Services Ltd,28/11/2022,PE145314,15.12,0.00,Q CONNECT MEMO JOT BOX BLACK,Stationery,42200
Wyre Council,http://opendatacommunities.org/doc/district-council/wyre,29/11/2022,People and Places,Support Services,135B,Bates Office Services Ltd,28/11/2022,PE145314,6.34,0.00,YELLOW NOTES 75X75MM 100SHTS,Stationery,42200
Wyre Council,http://opendatacommunities.org/doc/district-council/wyre,29/11/2022,People and Places,Support Services,135B,Bates Office Services Ltd,28/11/2022,PE145314,9.43,0.00,FELLOWES CRYSTAL BLUE GEL MOUSE PAD,Stationery,42200
Wyre Council,http://opendatacommunities.org/doc/district-council/wyre,29/11/2022,People and Places,Support Services,135B,Bates Office Services Ltd,28/11/2022,PE145314,12.66,0.00,Q-CONNECT BLACK GEL WRIST REST,Stationery,42200
Wyre Council,http://opendatacommunities.org/doc/district-council/wyre,29/11/2022,People and Places,Support Services,135B,Bates Office Services Ltd,28/11/2022,PE145314,12.36,0.00,DURACELL 9V PLUS 2 PACK COPPER/BLACK,Stationery,42200
Wyre Council,http://opendatacommunities.org/doc/district-council/wyre,29/11/2022,People and Places,Support Services,135B,Bates Office Services Ltd,28/11/2022,PE145314,19.00,0.00,ENERGIZER INDL BATTERY SIZE C /LR14 PK12,Stationery,42200
Wyre Council,http://opendatacommunities.org/doc/district-council/wyre,29/11/2022,People and Places,Support Services,135B,Bates Office Services Ltd,28/11/2022,PE145314,16.12,0.00,BIC GELOCITY RTRCT GEL PEN MED BLK PK12,Stationery,42200
Wyre Council,http://opendatacommunities.org/doc/district-council/wyre,29/11/2022,People and Places,Support Services,135B,Bates Office Services Ltd,28/11/2022,PE145314,8.34,0.00,WB MANUSCRIPT BOOK A5 FEINT,Stationery,42200
Wyre Council,http://opendatacommunities.org/doc/district-council/wyre,29/11/2022,People and Places,Support Services,135B,Bates Office Services Ltd,28/11/2022,PE145314,6.14,0.00,INITIATIVE DOCUMENT WALLETS FC ORANGE,Stationery,42200
Wyre Council,http://opendatacommunities.org/doc/district-council/wyre,29/11/2022,People and Places,Support Services,135B,Bates Office Services Ltd,28/11/2022,PE145314,2.76,0.00,WB HIGHLIGHTER YELLOW,Stationery,42200
Wyre Council,http://opendatacommunities.org/doc/district-council/wyre,29/11/2022,People and Places,Support Services,135B,Bates Office Services Ltd,28/11/2022,PE145314,2.76,0.00,WB HIGHLIGHTER BLUE,Stationery,42200
Wyre Council,http://opendatacommunities.org/doc/district-council/wyre,29/11/2022,People and Places,Support Services,135B,Bates Office Services Ltd,28/11/2022,PE145314,2.76,0.00,WB HIGHLIGHTER ORANGE,Stationery,42200
Wyre Council,http://opendatacommunities.org/doc/district-council/wyre,29/11/2022,People and Places,Support Services,135B,Bates Office Services Ltd,04/11/2022,PE144560,16.23,0.00,BIC CRISTAL BALLPOINT MEDIUM BLACK PK100,Stationery,42200
Wyre Council,http://opendatacommunities.org/doc/district-council/wyre,29/11/2022,People and Places,Support Services,135B,Bates Office Services Ltd,04/11/2022,PE144560,0.42,0.00,Q-CONNECT SHATTERPROOF 300MM CLEAR RULER,Stationery,42200
Wyre Council,http://opendatacommunities.org/doc/district-council/wyre,29/11/2022,People and Places,Support Services,135B,Bates Office Services Ltd,04/11/2022,PE144560,8.44,0.00,Initiative Env C5 SSeal 90g Wh Wdw 500s,Stationery,42200
Wyre Council,http://opendatacommunities.org/doc/district-council/wyre,29/11/2022,People and Places,Support Services,135B,Bates Office Services Ltd,04/11/2022,PE144560,5.13,0.00,INITIATIVE C4 WHT WDW 100GSM S/S PK250,Stationery,42200
Wyre Council,http://opendatacommunities.org/doc/district-council/wyre,29/11/2022,People and Places,Support Services,135B,Bates Office Services Ltd,04/11/2022,PE144560,1.40,0.00,Q CONNECT QUICKNOTE 75X125MM YLW,Stationery,42200
Wyre Council,http://opendatacommunities.org/doc/district-council/wyre,29/11/2022,People and Places,Support Services,135B,Bates Office Services Ltd,04/11/2022,PE144560,17.76,0.00,BIC CRISTAL BALLPOINT PEN MED BLUE PK100,Stationery,42200
Wyre Council,http://opendatacommunities.org/doc/district-council/wyre,29/11/2022,People and Places,Support Services,135B,Bates Office Services Ltd,04/11/2022,PE144560,1.24,0.00,INITIATIVE STICKY TAC 70G,Stationery,42200
Wyre Council,http://opendatacommunities.org/doc/district-council/wyre,29/11/2022,People and Places,Support Services,135B,Bates Office Services Ltd,04/11/2022,PE144560,5.40,0.00,Q CONNECT HOLE PUNCH MEDIUM DUTY BLACK,Stationery,42200
